College_Name,Check_Number,Payee,Date,Amount,Funding_Source,Purpose
Coastal Alabama CC,!0000184,Bell Ginger,10/8/2020,204.94,Employee Courtesy Funds,Deposits Held for Others - Agency
Coastal Alabama CC,!0000185,Boyer Rebecca,10/8/2020,10.93,Unrestricted -Bay Minette,Mileage - IS
Coastal Alabama CC,!0000186,Brasell Mary,10/8/2020,286.35,Talent Search MR,Mileage - IS
Coastal Alabama CC,!0000187,Bridges-Willis Edna,10/8/2020,167.33,Unrestricted -Bay Minette,Mileage - IS
Coastal Alabama CC,!0000188,Burkett Kina,10/8/2020,40.25,Student Support Service -BR,Mileage - IS
Coastal Alabama CC,!0000189,Carey Cullen,10/8/2020,397.9,WIOA,Mileage - IS
Coastal Alabama CC,!0000190,Carlisle Larry,10/8/2020,487.6,Unrestricted-Gilbertown,Mileage - IS
Coastal Alabama CC,!0000191,Childress Christa,10/8/2020,85.1,Unrestricted-Monroeville,Mileage - IS
Coastal Alabama CC,!0000191,Childress Christa,10/8/2020,192.05,Unrestricted-Monroeville,Mileage - OS
Coastal Alabama CC,!0000192,Conerly Lee,10/8/2020,316.25,Unrestricted-Monroeville,Mileage - IS
Coastal Alabama CC,!0000193,Congiardo Michael,10/8/2020,16.68,Unrestricted -Bay Minette,Mileage - IS
Coastal Alabama CC,!0000194,Cunningham Carl,10/8/2020,78.2,Student Support Service -BM,Mileage - IS
Coastal Alabama CC,!0000195,Day Elizabeth,10/8/2020,248.4,Unrestricted -Bay Minette,Mileage - IS
Coastal Alabama CC,!0000196,Dekle Stephanie,10/8/2020,69,Unrestricted -Brewton,Mileage - IS
Coastal Alabama CC,!0000197,Devillier Heather,10/8/2020,94.3,Unrestricted -Bay Minette,Mileage - IS
Coastal Alabama CC,!0000198,Diaz Courtney,10/8/2020,223.1,AE - State Regular,Mileage - IS
Coastal Alabama CC,!0000199,Dulaney Ritchie,10/8/2020,194.35,Unrestricted -Bay Minette,Mileage - IS
Coastal Alabama CC,!0000200,Duplantis Joshua,10/8/2020,363.4,Unrestricted Shared Services,Mileage - IS
Coastal Alabama CC,!0000201,Etheridge Rachel,10/8/2020,331.2,Unrestricted-Thomasville,Mileage - IS
Coastal Alabama CC,!0000202,Fuqua James,10/8/2020,69,Unrestricted -Brewton,Mileage - IS
Coastal Alabama CC,!0000203,Gilkerson Erica,10/8/2020,540.5,AE - State Regular,Mileage - IS
Coastal Alabama CC,!0000204,Godfrey Carman,10/8/2020,303.6,Unrestricted -Bay Minette,Mileage - IS
Coastal Alabama CC,!0000205,Graham Jean,10/8/2020,124.2,Unrestricted -Bay Minette,Mileage - IS
Coastal Alabama CC,!0000206,Grant Margaret,10/8/2020,33.35,Unrestricted -Bay Minette,Mileage - IS
Coastal Alabama CC,!0000207,Harrison Joy,10/8/2020,468.05,Unrestricted-Monroeville,Mileage - IS
Coastal Alabama CC,!0000208,Head Daniel,10/8/2020,140.3,Unrestricted-Monroeville,Mileage - IS
Coastal Alabama CC,!0000209,Howard Ernestine,10/8/2020,220.8,Unrestricted-Monroeville,Mileage - IS
Coastal Alabama CC,!0000210,Hurst Pamela,10/8/2020,40.25,Unrestricted-Gilbertown,Mileage - IS
Coastal Alabama CC,!0000211,Johnson Kevin,10/8/2020,529,Unrestricted-Monroeville,Mileage - IS
Coastal Alabama CC,!0000211,Johnson Kevin,10/8/2020,529,Unrestricted-Monroeville,Mileage - OS
Coastal Alabama CC,!0000212,Kohen Mattie,10/8/2020,136.85,Unrestricted-Monroeville,Mileage - IS
Coastal Alabama CC,!0000213,Lett Rita,10/8/2020,70.15,Unrestricted-Monroeville,Mileage - IS
Coastal Alabama CC,!0000214,Lewis Rueben,10/8/2020,182.85,Unrestricted-Thomasville,Mileage - IS
Coastal Alabama CC,!0000215,Mack Susan,10/8/2020,83.95,Unrestricted -Brewton,Mileage - IS
Coastal Alabama CC,!0000216,Mathews Nancy,10/8/2020,24.38,Unrestricted -Brewton,Mileage - IS
Coastal Alabama CC,!0000217,McMillan Barbara,10/8/2020,276,Unrestricted-Monroeville,Mileage - IS
Coastal Alabama CC,!0000218,Merry Michael,10/8/2020,110.4,Unrestricted-Monroeville,Mileage - IS
Coastal Alabama CC,!0000219,Mitchell Yolundra,10/8/2020,34.5,Unrestricted -Bay Minette,Mileage - IS
Coastal Alabama CC,!0000220,Nipper Teresa,10/8/2020,149.5,Unrestricted -Bay Minette,Mileage - IS
Coastal Alabama CC,!0000221,Patel Vijay,10/8/2020,40.25,Unrestricted-Monroeville,Mileage - IS
Coastal Alabama CC,!0000222,Payne Pamela,10/8/2020,33.35,Unrestricted -Bay Minette,Mileage - IS
Coastal Alabama CC,!0000223,Philyaw Jasmine,10/8/2020,33.35,Unrestricted -Bay Minette,Mileage - IS
Coastal Alabama CC,!0000224,Richardson Nikeya,10/8/2020,72.45,Unrestricted-Monroeville,Mileage - IS
Coastal Alabama CC,!0000225,Savage Glynis,10/8/2020,161,Upward Bound TV,Mileage - IS
Coastal Alabama CC,!0000226,Scarborough Tiffany,10/8/2020,18.4,Unrestricted -Bay Minette,Mileage - IS
Coastal Alabama CC,!0000227,Shelton Brent,10/8/2020,57.5,Unrestricted -Bay Minette,Mileage - IS
Coastal Alabama CC,!0000228,Skelton Sheila,10/8/2020,118.45,Upward Bound GT,Mileage - IS
Coastal Alabama CC,!0000229,Stone Heather,10/8/2020,93.73,Unrestricted -Brewton,Mileage - IS
Coastal Alabama CC,!0000230,Williford Joseph,10/8/2020,57.5,Unrestricted -Bay Minette,Mileage - IS
Coastal Alabama CC,!0000231,Amazon ,10/8/2020,211.45,CARES Act - College Relief,Internal Purchases - MS
Coastal Alabama CC,!0000232,Amazon ,10/8/2020,512.62,Unrestricted -Bay Minette,Materials and Supplies - MS
Coastal Alabama CC,!0000233,Amazon ,10/8/2020,745,Unrestricted - Brookley Field,Materials and Supplies - MS
Coastal Alabama CC,!0000234,Amazon ,10/8/2020,1065.89,Unrestricted -Bay Minette,Materials and Supplies - MS
Coastal Alabama CC,!0000234,Amazon ,10/8/2020,1728.91,Housing- Bay Minette,Materials and Supplies - MS
Coastal Alabama CC,!0000235,Amazon ,10/8/2020,154.56,Unrestricted -Gulf Shores,Materials and Supplies - MS
Coastal Alabama CC,!0000235,Amazon ,10/8/2020,220.95,Unrestricted-Fairhope,Materials and Supplies - MS
Coastal Alabama CC,!0000235,Amazon ,10/8/2020,452.74,Unrestricted -Brewton,Materials and Supplies - MS
Coastal Alabama CC,!0000235,Amazon ,10/8/2020,1322.98,Housing - Brewton,Materials and Supplies - MS
Coastal Alabama CC,!0000235,Amazon ,10/8/2020,1776.45,Unrestricted -Bay Minette,Materials and Supplies - MS
Coastal Alabama CC,!0000235,Amazon ,10/8/2020,2709.71,Unrestricted-Monroeville,Books - CE
Coastal Alabama CC,!0000236,Amazon ,10/8/2020,0.99,Housing - Brewton,Materials and Supplies - MS
Coastal Alabama CC,!0000236,Amazon ,10/8/2020,53.56,Unrestricted -Brewton,Audiovisuals - CE
Coastal Alabama CC,!0000236,Amazon ,10/8/2020,348.96,Unrestricted -Bay Minette,Materials and Supplies - MS
Coastal Alabama CC,!0000236,Amazon ,10/8/2020,1312.43,Talent Search MR,Materials and Supplies - MS
Coastal Alabama CC,!0000236,Amazon ,10/8/2020,1421.87,Unrestricted -Brewton,Books - CE
Coastal Alabama CC,!0000236,Amazon ,10/8/2020,1548.61,Unrestricted -Brewton,Materials and Supplies - MS
Coastal Alabama CC,!0000236,Amazon ,10/8/2020,2718.81,Unrestricted Shared Services,Materials and Supplies - MS
Coastal Alabama CC,!0000236,Amazon ,10/8/2020,4237.54,Unrestricted -Gulf Shores,Materials and Supplies - MS
Coastal Alabama CC,!0000237,Assurance Service Group Inc ,10/8/2020,34242.5,R&R Bay Minette,Maintenance & Repairs  - OOS
Coastal Alabama CC,!0000238,B & W Auto Parts ,10/8/2020,561.51,Unrestricted -Brewton,Maintenance & Repairs  - OOS
Coastal Alabama CC,!0000239,Bay Minette Building Supply ,10/8/2020,168.32,Unrestricted -Bay Minette,Materials and Supplies - MS
Coastal Alabama CC,!0000240,CDW LLC ,10/8/2020,92.88,Unrestricted -Bay Minette,Materials and Supplies - MS
Coastal Alabama CC,!0000240,CDW LLC ,10/8/2020,1384.3,Unrestricted-Monroeville,Technology - non capitalized - MS
Coastal Alabama CC,!0000241,Cintas Corporation ,10/8/2020,105,Unrestricted-Monroeville,Other Contractual Services - PS
Coastal Alabama CC,!0000241,Cintas Corporation ,10/8/2020,105,Unrestricted-Thomasville,Other Contractual Services - PS
Coastal Alabama CC,!0000242,Cintas Corporation ,10/8/2020,31.56,Unrestricted-Fairhope,Athletic Uniforms
Coastal Alabama CC,!0000242,Cintas Corporation ,10/8/2020,50.2,Unrestricted - Atmore,Other Contractual Services - PS
Coastal Alabama CC,!0000242,Cintas Corporation ,10/8/2020,88.77,Unrestricted -Brewton,Other Contractual Services - PS
Coastal Alabama CC,!0000242,Cintas Corporation ,10/8/2020,134.64,Unrestricted -Bay Minette,Athletic Uniforms
Coastal Alabama CC,!0000242,Cintas Corporation ,10/8/2020,790.56,Unrestricted -Bay Minette,Materials and Supplies - MS
Coastal Alabama CC,!0000243,Deas Building Supply Inc ,10/8/2020,156,Unrestricted-Monroeville,Maintenance & Repairs  - OOS
Coastal Alabama CC,!0000244,Deas Building Supply Inc ,10/8/2020,496.23,Unrestricted-Monroeville,Maintenance & Repairs  - OOS
Coastal Alabama CC,!0000245,Evans Meats Inc ,10/8/2020,1871.34,Unrestricted -Gulf Shores,Culinary Consumables
Coastal Alabama CC,!0000246,Heartland Campus Solutions Ecsi ,10/8/2020,1481.7,Unrestricted Shared Services,Other Contractual Services - PS
Coastal Alabama CC,!0000247,Kelly's Turf Pro ,10/8/2020,650,Unrestricted -Brewton,Other Professional Fees - PS
Coastal Alabama CC,!0000248,Pocket Nurse Enterprises Inc. ,10/8/2020,-96.18,Unrestricted -Bay Minette,Materials and Supplies - MS
Coastal Alabama CC,!0000248,Pocket Nurse Enterprises Inc. ,10/8/2020,9229.3,Unrestricted Shared Services,Materials and Supplies - MS
Coastal Alabama CC,!0000248,Pocket Nurse Enterprises Inc. ,10/8/2020,14460.7,Unrestricted -Gulf Shores,Materials and Supplies - MS
Coastal Alabama CC,!0000249,Pr Media ,10/8/2020,318.75,Unrestricted -Bay Minette,Advertising & Promotions - OOS
Coastal Alabama CC,!0000250,Quill Corporation ,10/8/2020,18.03,Unrestricted-Monroeville,Materials and Supplies - MS
Coastal Alabama CC,!0000251,Quill Corporation ,10/8/2020,217.13,Unrestricted-Monroeville,Materials and Supplies - MS
Coastal Alabama CC,!0000251,Quill Corporation ,10/8/2020,304.4,Student Support Service - MR,Materials and Supplies - MS
Coastal Alabama CC,!0000252,Xerox Corporation ,10/8/2020,17.89,Unrestricted -Bay Minette,Short-Term Equipment Rentals - OOS
Coastal Alabama CC,!0000253,Xerox Financial Services LLC ,10/8/2020,149.64,Student Support Service -BM,Short-Term Equipment Rentals - OOS
Coastal Alabama CC,!0000253,Xerox Financial Services LLC ,10/8/2020,150.03,Unrestricted - Fountain,Short-Term Equipment Rentals - OOS
Coastal Alabama CC,!0000253,Xerox Financial Services LLC ,10/8/2020,162.36,Unrestricted - Atmore,Short-Term Equipment Rentals - OOS
Coastal Alabama CC,!0000253,Xerox Financial Services LLC ,10/8/2020,212.11,Unrestricted-Thomasville,Short-Term Equipment Rentals - OOS
Coastal Alabama CC,!0000253,Xerox Financial Services LLC ,10/8/2020,368.1,Unrestricted -Gulf Shores,Short-Term Equipment Rentals - OOS
Coastal Alabama CC,!0000253,Xerox Financial Services LLC ,10/8/2020,471.96,Unrestricted - Brookley Field,Short-Term Equipment Rentals - OOS
Coastal Alabama CC,!0000253,Xerox Financial Services LLC ,10/8/2020,518.52,Unrestricted-Fairhope,Short-Term Equipment Rentals - OOS
Coastal Alabama CC,!0000253,Xerox Financial Services LLC ,10/8/2020,1097.56,Unrestricted -Brewton,Short-Term Equipment Rentals - OOS
Coastal Alabama CC,!0000253,Xerox Financial Services LLC ,10/8/2020,1217.32,Unrestricted -Bay Minette,Short-Term Equipment Rentals - OOS
Coastal Alabama CC,!0000254,Etheridge Rachel,10/12/2020,110.4,Unrestricted-Thomasville,Mileage - IS
Coastal Alabama CC,!0000255,CDW LLC ,10/12/2020,25.15,Unrestricted -Bay Minette,Materials and Supplies - MS
Coastal Alabama CC,!0000255,CDW LLC ,10/12/2020,634.19,Unrestricted -Brewton,Technology - non capitalized - MS
Coastal Alabama CC,!0000255,CDW LLC ,10/12/2020,1719.17,Unrestricted-Monroeville,Materials and Supplies - MS
Coastal Alabama CC,!0000255,CDW LLC ,10/12/2020,4100.1,Unrestricted-Monroeville,Technology - non capitalized - MS
Coastal Alabama CC,!0000256,Cintas Corporation ,10/12/2020,39.45,Unrestricted-Fairhope,Athletic Uniforms
Coastal Alabama CC,!0000256,Cintas Corporation ,10/12/2020,168.3,Unrestricted -Bay Minette,Athletic Uniforms
Coastal Alabama CC,!0000256,Cintas Corporation ,10/12/2020,988.2,Unrestricted -Bay Minette,Short-Term Equipment Rentals - OOS
Coastal Alabama CC,!0000257,Howard Technology Solutions ,10/12/2020,11025,Unrestricted -Bay Minette,Other Professional Fees - PS
Coastal Alabama CC,!0000258,Pocket Nurse Enterprises Inc. ,10/12/2020,1312.8,Unrestricted -Gulf Shores,Materials and Supplies - MS
Coastal Alabama CC,!0000259,Synergetics DCS Inc. ,10/12/2020,52317.75,Unrestricted-Monroeville,Technology - non capitalized - MS
Coastal Alabama CC,!0000260,Synergetics DCS Inc. ,10/12/2020,427908,CARES Act - College Relief,Computer Related M&S - MS
Coastal Alabama CC,!0000261,Techwrite Inc ,10/12/2020,1340.65,NSF ,Other Professional Fees - PS
Coastal Alabama CC,!0000262,Xerox Corporation ,10/12/2020,174.75,Unrestricted-Thomasville,Short-Term Equipment Rentals - OOS
Coastal Alabama CC,!0000263,Childress Christa,10/12/2020,266.8,Unrestricted-Monroeville,Mileage - OS
Coastal Alabama CC,!0000264,Head Brooke,10/12/2020,110.4,Student Support Service - MR,Mileage - IS
Coastal Alabama CC,!0000265,Hornady Leslie,10/12/2020,240.93,Unrestricted -Bay Minette,Mileage - IS
Coastal Alabama CC,!0000266,Brown Collins,10/14/2020,227.81,Unrestricted -Bay Minette,Materials and Supplies - MS
Coastal Alabama CC,!0000266,Brown Collins,10/14/2020,1163.03,Unrestricted-Monroeville,Materials and Supplies - MS
Coastal Alabama CC,!0000267,Robinson Barbara,10/14/2020,155.83,Unrestricted -Bay Minette,Mileage - IS
Coastal Alabama CC,!0000268,ACT Inc ,10/14/2020,362,Work Keys Testing,Deposits Held for Others – Testing
Coastal Alabama CC,!0000269,Xerox Corporation ,10/14/2020,174.83,Unrestricted-Jackson,Short-Term Equipment Rentals - OOS
Coastal Alabama CC,!0000269,Xerox Corporation ,10/14/2020,185.57,Unrestricted - Atmore,Short-Term Equipment Rentals - OOS
Coastal Alabama CC,!0000269,Xerox Corporation ,10/14/2020,336.17,Unrestricted-Monroeville,Short-Term Equipment Rentals - OOS
Coastal Alabama CC,!0000269,Xerox Corporation ,10/14/2020,670.95,Unrestricted-Thomasville,Short-Term Equipment Rentals - OOS
Coastal Alabama CC,!0000269,Xerox Corporation ,10/14/2020,2397.37,Unrestricted -Bay Minette,Short-Term Equipment Rentals - OOS
Coastal Alabama CC,!0000270,ACT Inc ,10/15/2020,350,Unrestricted-Monroeville,Other Professional Fees - PS
Coastal Alabama CC,!0000271,Verified Credentials Inc ,10/15/2020,2232.2,Unrestricted Shared Services,Other Professional Fees - PS
Coastal Alabama CC,!0000272,Jacobs Amelia,10/15/2020,34.5,Unrestricted -Brewton,Mileage - IS
Coastal Alabama CC,!0000273,Davidson Jonathan,10/19/2020,300,Unrestricted -Bay Minette,Overnight (non tax per diem)- IS
Coastal Alabama CC,!0000274,Assurance Service Group Inc ,10/19/2020,1797,Unrestricted -Bay Minette,Maintenance & Repairs  - OOS
Coastal Alabama CC,!0000275,CDW LLC ,10/19/2020,1470.15,Unrestricted -Bay Minette,Technology - non capitalized - MS
Coastal Alabama CC,!0000275,CDW LLC ,10/19/2020,3655.74,Housing- Bay Minette,Technology - non capitalized - MS
Coastal Alabama CC,!0000276,Cintas Corporation ,10/19/2020,106.26,Unrestricted - Brookley Field,Materials and Supplies - MS
Coastal Alabama CC,!0000277,Cintas Corporation ,10/19/2020,230.94,Unrestricted -Bay Minette,Materials and Supplies - MS
Coastal Alabama CC,!0000278,KONE Inc. ,10/19/2020,441.7,Unrestricted-Fairhope,Maintenance & Repairs  - OOS
Coastal Alabama CC,!0000278,KONE Inc. ,10/19/2020,753.13,Unrestricted -Bay Minette,Maintenance & Repairs  - OOS
Coastal Alabama CC,!0000279,Blubaugh Kaitlyn,10/23/2020,1800,Psychology Club,Deposits Held for Others - Agency
Coastal Alabama CC,!0000280,Amazon ,10/23/2020,72.17,Unrestricted-Fairhope,Materials and Supplies - MS
Coastal Alabama CC,!0000280,Amazon ,10/23/2020,103,Unrestricted -Bay Minette,Materials and Supplies - MS
Coastal Alabama CC,!0000281,Amazon ,10/23/2020,-211.45,CARES Act - College Relief,Internal Purchases - MS
Coastal Alabama CC,!0000281,Amazon ,10/23/2020,70.3,Unrestricted -Bay Minette,Materials and Supplies - MS
Coastal Alabama CC,!0000281,Amazon ,10/23/2020,111.72,Unrestricted-Fairhope,Materials and Supplies - MS
Coastal Alabama CC,!0000281,Amazon ,10/23/2020,169.89,Upward Bound TV,Materials and Supplies - MS
Coastal Alabama CC,!0000281,Amazon ,10/23/2020,475.93,Student Support Service -BM,Materials and Supplies - MS
Coastal Alabama CC,!0000281,Amazon ,10/23/2020,515.16,Talent Search MR,Materials and Supplies - MS
Coastal Alabama CC,!0000283,C Spire Business ,10/23/2020,2950,Unrestricted -Bay Minette,Technology - non capitalized - MS
Coastal Alabama CC,!0000284,CDW LLC ,10/23/2020,6447.84,Unrestricted-Monroeville,Technology - non capitalized - MS
Coastal Alabama CC,!0000285,Cintas Corporation ,10/23/2020,35,Unrestricted-Monroeville,Other Contractual Services - PS
Coastal Alabama CC,!0000285,Cintas Corporation ,10/23/2020,35,Unrestricted-Thomasville,Other Contractual Services - PS
Coastal Alabama CC,!0000286,Cintas Corporation ,10/23/2020,12.55,Unrestricted - Atmore,Other Contractual Services - PS
Coastal Alabama CC,!0000286,Cintas Corporation ,10/23/2020,29.59,Unrestricted -Brewton,Other Contractual Services - PS
Coastal Alabama CC,!0000286,Cintas Corporation ,10/23/2020,39.9,Unrestricted-Monroeville,Materials and Supplies - MS
Coastal Alabama CC,!0000286,Cintas Corporation ,10/23/2020,3507.95,Housing- Bay Minette,Materials and Supplies - MS
Coastal Alabama CC,!0000286,Cintas Corporation ,10/23/2020,11575.75,Unrestricted -Bay Minette,Materials and Supplies - MS
Coastal Alabama CC,!0000287,Credentials Inc ,10/23/2020,1350,Unrestricted -Bay Minette,Other Professional Fees - PS
Coastal Alabama CC,!0000288,Eastern Shore Chamber of Commerce ,10/23/2020,2000,Unrestricted -Bay Minette,Advertising & Promotions - OOS
Coastal Alabama CC,!0000289,Hagan Storm Fence of Baldwin County Inc ,10/23/2020,3073,Unrestricted -Bay Minette,Other Professional Fees - PS
Coastal Alabama CC,!0000290,International CHRIE ,10/23/2020,365,Unrestricted -Gulf Shores,Memberships - PS
Coastal Alabama CC,!0000291,Tri-co Electric Company ,10/23/2020,330.82,Unrestricted -Brewton,Maintenance & Repairs  - OOS
Coastal Alabama CC,!0000292,W W Grainger Inc ,10/23/2020,670.64,Unrestricted -Gulf Shores,Materials and Supplies - MS
Coastal Alabama CC,!0000292,W W Grainger Inc ,10/23/2020,1053.25,Unrestricted-Fairhope,Materials and Supplies - MS
Coastal Alabama CC,!0000292,W W Grainger Inc ,10/23/2020,3737.42,Unrestricted -Bay Minette,Materials and Supplies - MS
Coastal Alabama CC,!0000293,Xerox Corporation ,10/23/2020,10902.1,Unrestricted -Bay Minette,Technology - non capitalized - MS
Coastal Alabama CC,!0000294,Bradley Vinson,11/3/2020,465.75,Unrestricted -Bay Minette,Mileage - IS
Coastal Alabama CC,!0000295,Cosker Melanie,11/3/2020,36.23,Unrestricted-Monroeville,Mileage - IS
Coastal Alabama CC,!0000296,Diaz Courtney,11/3/2020,86.25,AE - State Regular,Mileage - IS
Coastal Alabama CC,!0000297,Faircloth Linda,11/3/2020,157.55,AE-Federal Regular,Mileage - IS
Coastal Alabama CC,!0000298,Gilkerson Erica,11/3/2020,93.15,AE - State Regular,Mileage - IS
Coastal Alabama CC,!0000299,Jacobs Amelia,11/3/2020,85.47,Unrestricted -Brewton,Honorariums - PS
Coastal Alabama CC,!0000300,Patterson Randall,11/3/2020,257.02,Unrestricted-Monroeville,Mileage - IS
Coastal Alabama CC,!0000301,Scarborough Tiffany,11/3/2020,242.65,Unrestricted -Bay Minette,Mileage - IS
Coastal Alabama CC,!0000302,Williford Joseph,11/3/2020,446.78,Unrestricted -Bay Minette,Mileage - IS
Coastal Alabama CC,!0000303,Amazon ,11/3/2020,202.36,Unrestricted -Brewton,Audiovisuals - CE
Coastal Alabama CC,!0000304,Amazon ,11/3/2020,131.7,Unrestricted -Bay Minette,Materials and Supplies - MS
Coastal Alabama CC,!0000304,Amazon ,11/3/2020,1749,Unrestricted Shared Services,Memberships - PS
Coastal Alabama CC,!0000305,B & W Auto Parts ,11/3/2020,109.96,Unrestricted -Brewton,Materials and Supplies - MS
Coastal Alabama CC,!0000305,B & W Auto Parts ,11/3/2020,164.94,Unrestricted -Brewton,Maintenance & Repairs  - OOS
Coastal Alabama CC,!0000306,Watermark Insights LLC ,11/3/2020,11000,Unrestricted Shared Services,Other Contractual Services - PS
Coastal Alabama CC,!0000307,Xerox Corporation ,11/3/2020,96.33,Unrestricted-Monroeville,Short-Term Equipment Rentals - OOS
Coastal Alabama CC,!0000307,Xerox Corporation ,11/3/2020,224.1,Unrestricted-Gilbertown,Short-Term Equipment Rentals - OOS
Coastal Alabama CC,!0000308,Bell Ginger,11/5/2020,115,Unrestricted-Thomasville,Mileage - IS
Coastal Alabama CC,!0000309,Busby Candis,11/5/2020,66.7,Talent Search MR,Mileage - IS
Coastal Alabama CC,!0000310,Cleckler Brittany,11/5/2020,124.78,Unrestricted -Bay Minette,Mileage - IS
Coastal Alabama CC,!0000311,Dean Katrina,11/5/2020,82.8,Talent Search MR,Mileage - IS
Coastal Alabama CC,!0000312,Dukes Natalie,11/5/2020,33.35,Unrestricted -Bay Minette,Mileage - IS
Coastal Alabama CC,!0000313,Duplantis Joshua,11/5/2020,538.13,Unrestricted Shared Services,Mileage - IS
Coastal Alabama CC,!0000314,Godfrey Carman,11/5/2020,327.75,Unrestricted -Bay Minette,Mileage - IS
Coastal Alabama CC,!0000315,Graves Staford,11/5/2020,150,Unrestricted -Bay Minette,Other Professional Fees - PS
Coastal Alabama CC,!0000316,Head Daniel,11/5/2020,264.5,Unrestricted-Monroeville,Mileage - IS
Coastal Alabama CC,!0000317,Mims Rodney,11/5/2020,150,Unrestricted -Bay Minette,Other Professional Fees - PS
Coastal Alabama CC,!0000318,Radwitch Mallory,11/5/2020,85.95,Unrestricted -Bay Minette,Overnight (non tax per diem)- IS
Coastal Alabama CC,!0000318,Radwitch Mallory,11/5/2020,146.35,Unrestricted -Bay Minette,Mileage - IS
Coastal Alabama CC,!0000319,Shue Wendy,11/5/2020,57.5,AE - State Regular,Mileage - IS
Coastal Alabama CC,!0000320,Amazon ,11/5/2020,71.94,Unrestricted - Brookley Field,Materials and Supplies - MS
Coastal Alabama CC,!0000321,Amazon ,11/5/2020,749.56,Unrestricted -Brewton,Books - CE
Coastal Alabama CC,!0000322,Associated Builders & Contractors of Alabama Inc ,11/5/2020,50,Unrestricted -Bay Minette,Other - AP
Coastal Alabama CC,!0000323,Bay Minette Building Supply ,11/5/2020,311.41,Unrestricted -Gulf Shores,Materials and Supplies - MS
Coastal Alabama CC,!0000323,Bay Minette Building Supply ,11/5/2020,363.33,Unrestricted -Bay Minette,Materials and Supplies - MS
Coastal Alabama CC,!0000324,C Spire Business ,11/5/2020,9755.18,Unrestricted -Bay Minette,Technology - non capitalized - MS
Coastal Alabama CC,!0000325,CDW LLC ,11/5/2020,119.4,Unrestricted -Brewton,Technology - non capitalized - MS
Coastal Alabama CC,!0000325,CDW LLC ,11/5/2020,37447.62,Unrestricted -Bay Minette,Technology - non capitalized - MS
Coastal Alabama CC,!0000326,Cintas Corporation ,11/5/2020,37.65,Unrestricted - Atmore,Other Contractual Services - PS
Coastal Alabama CC,!0000326,Cintas Corporation ,11/5/2020,118.36,Unrestricted -Brewton,Other Contractual Services - PS
Coastal Alabama CC,!0000327,Cintas Corporation ,11/5/2020,140,Unrestricted-Monroeville,Other Contractual Services - PS
Coastal Alabama CC,!0000327,Cintas Corporation ,11/5/2020,140,Unrestricted-Thomasville,Other Contractual Services - PS
Coastal Alabama CC,!0000328,Deas Building Supply Inc ,11/5/2020,157.26,Unrestricted-Monroeville,Maintenance & Repairs  - OOS
Coastal Alabama CC,!0000328,Deas Building Supply Inc ,11/5/2020,157.26,Unrestricted-Monroeville,Materials and Supplies - MS
Coastal Alabama CC,!0000329,EBSCO Industries Inc ,11/5/2020,20480,Unrestricted -Bay Minette,Technology - non capitalized - MS
Coastal Alabama CC,!0000330,Ll & Jp Inc. ,11/5/2020,551.84,Housing- Bay Minette,Maintenance & Repairs  - OOS
Coastal Alabama CC,!0000331,Technical Training Aids Inc ,11/5/2020,525,AE-Federal Regular,Professional Development - PS
Coastal Alabama CC,!0000332,W W Grainger Inc ,11/5/2020,153,Unrestricted - Brookley Field,Materials and Supplies - MS
Coastal Alabama CC,!0000333,Xerox Corporation ,11/5/2020,157.66,Unrestricted-Thomasville,Short-Term Equipment Rentals - OOS
Coastal Alabama CC,!0000334,Xerox Corporation ,11/5/2020,10902.1,Unrestricted -Bay Minette,Technology - non capitalized - MS
Coastal Alabama CC,!0000335,Xerox Financial Services LLC ,11/5/2020,149.64,Student Support Service -BM,Short-Term Equipment Rentals - OOS
Coastal Alabama CC,!0000335,Xerox Financial Services LLC ,11/5/2020,150.03,Unrestricted - Fountain,Short-Term Equipment Rentals - OOS
Coastal Alabama CC,!0000335,Xerox Financial Services LLC ,11/5/2020,162.36,Unrestricted - Atmore,Short-Term Equipment Rentals - OOS
Coastal Alabama CC,!0000335,Xerox Financial Services LLC ,11/5/2020,212.11,Unrestricted-Thomasville,Short-Term Equipment Rentals - OOS
Coastal Alabama CC,!0000335,Xerox Financial Services LLC ,11/5/2020,368.1,Unrestricted -Gulf Shores,Short-Term Equipment Rentals - OOS
Coastal Alabama CC,!0000335,Xerox Financial Services LLC ,11/5/2020,471.96,Unrestricted - Brookley Field,Short-Term Equipment Rentals - OOS
Coastal Alabama CC,!0000335,Xerox Financial Services LLC ,11/5/2020,518.52,Unrestricted-Fairhope,Short-Term Equipment Rentals - OOS
Coastal Alabama CC,!0000335,Xerox Financial Services LLC ,11/5/2020,1097.56,Unrestricted -Brewton,Short-Term Equipment Rentals - OOS
Coastal Alabama CC,!0000335,Xerox Financial Services LLC ,11/5/2020,1217.32,Unrestricted -Bay Minette,Short-Term Equipment Rentals - OOS
Coastal Alabama CC,!0000336,Brasell Mary,11/9/2020,317.4,Talent Search MR,Mileage - IS
Coastal Alabama CC,!0000337,Chancery Jennifer,11/9/2020,287.51,Unrestricted -Brewton,Mileage - IS
Coastal Alabama CC,!0000338,McLean Diane,11/9/2020,286.35,Unrestricted -Bay Minette,Mileage - IS
Coastal Alabama CC,!0000339,Shelton Brent,11/9/2020,172.5,Unrestricted -Bay Minette,Mileage - IS
Coastal Alabama CC,!0000340,Watters Augusta,11/9/2020,3300,Upward Bound TV,Stipends-Meals
Coastal Alabama CC,!0000341,Amazon ,11/9/2020,49.5,Unrestricted Shared Services,Materials and Supplies - MS
Coastal Alabama CC,!0000342,Amazon ,11/9/2020,88.98,Unrestricted -Bay Minette,Materials and Supplies - MS
Coastal Alabama CC,!0000342,Amazon ,11/9/2020,238.87,Unrestricted-Monroeville,Materials and Supplies - MS
Coastal Alabama CC,!0000343,Amazon ,11/9/2020,1023.76,Unrestricted -Bay Minette,Materials and Supplies - MS
Coastal Alabama CC,!0000344,Assessment Technologies Institute LLC ,11/9/2020,219113.41,Unrestricted Shared Services,Other Professional Fees - PS
Coastal Alabama CC,!0000345,Assurance Service Group Inc ,11/9/2020,9727,Unrestricted -Bay Minette,Maintenance & Repairs  - OOS
Coastal Alabama CC,!0000345,Assurance Service Group Inc ,11/9/2020,16773.29,R&R Bay Minette,Maintenance & Repairs  - OOS
Coastal Alabama CC,!0000346,C & C Plumbing & Servc Co ,11/9/2020,875,Unrestricted -Bay Minette,Maintenance & Repairs  - OOS
Coastal Alabama CC,!0000347,Club Colors Buyer LLC ,11/9/2020,299.56,Unrestricted -Bay Minette,Materials and Supplies - MS
Coastal Alabama CC,!0000347,Club Colors Buyer LLC ,11/9/2020,299.56,Unrestricted-Gilbertown,Materials and Supplies - MS
Coastal Alabama CC,!0000348,Dogwood Productions Inc ,11/9/2020,78000,Unrestricted -Bay Minette,Other Contractual Services - PS
Coastal Alabama CC,!0000349,Evans Meats Inc ,11/9/2020,4094.18,Unrestricted -Gulf Shores,Culinary Consumables
Coastal Alabama CC,!0000350,Information Transport Solutions Inc ,11/9/2020,113940,CARES Act - College Relief,Other Professional Fees - PS
Coastal Alabama CC,!0000351,Ll & Jp Inc. ,11/9/2020,912.33,Unrestricted -Bay Minette,Other Professional Fees - PS
Coastal Alabama CC,!0000352,Pocket Nurse Enterprises Inc. ,11/9/2020,2595.41,Unrestricted -Bay Minette,Materials and Supplies - MS
Coastal Alabama CC,!0000353,Pocket Nurse Enterprises Inc. ,11/9/2020,65.4,Unrestricted Shared Services,Materials and Supplies - MS
Coastal Alabama CC,!0000353,Pocket Nurse Enterprises Inc. ,11/9/2020,5566.1,Unrestricted -Gulf Shores,Materials and Supplies - MS
Coastal Alabama CC,!0000354,Quill Corporation ,11/9/2020,67.96,Student Support Service -BR,Materials and Supplies - MS
Coastal Alabama CC,!0000355,W W Grainger Inc ,11/9/2020,761.43,Unrestricted -Brewton,Maintenance & Repairs  - OOS
Coastal Alabama CC,!0000356,Xerox Corporation ,11/9/2020,84.71,Unrestricted-Thomasville,Short-Term Equipment Rentals - OOS
Coastal Alabama CC,!0000356,Xerox Corporation ,11/9/2020,100.2,Unrestricted-Monroeville,Short-Term Equipment Rentals - OOS
Coastal Alabama CC,!0000357,Carey Cullen,11/12/2020,393.3,WIOA,Mileage - IS
Coastal Alabama CC,!0000358,Grant Margaret,11/12/2020,341.55,Unrestricted -Bay Minette,Mileage - IS
Coastal Alabama CC,!0000359,Hornady Leslie,11/12/2020,261.63,Unrestricted-Monroeville,Mileage - IS
Coastal Alabama CC,!0000360,Jordan Rachael,11/12/2020,79.93,Unrestricted -Bay Minette,Mileage - IS
Coastal Alabama CC,!0000361,Joyner Holley,11/12/2020,291.99,Unrestricted-Monroeville,Mileage - IS
Coastal Alabama CC,!0000362,Killingsworth Jennifer,11/12/2020,280.6,Unrestricted -Bay Minette,Mileage - IS
Coastal Alabama CC,!0000363,Mathews Nancy,11/12/2020,66.99,Unrestricted -Brewton,Mileage - IS
Coastal Alabama CC,!0000364,Mitchell Yolundra,11/12/2020,149.5,Unrestricted -Brewton,Mileage - IS
Coastal Alabama CC,!0000365,Philon Andrew,11/12/2020,21.85,Talent Search MR,Mileage - IS
Coastal Alabama CC,!0000366,Philyaw Jasmine,11/12/2020,340.41,Unrestricted -Bay Minette,Mileage - IS
Coastal Alabama CC,!0000367,Sloan Mark,11/12/2020,37.95,Unrestricted - Brookley Field,Mileage - IS
Coastal Alabama CC,!0000368,Watters Augusta,11/12/2020,405.3,Thomas Jackson Holding,Deposits Held for Others - Agency
Coastal Alabama CC,!0000369,Amazon ,11/12/2020,55.98,Unrestricted - Brookley Field,Materials and Supplies - MS
Coastal Alabama CC,!0000370,Amazon ,11/12/2020,284.95,Unrestricted -Brewton,Materials and Supplies - MS
Coastal Alabama CC,!0000371,Amazon ,11/12/2020,45.99,Unrestricted -Brewton,Materials and Supplies - MS
Coastal Alabama CC,!0000371,Amazon ,11/12/2020,315.74,Unrestricted Shared Services,Materials and Supplies - MS
Coastal Alabama CC,!0000371,Amazon ,11/12/2020,406.13,Unrestricted -Bay Minette,Materials and Supplies - MS
Coastal Alabama CC,!0000371,Amazon ,11/12/2020,733.09,Upward Bound MR,Materials and Supplies - MS
Coastal Alabama CC,!0000372,Amazon ,11/12/2020,69.07,Unrestricted -Bay Minette,Materials and Supplies - MS
Coastal Alabama CC,!0000372,Amazon ,11/12/2020,4956.04,Upward Bound TV,Materials and Supplies - MS
Coastal Alabama CC,!0000373,Atalian US Midwest LL ,11/12/2020,2079.31,Unrestricted-Gilbertown,Other Contractual Services - PS
Coastal Alabama CC,!0000373,Atalian US Midwest LL ,11/12/2020,2265.73,Unrestricted -Gulf Shores,Other Contractual Services - PS
Coastal Alabama CC,!0000373,Atalian US Midwest LL ,11/12/2020,2748.03,Unrestricted - Brookley Field,Other Contractual Services - PS
Coastal Alabama CC,!0000373,Atalian US Midwest LL ,11/12/2020,3393.2,Unrestricted - Atmore,Other Contractual Services - PS
Coastal Alabama CC,!0000373,Atalian US Midwest LL ,11/12/2020,5827.5,Unrestricted-Fairhope,Other Contractual Services - PS
Coastal Alabama CC,!0000373,Atalian US Midwest LL ,11/12/2020,24701.51,Unrestricted -Bay Minette,Other Contractual Services - PS
Coastal Alabama CC,!0000374,Bradley Investmentsinc. ,11/12/2020,200,Unrestricted -Bay Minette,Memberships - PS
Coastal Alabama CC,!0000375,C Spire Business ,11/12/2020,2950,Unrestricted -Bay Minette,Technology - non capitalized - MS
Coastal Alabama CC,!0000376,CDW LLC ,11/12/2020,99.45,Unrestricted -Bay Minette,Technology - non capitalized - MS
Coastal Alabama CC,!0000376,CDW LLC ,11/12/2020,62255,Unrestricted-Monroeville,Technology - non capitalized - MS
Coastal Alabama CC,!0000377,Cintas Corporation ,11/12/2020,12.55,Unrestricted - Atmore,Other Contractual Services - PS
Coastal Alabama CC,!0000378,e-LocalLink Inc. ,11/12/2020,2500,Unrestricted -Bay Minette,Advertising & Promotions - OOS
Coastal Alabama CC,!0000379,Escambia County Board of Education ,11/12/2020,240,Housing - Brewton,Materials and Supplies - MS
Coastal Alabama CC,!0000380,Howard Technology Solutions ,11/12/2020,3410,Unrestricted -Brewton,Technology - non capitalized - MS
Coastal Alabama CC,!0000381,KONE Inc. ,11/12/2020,441.7,Unrestricted-Fairhope,Maintenance & Repairs  - OOS
Coastal Alabama CC,!0000381,KONE Inc. ,11/12/2020,753.13,Unrestricted -Bay Minette,Maintenance & Repairs  - OOS
Coastal Alabama CC,!0000382,Pr Media ,11/12/2020,318.75,Unrestricted -Bay Minette,Advertising & Promotions - OOS
Coastal Alabama CC,!0000383,Pro Rain Irrigation System ,11/12/2020,2652,Unrestricted -Bay Minette,Other Professional Fees - PS
Coastal Alabama CC,!0000384,Quill Corporation ,11/12/2020,143.23,Unrestricted -Bay Minette,Materials and Supplies - MS
Coastal Alabama CC,!0000385,W W Grainger Inc ,11/12/2020,370.05,Unrestricted-Fairhope,Materials and Supplies - MS
Coastal Alabama CC,!0000385,W W Grainger Inc ,11/12/2020,3329.64,Unrestricted -Bay Minette,Materials and Supplies - MS
Coastal Alabama CC,!0000386,Xerox Corporation ,11/12/2020,175,Unrestricted-Jackson,Short-Term Equipment Rentals - OOS
Coastal Alabama CC,!0000386,Xerox Corporation ,11/12/2020,175.9,Unrestricted -Brewton,Short-Term Equipment Rentals - OOS
Coastal Alabama CC,!0000386,Xerox Corporation ,11/12/2020,191.45,Unrestricted - Atmore,Short-Term Equipment Rentals - OOS
Coastal Alabama CC,!0000386,Xerox Corporation ,11/12/2020,342.23,Unrestricted-Monroeville,Short-Term Equipment Rentals - OOS
Coastal Alabama CC,!0000386,Xerox Corporation ,11/12/2020,857.88,Unrestricted-Thomasville,Short-Term Equipment Rentals - OOS
Coastal Alabama CC,!0000387,Xerox Financial Services LLC ,11/12/2020,754,Unrestricted -Bay Minette,Short-Term Equipment Rentals - OOS
Coastal Alabama CC,!0000388,Amazon ,11/16/2020,119,Unrestricted - Brookley Field,Materials and Supplies - MS
Coastal Alabama CC,!0000389,Amazon ,11/16/2020,882.41,Unrestricted-SB Center Tech,Materials and Supplies - MS
Coastal Alabama CC,!0000390,Assurance Service Group Inc ,11/16/2020,6699.35,Housing- Bay Minette,Other Professional Fees - PS
Coastal Alabama CC,!0000390,Assurance Service Group Inc ,11/16/2020,61108,R&R Bay Minette,Maintenance & Repairs  - OOS
Coastal Alabama CC,!0000391,Atalian US Midwest LL ,11/16/2020,2079.31,Unrestricted-Gilbertown,Other Contractual Services - PS
Coastal Alabama CC,!0000391,Atalian US Midwest LL ,11/16/2020,2748.03,Unrestricted - Brookley Field,Other Contractual Services - PS
Coastal Alabama CC,!0000391,Atalian US Midwest LL ,11/16/2020,3393.2,Unrestricted - Atmore,Other Contractual Services - PS
Coastal Alabama CC,!0000391,Atalian US Midwest LL ,11/16/2020,4265.73,Unrestricted -Gulf Shores,Other Contractual Services - PS
Coastal Alabama CC,!0000391,Atalian US Midwest LL ,11/16/2020,5827.5,Unrestricted-Fairhope,Other Contractual Services - PS
Coastal Alabama CC,!0000391,Atalian US Midwest LL ,11/16/2020,24701.51,Unrestricted -Bay Minette,Other Contractual Services - PS
Coastal Alabama CC,!0000392,C & C Plumbing & Servc Co ,11/16/2020,1200,Unrestricted-Fairhope,Other Professional Fees - PS
Coastal Alabama CC,!0000393,Cintas Corporation ,11/16/2020,31.56,Unrestricted-Fairhope,Athletic Uniforms
Coastal Alabama CC,!0000393,Cintas Corporation ,11/16/2020,134.64,Unrestricted -Bay Minette,Athletic Uniforms
Coastal Alabama CC,!0000393,Cintas Corporation ,11/16/2020,790.56,Unrestricted -Bay Minette,Short-Term Equipment Rentals - OOS
Coastal Alabama CC,!0000394,South Baldwin Chamber of Commerce ,11/16/2020,500,Unrestricted -Bay Minette,Advertising & Promotions - OOS
Coastal Alabama CC,!0000395,Southern View Media LLC ,11/16/2020,700,Unrestricted -Bay Minette,Other Professional Fees - PS
Coastal Alabama CC,!0000396,Synergetics DCS Inc. ,11/16/2020,14484.61,CARES Act - College Relief,Other Professional Fees - PS
Coastal Alabama CC,!0000396,Synergetics DCS Inc. ,11/16/2020,49618,Unrestricted - Atmore,Technology - non capitalized - MS
Coastal Alabama CC,!0000397,Verified Credentials Inc ,11/16/2020,348,Unrestricted -Bay Minette,Other Professional Fees - PS
Coastal Alabama CC,!0000398,W W Grainger Inc ,11/16/2020,670.31,Unrestricted -Bay Minette,Materials and Supplies - MS
Coastal Alabama CC,!0000398,W W Grainger Inc ,11/16/2020,931.88,Unrestricted-Fairhope,Materials and Supplies - MS
Coastal Alabama CC,!0000399,Xerox Corporation ,11/16/2020,175.9,Unrestricted -Fairhope Academy,Short-Term Equipment Rentals - OOS
Coastal Alabama CC,!0000399,Xerox Corporation ,11/16/2020,356.13,Unrestricted-Fairhope,Short-Term Equipment Rentals - OOS
Coastal Alabama CC,!0000399,Xerox Corporation ,11/16/2020,2726.55,Unrestricted -Bay Minette,Short-Term Equipment Rentals - OOS
Coastal Alabama CC,!0000400,Childress Christa,11/19/2020,14.15,Unrestricted-Monroeville,Materials and Supplies - MS
Coastal Alabama CC,!0000400,Childress Christa,11/19/2020,28.88,Unrestricted-Monroeville,Mileage - IS
Coastal Alabama CC,!0000400,Childress Christa,11/19/2020,34.15,Unrestricted-Monroeville,Mileage - OS
Coastal Alabama CC,!0000401,Dulaney Ritchie,11/19/2020,33.35,Unrestricted -Bay Minette,Mileage - IS
Coastal Alabama CC,!0000402,Gibson Katie,11/19/2020,133.4,Talent Search MR,Mileage - IS
Coastal Alabama CC,!0000403,Gilchrist Charles,11/19/2020,90.99,Unrestricted -Bay Minette,Materials and Supplies - MS
Coastal Alabama CC,!0000404,Graves Staford,11/19/2020,150,Unrestricted -Bay Minette,Other Professional Fees - PS
Coastal Alabama CC,!0000405,Harrison Joy,11/19/2020,549.7,Unrestricted-Monroeville,Mileage - IS
Coastal Alabama CC,!0000406,Stokes Mickey,11/19/2020,293.98,Unrestricted -Bay Minette,Maintenance & Repairs  - OOS
Coastal Alabama CC,!0000407,Amazon ,11/19/2020,122.47,Unrestricted -Bay Minette,Materials and Supplies - MS
Coastal Alabama CC,!0000408,Amazon ,11/19/2020,32.98,Student Support Service -BM,Materials and Supplies - MS
Coastal Alabama CC,!0000408,Amazon ,11/19/2020,119.99,Unrestricted -Bay Minette,Materials and Supplies - MS
Coastal Alabama CC,!0000408,Amazon ,11/19/2020,196.07,Unrestricted-Thomasville,Materials and Supplies - MS
Coastal Alabama CC,!0000409,Amazon ,11/19/2020,23.99,Unrestricted-Fairhope,Materials and Supplies - MS
Coastal Alabama CC,!0000409,Amazon ,11/19/2020,272.98,Unrestricted Shared Services,Materials and Supplies - MS
Coastal Alabama CC,!0000409,Amazon ,11/19/2020,441.95,Unrestricted -Brewton,Books - CE
Coastal Alabama CC,!0000410,Apogee Telecom Inc ,11/19/2020,1687.8,Unrestricted -Bay Minette,Technology - non capitalized - MS
Coastal Alabama CC,!0000410,Apogee Telecom Inc ,11/19/2020,2604.76,Housing - Brewton,Other Contractual Services - PS
Coastal Alabama CC,!0000410,Apogee Telecom Inc ,11/19/2020,16000.69,Housing- Bay Minette,Other Contractual Services - PS
Coastal Alabama CC,!0000411,B & W Auto Parts ,11/19/2020,12.24,Unrestricted -Brewton,Materials and Supplies - MS
Coastal Alabama CC,!0000411,B & W Auto Parts ,11/19/2020,18.35,Unrestricted -Brewton,Maintenance & Repairs  - OOS
Coastal Alabama CC,!0000412,CDW LLC ,11/19/2020,692.99,Upward Bound TV,Materials and Supplies - MS
Coastal Alabama CC,!0000413,CDW LLC ,11/19/2020,217.25,Unrestricted-Monroeville,Materials and Supplies - MS
Coastal Alabama CC,!0000413,CDW LLC ,11/19/2020,353.2,Upward Bound TV,Materials and Supplies - MS
Coastal Alabama CC,!0000413,CDW LLC ,11/19/2020,500.64,Unrestricted -Brewton,Technology - non capitalized - MS
Coastal Alabama CC,!0000413,CDW LLC ,11/19/2020,783,Unrestricted-Monroeville,Technology - non capitalized - MS
Coastal Alabama CC,!0000414,Loftin Brett,11/19/2020,207.75,Unrestricted-Monroeville,Materials and Supplies - MS
Coastal Alabama CC,!0000415,North Baldwin Printing LLC ,11/19/2020,435.6,Unrestricted -Bay Minette,Printing and Binding - OOS
Coastal Alabama CC,!0000416,Quill Corporation ,11/19/2020,184.99,Unrestricted -Bay Minette,Materials and Supplies - MS
Coastal Alabama CC,!0000417,Turner Paul,11/19/2020,150,Unrestricted -Bay Minette,Other Professional Fees - PS
Coastal Alabama CC,!0000418,W W Grainger Inc ,11/19/2020,179,Unrestricted -Bay Minette,Materials and Supplies - MS
Coastal Alabama CC,!0000419,W W Grainger Inc ,11/19/2020,2776.57,Unrestricted-Monroeville,Maintenance & Repairs  - OOS
Coastal Alabama CC,!0000420,Blubaugh Kaitlyn,11/24/2020,1800,Softball Booster Funds,Deposits Held for Others - Agency
Coastal Alabama CC,!0000421,Amazon ,11/24/2020,109,Unrestricted-Monroeville,Books - CE
Coastal Alabama CC,!0000422,American Tennis Courts Inc ,11/24/2020,2469,Unrestricted -Bay Minette,Materials and Supplies - MS
Coastal Alabama CC,!0000423,Assurance Service Group Inc ,11/24/2020,9510,Unexpended Plant Gilbertown,Building Alterations - CE
Coastal Alabama CC,!0000424,Cintas Corporation ,11/24/2020,97,Unrestricted - Brookley Field,Other Professional Fees - PS
Coastal Alabama CC,!0000425,HESI ,11/24/2020,1525,Unrestricted Shared Services,Other Professional Fees - PS
Coastal Alabama CC,!0000426,HESI ,11/24/2020,1357,Nursing Testing Fees,Deposits Held for Others – Testing
Coastal Alabama CC,!0000426,HESI ,11/24/2020,2440,Unrestricted Shared Services,Other Professional Fees - PS
Coastal Alabama CC,!0000427,North Baldwin Printing LLC ,11/24/2020,15,Unrestricted -Bay Minette,Materials and Supplies - MS
Coastal Alabama CC,!0000428,Quill Corporation ,11/24/2020,18.36,Unrestricted -Bay Minette,Materials and Supplies - MS
Coastal Alabama CC,!0000429,Xerox Financial Services LLC ,11/24/2020,754,Unrestricted -Bay Minette,Short-Term Equipment Rentals - OOS
Coastal Alabama CC,!0000430,Carlisle Larry,11/30/2020,457.13,Unrestricted-Thomasville,Mileage - IS
Coastal Alabama CC,!0000431,Childress Christa,11/30/2020,63.03,Unrestricted-Monroeville,Materials and Supplies - MS
Coastal Alabama CC,!0000431,Childress Christa,11/30/2020,128.67,Unrestricted-Monroeville,Mileage - IS
Coastal Alabama CC,!0000431,Childress Christa,11/30/2020,152.15,Unrestricted-Monroeville,Mileage - OS
Coastal Alabama CC,!0000432,Cleckler Brittany,11/30/2020,125.24,Unrestricted -Bay Minette,Mileage - IS
Coastal Alabama CC,!0000433,Congiardo Michael,11/30/2020,83.38,Unrestricted -Bay Minette,Mileage - IS
Coastal Alabama CC,!0000434,Day Elizabeth,11/30/2020,133.4,Unrestricted -Bay Minette,Other Travel Expenses - IS
Coastal Alabama CC,!0000434,Day Elizabeth,11/30/2020,228.85,Unrestricted -Bay Minette,Mileage - IS
Coastal Alabama CC,!0000435,Douglas Henry,11/30/2020,47.15,Unrestricted -Gulf Shores,Mileage - IS
Coastal Alabama CC,!0000436,Dunnam Angela,11/30/2020,110.4,Unrestricted -Bay Minette,Mileage - IS
Coastal Alabama CC,!0000437,Faircloth Linda,11/30/2020,101.2,AE-Federal Regular,Mileage - IS
Coastal Alabama CC,!0000438,Godfrey Carman,11/30/2020,50.6,Unrestricted -Bay Minette,Mileage - IS
Coastal Alabama CC,!0000439,Griffin Patricia,11/30/2020,344.8,Unrestricted Shared Services,Bank Operating 
Coastal Alabama CC,!0000440,Holmes Donna,11/30/2020,478.4,Unrestricted-Monroeville,Mileage - IS
Coastal Alabama CC,!0000441,Jordan Rachael,11/30/2020,40.25,Unrestricted -Bay Minette,Mileage - IS
Coastal Alabama CC,!0000442,Killingsworth Jennifer,11/30/2020,88.03,Unrestricted -Bay Minette,Mileage - IS
Coastal Alabama CC,!0000443,Montgomery Jacqueline,11/30/2020,70.15,AE-Federal Regular,Mileage - IS
Coastal Alabama CC,!0000444,Payne Pamela,11/30/2020,56.35,Unrestricted -Bay Minette,Mileage - IS
Coastal Alabama CC,!0000445,Porter Jessica,11/30/2020,161.92,Unrestricted -Bay Minette,Mileage - IS
Coastal Alabama CC,!0000446,Scarborough Tiffany,11/30/2020,50.6,Unrestricted -Bay Minette,Mileage - IS
Coastal Alabama CC,!0000447,Skelton Sheila,11/30/2020,8800,Upward Bound GT,Stipends-Meals
Coastal Alabama CC,!0000448,Stone Heather,11/30/2020,34.5,Unrestricted -Brewton,Mileage - IS
Coastal Alabama CC,!0000449,ACT Inc ,11/30/2020,10175,Nurse Testing Fees,Deposits Held for Others – Testing
Coastal Alabama CC,!0000450,Amazon ,11/30/2020,30,Unrestricted -Brewton,Books - CE
Coastal Alabama CC,!0000451,C & C Plumbing & Servc Co ,11/30/2020,1895,Unrestricted -Bay Minette,Other Professional Fees - PS
Coastal Alabama CC,!0000452,Cintas Corporation ,11/30/2020,3638,Unrestricted-Monroeville,Materials and Supplies - MS
Coastal Alabama CC,!0000453,HESI ,11/30/2020,1098,Unrestricted Shared Services,Other Professional Fees - PS
Coastal Alabama CC,!0000454,Kelly's Turf Pro ,11/30/2020,1300,Unrestricted -Bay Minette,Other Professional Fees - PS
Coastal Alabama CC,!0000455,North Baldwin Printing LLC ,11/30/2020,15,Unrestricted Shared Services,Printing and Binding - OOS
Coastal Alabama CC,!0000456,Pocket Nurse Enterprises Inc. ,11/30/2020,781.32,Unrestricted Shared Services,Materials and Supplies - MS
Coastal Alabama CC,!0000457,University of South Alabama ,11/30/2020,500,Baseball Booster Funds,Deposits Held for Others - Agency
Coastal Alabama CC,!0000458,Barrow Michele,12/3/2020,75,Unrestricted -Bay Minette,Memberships - PS
Coastal Alabama CC,!0000459,Bradley Vinson,12/3/2020,115,Unrestricted -Bay Minette,Mileage - IS
Coastal Alabama CC,!0000460,Dupont Kenny,12/3/2020,1608.59,Unrestricted-Monroeville,Other Travel Expenses - IS
Coastal Alabama CC,!0000461,Fuqua James,12/3/2020,57.5,Unrestricted -Brewton,Mileage - IS
Coastal Alabama CC,!0000462,Gilkerson Erica,12/3/2020,98.33,AE - State Regular,Mileage - IS
Coastal Alabama CC,!0000463,Graham Jean,12/3/2020,514.63,Unrestricted -Bay Minette,Mileage - IS
Coastal Alabama CC,!0000464,Head Daniel,12/3/2020,515.2,Unrestricted-Monroeville,Mileage - IS
Coastal Alabama CC,!0000465,Johnson Regina,12/3/2020,276,Unrestricted-Monroeville,Mileage - IS
Coastal Alabama CC,!0000466,Patel Vijay,12/3/2020,80.5,Unrestricted-Monroeville,Mileage - IS
Coastal Alabama CC,!0000467,Radwitch Mallory,12/3/2020,211.42,Unrestricted -Bay Minette,Overnight (non tax per diem)- IS
Coastal Alabama CC,!0000467,Radwitch Mallory,12/3/2020,359.98,Unrestricted -Bay Minette,Mileage - IS
Coastal Alabama CC,!0000468,Sloan Mark,12/3/2020,75.9,Unrestricted - Brookley Field,Mileage - IS
Coastal Alabama CC,!0000469,Abbco Service Corporation ,12/3/2020,6901,Unrestricted-Thomasville,Other Contractual Services - PS
Coastal Alabama CC,!0000469,Abbco Service Corporation ,12/3/2020,7060.17,Unrestricted-Monroeville,Other Contractual Services - PS
Coastal Alabama CC,!0000470,ACT Inc ,12/3/2020,356,Work Keys Testing,Deposits Held for Others – Testing
Coastal Alabama CC,!0000470,ACT Inc ,12/3/2020,1650,Nurse Testing Fees,Deposits Held for Others – Testing
Coastal Alabama CC,!0000471,Amazon ,12/3/2020,310,Unrestricted-Monroeville,Materials and Supplies - MS
Coastal Alabama CC,!0000472,Amazon ,12/3/2020,515.92,Unrestricted-Monroeville,Materials and Supplies - MS
Coastal Alabama CC,!0000472,Amazon ,12/3/2020,1115.52,Unrestricted-Monroeville,Books - CE
Coastal Alabama CC,!0000473,Apogee Telecom Inc ,12/3/2020,717.55,Unrestricted -Bay Minette,Technology - non capitalized - MS
Coastal Alabama CC,!0000473,Apogee Telecom Inc ,12/3/2020,2604.76,Housing - Brewton,Other Contractual Services - PS
Coastal Alabama CC,!0000473,Apogee Telecom Inc ,12/3/2020,5023.47,Housing- Bay Minette,Other Contractual Services - PS
Coastal Alabama CC,!0000474,Apogee Telecom Inc ,12/3/2020,970.25,Unrestricted -Bay Minette,Technology - non capitalized - MS
Coastal Alabama CC,!0000474,Apogee Telecom Inc ,12/3/2020,10977.22,Housing- Bay Minette,Other Contractual Services - PS
Coastal Alabama CC,!0000475,Arrington Curb & Excavation Inc ,12/3/2020,11900,R&R  Brewton,Maintenance & Repairs  - OOS
Coastal Alabama CC,!0000476,C Spire Business ,12/3/2020,905.9,Unrestricted -Brewton,Technology - non capitalized - MS
Coastal Alabama CC,!0000477,Cintas Corporation ,12/3/2020,31.56,Unrestricted-Fairhope,Athletic Uniforms
Coastal Alabama CC,!0000477,Cintas Corporation ,12/3/2020,134.63,Unrestricted -Bay Minette,Athletic Uniforms
Coastal Alabama CC,!0000477,Cintas Corporation ,12/3/2020,790.56,Unrestricted -Bay Minette,Materials and Supplies - MS
Coastal Alabama CC,!0000478,Club Colors Buyer LLC ,12/3/2020,622.52,Unrestricted-Thomasville,Athletic Clothing-OOS
Coastal Alabama CC,!0000479,Dell Marketing LP ,12/3/2020,273.78,Unrestricted-Monroeville,Technology - non capitalized - MS
Coastal Alabama CC,!0000480,HESI ,12/3/2020,2832,Unrestricted Shared Services,Other Professional Fees - PS
Coastal Alabama CC,!0000481,Heartland Campus Solutions Ecsi ,12/3/2020,60.03,Unrestricted Shared Services,Other Contractual Services - PS
Coastal Alabama CC,!0000482,North Baldwin Printing LLC ,12/3/2020,40,Unrestricted -Bay Minette,Printing and Binding - OOS
Coastal Alabama CC,!0000483,Pocket Nurse Enterprises Inc. ,12/3/2020,255.54,Unrestricted -Bay Minette,Materials and Supplies - MS
Coastal Alabama CC,!0000483,Pocket Nurse Enterprises Inc. ,12/3/2020,8247.86,Unrestricted Shared Services,Materials and Supplies - MS
Coastal Alabama CC,!0000484,Quill Corporation ,12/3/2020,-747.99,AE-Federal Regular,Materials and Supplies - MS
Coastal Alabama CC,!0000484,Quill Corporation ,12/3/2020,776.82,Unrestricted -Bay Minette,Materials and Supplies - MS
Coastal Alabama CC,!0000485,Quill Corporation ,12/3/2020,108.96,Unrestricted -Bay Minette,Materials and Supplies - MS
Coastal Alabama CC,!0000486,W W Grainger Inc ,12/3/2020,220.11,Unrestricted -Brewton,Maintenance & Repairs  - OOS
Coastal Alabama CC,!0000486,W W Grainger Inc ,12/3/2020,606.8,Housing - Brewton,Maintenance & Repairs  - OOS
Coastal Alabama CC,!0000487,Walker Display Inc. ,12/3/2020,162.29,Unrestricted-Fairhope,Materials and Supplies - MS
Coastal Alabama CC,!0000488,Xerox Corporation ,12/3/2020,18.84,Unrestricted -Gulf Shores,Other Contractual Services - PS
Coastal Alabama CC,!0000488,Xerox Corporation ,12/3/2020,27.4,Unrestricted -Bay Minette,Short-Term Equipment Rentals - OOS
Coastal Alabama CC,!0000489,Xerox Corporation ,12/3/2020,103.48,Unrestricted -Bay Minette,Short-Term Equipment Rentals - OOS
Coastal Alabama CC,!0000489,Xerox Corporation ,12/3/2020,175.9,Unrestricted -Brewton,Short-Term Equipment Rentals - OOS
Coastal Alabama CC,!0000489,Xerox Corporation ,12/3/2020,175.9,Unrestricted -Fairhope Academy,Short-Term Equipment Rentals - OOS
Coastal Alabama CC,!0000490,Xerox Financial Services LLC ,12/3/2020,149.64,Student Support Service -BM,Short-Term Equipment Rentals - OOS
Coastal Alabama CC,!0000490,Xerox Financial Services LLC ,12/3/2020,150.03,Unrestricted - Fountain,Short-Term Equipment Rentals - OOS
Coastal Alabama CC,!0000490,Xerox Financial Services LLC ,12/3/2020,162.36,Unrestricted - Atmore,Short-Term Equipment Rentals - OOS
Coastal Alabama CC,!0000490,Xerox Financial Services LLC ,12/3/2020,212.11,Unrestricted-Thomasville,Short-Term Equipment Rentals - OOS
Coastal Alabama CC,!0000490,Xerox Financial Services LLC ,12/3/2020,368.1,Unrestricted -Gulf Shores,Short-Term Equipment Rentals - OOS
Coastal Alabama CC,!0000490,Xerox Financial Services LLC ,12/3/2020,471.96,Unrestricted - Brookley Field,Short-Term Equipment Rentals - OOS
Coastal Alabama CC,!0000490,Xerox Financial Services LLC ,12/3/2020,518.52,Unrestricted-Fairhope,Short-Term Equipment Rentals - OOS
Coastal Alabama CC,!0000490,Xerox Financial Services LLC ,12/3/2020,1097.56,Unrestricted -Brewton,Short-Term Equipment Rentals - OOS
Coastal Alabama CC,!0000490,Xerox Financial Services LLC ,12/3/2020,1217.32,Unrestricted -Bay Minette,Short-Term Equipment Rentals - OOS
Coastal Alabama CC,!0000491,Bell Ginger,12/7/2020,115,Unrestricted-Thomasville,Mileage - IS
Coastal Alabama CC,!0000492,Brasell Mary,12/7/2020,220.8,Talent Search MR,Mileage - IS
Coastal Alabama CC,!0000493,Conerly Lee,12/7/2020,309.35,Unrestricted-Monroeville,Mileage - IS
Coastal Alabama CC,!0000494,Cosker Melanie,12/7/2020,108.56,Unrestricted-Monroeville,Mileage - IS
Coastal Alabama CC,!0000495,Dean Katrina,12/7/2020,98.9,Talent Search MR,Mileage - IS
Coastal Alabama CC,!0000496,Dees Scott,12/7/2020,1415.6,Unrestricted-Thomasville,Mileage - IS
Coastal Alabama CC,!0000497,Diaz Courtney,12/7/2020,129.95,AE - State Regular,Mileage - IS
Coastal Alabama CC,!0000498,Douglas Henry,12/7/2020,104.42,Unrestricted -Gulf Shores,Mileage - IS
Coastal Alabama CC,!0000499,Dunnam Angela,12/7/2020,82.8,Unrestricted -Bay Minette,Mileage - IS
Coastal Alabama CC,!0000500,Duplantis Joshua,12/7/2020,528.43,Unrestricted Shared Services,Mileage - IS
Coastal Alabama CC,!0000501,House Loretta,12/7/2020,276,Unrestricted Shared Services,Mileage - IS
Coastal Alabama CC,!0000502,Lehning John,12/7/2020,115,Unrestricted-Gilbertown,Mileage - IS
Coastal Alabama CC,!0000503,Lewis Rueben,12/7/2020,487.6,Unrestricted-Thomasville,Mileage - IS
Coastal Alabama CC,!0000504,Linam Alisha,12/7/2020,55.2,Unrestricted-Monroeville,Mileage - IS
Coastal Alabama CC,!0000505,McNeil Martha,12/7/2020,165.6,Unrestricted-Monroeville,Mileage - IS
Coastal Alabama CC,!0000506,Philon Andrew,12/7/2020,43.7,Talent Search MR,Mileage - IS
Coastal Alabama CC,!0000507,Smith Merrilyn,12/7/2020,70.15,Unrestricted-Thomasville,Mileage - IS
Coastal Alabama CC,!0000508,Amazon ,12/7/2020,62.44,Unrestricted -Bay Minette,Materials and Supplies - MS
Coastal Alabama CC,!0000509,Atalian US Midwest LL ,12/7/2020,2079.31,Unrestricted-Gilbertown,Other Contractual Services - PS
Coastal Alabama CC,!0000509,Atalian US Midwest LL ,12/7/2020,2748.03,Unrestricted - Brookley Field,Other Contractual Services - PS
Coastal Alabama CC,!0000509,Atalian US Midwest LL ,12/7/2020,2765.73,Unrestricted -Gulf Shores,Other Contractual Services - PS
Coastal Alabama CC,!0000509,Atalian US Midwest LL ,12/7/2020,3393.2,Unrestricted - Atmore,Other Contractual Services - PS
Coastal Alabama CC,!0000509,Atalian US Midwest LL ,12/7/2020,5827.5,Unrestricted-Fairhope,Other Contractual Services - PS
Coastal Alabama CC,!0000509,Atalian US Midwest LL ,12/7/2020,24701.51,Unrestricted -Bay Minette,Other Contractual Services - PS
Coastal Alabama CC,!0000510,CDW LLC ,12/7/2020,454.57,Student Support Service -BM,Materials and Supplies - MS
Coastal Alabama CC,!0000511,Cintas Corporation ,12/7/2020,62.75,Unrestricted - Atmore,Other Contractual Services - PS
Coastal Alabama CC,!0000511,Cintas Corporation ,12/7/2020,236.72,Unrestricted -Brewton,Other Contractual Services - PS
Coastal Alabama CC,!0000512,Cintas Corporation ,12/7/2020,175,Unrestricted-Monroeville,Other Contractual Services - PS
Coastal Alabama CC,!0000512,Cintas Corporation ,12/7/2020,175,Unrestricted-Thomasville,Other Contractual Services - PS
Coastal Alabama CC,!0000513,HESI ,12/7/2020,549,Nursing Testing Fees,Deposits Held for Others – Testing
Coastal Alabama CC,!0000514,Evans Meats Inc ,12/7/2020,1532.3,Unrestricted -Gulf Shores,Culinary Consumables
Coastal Alabama CC,!0000515,Ferguson Enterprises Inc ,12/7/2020,8629.2,Unrestricted -Bay Minette,Materials and Supplies - MS
Coastal Alabama CC,!0000516,Pocket Nurse Enterprises Inc. ,12/7/2020,913.33,Unrestricted -Brewton,Materials and Supplies - MS
Coastal Alabama CC,!0000517,Quill Corporation ,12/7/2020,316.85,Dollar General Grant Revenue,Materials and Supplies - MS
Coastal Alabama CC,!0000517,Quill Corporation ,12/7/2020,2136.23,Upward Bound MR,Materials and Supplies - MS
Coastal Alabama CC,!0000518,W W Grainger Inc ,12/7/2020,211.58,Unrestricted-Fairhope,Materials and Supplies - MS
Coastal Alabama CC,!0000518,W W Grainger Inc ,12/7/2020,325.62,Unrestricted -Gulf Shores,Materials and Supplies - MS
Coastal Alabama CC,!0000518,W W Grainger Inc ,12/7/2020,3874.41,Unrestricted -Bay Minette,Materials and Supplies - MS
Coastal Alabama CC,!0000519,Xerox Corporation ,12/7/2020,174.75,Unrestricted-Gilbertown,Short-Term Equipment Rentals - OOS
Coastal Alabama CC,!0000519,Xerox Corporation ,12/7/2020,196.53,Unrestricted-Monroeville,Short-Term Equipment Rentals - OOS
Coastal Alabama CC,!0000520,Barrow Michele,12/10/2020,135,Unrestricted -Bay Minette,Memberships - PS
Coastal Alabama CC,!0000521,Boykin Lakeshia,12/10/2020,4250,Upward Bound MR,Stipends-Meals
Coastal Alabama CC,!0000522,Burkett Kina,12/10/2020,92,Student Support Service -BR,Mileage - IS
Coastal Alabama CC,!0000523,Carey Cullen,12/10/2020,391,WIOA,Mileage - IS
Coastal Alabama CC,!0000524,Carlisle Larry,12/10/2020,365.7,Unrestricted-Thomasville,Mileage - IS
Coastal Alabama CC,!0000525,Childress Christa,12/10/2020,185.73,Unrestricted-Monroeville,Mileage - IS
Coastal Alabama CC,!0000526,Dorman Scarlet,12/10/2020,410.55,Unrestricted -Bay Minette,Mileage - IS
Coastal Alabama CC,!0000527,Dupont Kenny,12/10/2020,71.91,Unrestricted-Monroeville,Mileage - IS
Coastal Alabama CC,!0000527,Dupont Kenny,12/10/2020,176.49,Unrestricted-Monroeville,Mileage - OS
Coastal Alabama CC,!0000528,Grant Margaret,12/10/2020,289.8,Unrestricted -Bay Minette,Mileage - IS
Coastal Alabama CC,!0000529,Hornady Leslie,12/10/2020,137.43,Unrestricted-Monroeville,Mileage - IS
Coastal Alabama CC,!0000530,Joyner Holley,12/10/2020,194.35,Unrestricted-Monroeville,Mileage - IS
Coastal Alabama CC,!0000531,Mitchell Yolundra,12/10/2020,67.85,Unrestricted -Brewton,Mileage - IS
Coastal Alabama CC,!0000532,Patterson Randall,12/10/2020,55.2,Unrestricted-Monroeville,Mileage - IS
Coastal Alabama CC,!0000533,Philyaw Jasmine,12/10/2020,285.2,Unrestricted -Bay Minette,Mileage - IS
Coastal Alabama CC,!0000534,Robinson Barbara,12/10/2020,171.36,Unrestricted -Bay Minette,Mileage - IS
Coastal Alabama CC,!0000535,Watters Augusta,12/10/2020,250,Upward Bound TV,Stipends-Meals
Coastal Alabama CC,!0000536,Amazon ,12/10/2020,6.59,Unrestricted -Bay Minette,Materials and Supplies - MS
Coastal Alabama CC,!0000536,Amazon ,12/10/2020,174.2,Unrestricted -Brewton,Materials and Supplies - MS
Coastal Alabama CC,!0000536,Amazon ,12/10/2020,406.44,Unrestricted-Monroeville,Books - CE
Coastal Alabama CC,!0000536,Amazon ,12/10/2020,506.22,Unrestricted-Fairhope,Materials and Supplies - MS
Coastal Alabama CC,!0000537,Bay Minette Building Supply ,12/10/2020,186.63,Other Auxiliary- Bay Minette,Materials and Supplies - MS
Coastal Alabama CC,!0000537,Bay Minette Building Supply ,12/10/2020,611.88,Unrestricted -Bay Minette,Materials and Supplies - MS
Coastal Alabama CC,!0000538,Bradley Investmentsinc. ,12/10/2020,200,Unrestricted -Bay Minette,Memberships - PS
Coastal Alabama CC,!0000539,Justbats.com ,12/10/2020,1199.89,Unrestricted -Brewton,Materials and Supplies - MS
Coastal Alabama CC,!0000540,Kelly's Turf Pro ,12/10/2020,150,Unrestricted -Bay Minette,Other Professional Fees - PS
Coastal Alabama CC,!0000541,KONE Inc. ,12/10/2020,441.7,Unrestricted-Fairhope,Maintenance & Repairs  - OOS
Coastal Alabama CC,!0000541,KONE Inc. ,12/10/2020,753.13,Unrestricted -Bay Minette,Maintenance & Repairs  - OOS
Coastal Alabama CC,!0000542,Pocket Nurse Enterprises Inc. ,12/10/2020,1408.17,Unrestricted Shared Services,Materials and Supplies - MS
Coastal Alabama CC,!0000543,The Bank of New York Mellon Trust Company NA ,12/10/2020,1000,Unrestricted Shared Services,Trustee Handling Fee - PS
Coastal Alabama CC,!0000544,Xerox Corporation ,12/10/2020,174.94,Unrestricted-Jackson,Short-Term Equipment Rentals - OOS
Coastal Alabama CC,!0000544,Xerox Corporation ,12/10/2020,227.48,Unrestricted-Thomasville,Short-Term Equipment Rentals - OOS
Coastal Alabama CC,!0000544,Xerox Corporation ,12/10/2020,242.3,Unrestricted - Atmore,Short-Term Equipment Rentals - OOS
Coastal Alabama CC,!0000544,Xerox Corporation ,12/10/2020,313.61,Unrestricted-Monroeville,Short-Term Equipment Rentals - OOS
Coastal Alabama CC,!0000544,Xerox Corporation ,12/10/2020,1504.16,Unrestricted -Bay Minette,Short-Term Equipment Rentals - OOS
Coastal Alabama CC,!0000545,Dell Marketing LP ,12/11/2020,719200,CARES Act - GEERF Education,Computer Related M&S - MS
Coastal Alabama CC,!0000546,Georgia Pacific ,12/11/2020,7500,PCT GP Money,Deposits Held for Others - Agency
Coastal Alabama CC,!0000547,SHI International Corp. ,12/11/2020,169056.32,CARES Act - GEERF Education,Computer Related M&S - MS
Coastal Alabama CC,!0000548,Blubaugh Kaitlyn,12/15/2020,1800,Softball Booster Funds,Deposits Held for Others - Agency
Coastal Alabama CC,!0000549,Amazon ,12/15/2020,21.99,Unrestricted -Bay Minette,Materials and Supplies - MS
Coastal Alabama CC,!0000549,Amazon ,12/15/2020,84.45,Unrestricted-Fairhope,Materials and Supplies - MS
Coastal Alabama CC,!0000549,Amazon ,12/15/2020,588.07,Unrestricted -Brewton,Books - CE
Coastal Alabama CC,!0000550,Assessment Technologies Institute LLC ,12/15/2020,50,Unrestricted Shared Services,Materials and Supplies - MS
Coastal Alabama CC,!0000551,Assurance Service Group Inc ,12/15/2020,25037,Unexpended Plant Thomasville,Building Alterations - CE
Coastal Alabama CC,!0000551,Assurance Service Group Inc ,12/15/2020,32591.33,R&R Bay Minette,Maintenance & Repairs  - OOS
Coastal Alabama CC,!0000552,Bud's Refrigeration Service LLC ,12/15/2020,3772.12,Housing - Brewton,Maintenance & Repairs  - OOS
Coastal Alabama CC,!0000553,C Spire Business ,12/15/2020,2950,Unrestricted -Bay Minette,Technology - non capitalized - MS
Coastal Alabama CC,!0000554,Central Baldwin Locksmiths LLC ,12/15/2020,90,Unrestricted -Gulf Shores,Maintenance & Repairs  - OOS
Coastal Alabama CC,!0000554,Central Baldwin Locksmiths LLC ,12/15/2020,160,Housing- Bay Minette,Other Professional Fees - PS
Coastal Alabama CC,!0000554,Central Baldwin Locksmiths LLC ,12/15/2020,165,Other Auxiliary- Bay Minette,Other Professional Fees - PS
Coastal Alabama CC,!0000554,Central Baldwin Locksmiths LLC ,12/15/2020,165,Unrestricted-Fairhope,Maintenance & Repairs  - OOS
Coastal Alabama CC,!0000554,Central Baldwin Locksmiths LLC ,12/15/2020,2795,Unrestricted-Fairhope,Other Professional Fees - PS
Coastal Alabama CC,!0000555,Cintas Corporation ,12/15/2020,1819,Unrestricted -Bay Minette,Technology - non capitalized - MS
Coastal Alabama CC,!0000556,EBSCO Industries Inc ,12/15/2020,1928.18,Unrestricted -Brewton,Subscriptions - OOS
Coastal Alabama CC,!0000557,Ferguson Enterprises Inc ,12/15/2020,22.31,Unrestricted -Bay Minette,Materials and Supplies - MS
Coastal Alabama CC,!0000558,Pocket Nurse Enterprises Inc. ,12/15/2020,2212.8,Unrestricted -Brewton,Materials and Supplies - MS
Coastal Alabama CC,!0000559,Quill Corporation ,12/15/2020,72.16,Unrestricted - Brookley Field,Materials and Supplies - MS
Coastal Alabama CC,!0000559,Quill Corporation ,12/15/2020,94.99,Unrestricted -Bay Minette,Materials and Supplies - MS
Coastal Alabama CC,!0000560,Southern View Media LLC ,12/15/2020,700,Unrestricted -Bay Minette,Other Professional Fees - PS
Coastal Alabama CC,!0000561,Staples Contract & Commercial Inc ,12/15/2020,371.2,Unrestricted -Bay Minette,Materials and Supplies - MS
Coastal Alabama CC,!0000562,Stuart C. Irby Co. ,12/15/2020,570,Unrestricted-Thomasville,Materials and Supplies - MS
Coastal Alabama CC,!0000563,W W Grainger Inc ,12/15/2020,48.18,Unrestricted -Gulf Shores,Materials and Supplies - MS
Coastal Alabama CC,!0000564,Xerox Corporation ,12/15/2020,297.13,Unrestricted-Fairhope,Short-Term Equipment Rentals - OOS
Coastal Alabama CC,!0000564,Xerox Corporation ,12/15/2020,860.01,Unrestricted -Bay Minette,Short-Term Equipment Rentals - OOS
Coastal Alabama CC,!0000565,Xerox Financial Services LLC ,12/15/2020,410,Unrestricted -Gulf Shores,Short-Term Equipment Rentals - OOS
Coastal Alabama CC,!0000566,Ayers David,12/18/2020,276.3,Unrestricted -Bay Minette,Mileage - IS
Coastal Alabama CC,!0000567,Chancery Jennifer,12/18/2020,132.25,Unrestricted -Brewton,Mileage - IS
Coastal Alabama CC,!0000568,Cribbs Nigel,12/18/2020,503.7,Unrestricted-Monroeville,Mileage - IS
Coastal Alabama CC,!0000569,Cunningham Carl,12/18/2020,173.65,Student Support Service -BM,Mileage - IS
Coastal Alabama CC,!0000570,Dupont Kenny,12/18/2020,29.29,Unrestricted-Monroeville,Mileage - IS
Coastal Alabama CC,!0000570,Dupont Kenny,12/18/2020,71.91,Unrestricted-Monroeville,Mileage - OS
Coastal Alabama CC,!0000571,Ebert Tammy,12/18/2020,208.15,Unrestricted Shared Services,Mileage - IS
Coastal Alabama CC,!0000572,Etheridge Rachel,12/18/2020,607.2,Unrestricted-Thomasville,Mileage - IS
Coastal Alabama CC,!0000573,Ethington Tracie,12/18/2020,48.32,Unrestricted-Fairhope,Mileage - IS
Coastal Alabama CC,!0000574,Fields Rebecca,12/18/2020,83.7,Ready to Work ,Mileage - IS
Coastal Alabama CC,!0000575,Holloway Jennifer,12/18/2020,33.35,Unrestricted-Fairhope,Mileage - IS
Coastal Alabama CC,!0000576,Moore Kiki,12/18/2020,230,Unrestricted-Thomasville,Mileage - IS
Coastal Alabama CC,!0000577,Patterson Randall,12/18/2020,57.5,Unrestricted-Monroeville,Mileage - IS
Coastal Alabama CC,!0000578,Pimperl Elliot,12/18/2020,233.45,Unrestricted -Bay Minette,Mileage - IS
Coastal Alabama CC,!0000579,Spivey Henry,12/18/2020,47.15,Unrestricted -Gulf Shores,Mileage - IS
Coastal Alabama CC,!0000580,Vogler Cherie,12/18/2020,140.3,Unrestricted -Bay Minette,Mileage - IS
Coastal Alabama CC,!0000581,Warren Audra,12/18/2020,33.35,Unrestricted-Fairhope,Mileage - IS
Coastal Alabama CC,!0000582,Amazon ,12/18/2020,264.87,Student Support Service -BM,Materials and Supplies - MS
Coastal Alabama CC,!0000583,Assurance Service Group Inc ,12/18/2020,13254.77,R&R Bay Minette,Maintenance & Repairs  - OOS
Coastal Alabama CC,!0000584,C Spire Business ,12/18/2020,1778.55,Unrestricted Shared Services,Other Contractual Services - PS
Coastal Alabama CC,!0000585,Central Baldwin Locksmiths LLC ,12/18/2020,75,Unrestricted -Bay Minette,Maintenance & Repairs  - OOS
Coastal Alabama CC,!0000586,Cintas Corporation ,12/18/2020,158.5,Unrestricted - Brookley Field,Materials and Supplies - MS
Coastal Alabama CC,!0000587,Deas Building Supply Inc ,12/18/2020,92.32,Unrestricted-Monroeville,Maintenance & Repairs  - OOS
Coastal Alabama CC,!0000587,Deas Building Supply Inc ,12/18/2020,92.32,Unrestricted-Monroeville,Materials and Supplies - MS
Coastal Alabama CC,!0000588,EBSCO Industries Inc ,12/18/2020,2891.66,Unrestricted-Monroeville,Subscriptions - OOS
Coastal Alabama CC,!0000589,Ferguson Enterprises Inc ,12/18/2020,56.94,Unrestricted -Bay Minette,Materials and Supplies - MS
Coastal Alabama CC,!0000590,North Baldwin Printing LLC ,12/18/2020,15,Unrestricted -Bay Minette,Materials and Supplies - MS
Coastal Alabama CC,!0000591,North Baldwin Printing LLC ,12/18/2020,60,Unrestricted -Brewton,Materials and Supplies - MS
Coastal Alabama CC,!0000592,South Baldwin Chamber of Commerce ,12/18/2020,713,Unrestricted -Bay Minette,Memberships - PS
Coastal Alabama CC,!0000593,Staples Contract & Commercial Inc ,12/18/2020,1121.1,Upward Bound TV,Materials and Supplies - MS
Coastal Alabama CC,!0000594,The Clarke County Democrat Inc ,12/18/2020,30,Unrestricted-Monroeville,Subscriptions - OOS
Coastal Alabama CC,!0000595,The Clarke County Democrat Inc ,12/18/2020,540,Unrestricted -Bay Minette,Advertising & Promotions - OOS
Coastal Alabama CC,!0000596,W W Grainger Inc ,12/18/2020,211.58,Unrestricted-Fairhope,Materials and Supplies - MS
Coastal Alabama CC,!0000596,W W Grainger Inc ,12/18/2020,7967.6,Special Populations,Equipment - non capitalized - MS
Coastal Alabama CC,!0000597,Xerox Corporation ,12/18/2020,646.47,Unrestricted-Thomasville,Short-Term Equipment Rentals - OOS
Coastal Alabama CC,!0000598,Apogee Telecom Inc ,12/18/2020,1687.8,Unrestricted -Bay Minette,Technology - non capitalized - MS
Coastal Alabama CC,!0000598,Apogee Telecom Inc ,12/18/2020,2604.76,Housing - Brewton,Other Contractual Services - PS
Coastal Alabama CC,!0000598,Apogee Telecom Inc ,12/18/2020,16000.69,Housing- Bay Minette,Other Contractual Services - PS
Coastal Alabama CC,!0000599,Diaz Courtney,12/22/2020,162.15,AE - State Regular,Mileage - IS
Coastal Alabama CC,!0000600,Einfeld Dana,12/22/2020,51.18,Unrestricted-Fairhope,Mileage - IS
Coastal Alabama CC,!0000601,Faircloth Linda,12/22/2020,133.4,AE-Federal Regular,Mileage - IS
Coastal Alabama CC,!0000602,Fields Rebecca,12/22/2020,242.65,Ready to Work ,Mileage - IS
Coastal Alabama CC,!0000603,Fuqua James,12/22/2020,205.99,Softball Booster Funds,Deposits Held for Others - Agency
Coastal Alabama CC,!0000604,Gibson Katie,12/22/2020,150.08,Talent Search MR,Mileage - IS
Coastal Alabama CC,!0000605,Gilkerson Erica,12/22/2020,152.38,AE - State Regular,Mileage - IS
Coastal Alabama CC,!0000606,Head Daniel,12/22/2020,611.8,Unrestricted -Bay Minette,Mileage - IS
Coastal Alabama CC,!0000607,Kohen Mattie,12/22/2020,393.3,Unrestricted-Monroeville,Mileage - IS
Coastal Alabama CC,!0000608,Lake Charles,12/22/2020,115,Unrestricted -Bay Minette,Mileage - IS
Coastal Alabama CC,!0000609,Lofton Sr Anthony,12/22/2020,75,Unrestricted -Bay Minette,Other Professional Fees - PS
Coastal Alabama CC,!0000610,Mack Susan,12/22/2020,274.85,Unrestricted -Brewton,Mileage - IS
Coastal Alabama CC,!0000611,Richerson Stacia,12/22/2020,257,Payroll Clearing Fund,Payroll Clearing
Coastal Alabama CC,!0000612,Williford Joseph,12/22/2020,70.15,Unrestricted -Bay Minette,Mileage - IS
Coastal Alabama CC,!0000614,Amazon ,12/22/2020,278,Unrestricted -Bay Minette,Materials and Supplies - MS
Coastal Alabama CC,!0000614,Amazon ,12/22/2020,518.83,Unrestricted -Gulf Shores,Materials and Supplies - MS
Coastal Alabama CC,!0000614,Amazon ,12/22/2020,2210.6,Student Support Service - MR,Materials and Supplies - MS
Coastal Alabama CC,!0000615,C & C Plumbing & Servc Co ,12/22/2020,550,Unrestricted-Monroeville,Maintenance & Repairs  - OOS
Coastal Alabama CC,!0000616,Ferguson Enterprises Inc ,12/22/2020,509.31,CARES Act - College Relief,Internal Purchases - MS
Coastal Alabama CC,!0000617,Kelly's Turf Pro ,12/22/2020,3800,Unrestricted-Monroeville,Other Professional Fees - PS
Coastal Alabama CC,!0000618,Notion Labs Inc ,12/22/2020,1056,NSF ,Materials and Supplies - MS
Coastal Alabama CC,!0000619,Quill Corporation ,12/22/2020,283.56,Unrestricted -Bay Minette,Materials and Supplies - MS
Coastal Alabama CC,!0000620,Scenario Learning LLC ,12/22/2020,6920,Unrestricted -Bay Minette,Memberships - PS
Coastal Alabama CC,!0000621,Staples Contract & Commercial Inc ,12/22/2020,73.68,Food Services- Bay Minette,Materials and Supplies - MS
Coastal Alabama CC,!0000622,Xerox Corporation ,12/22/2020,11992.31,Unrestricted -Bay Minette,Technology - non capitalized - MS
Coastal Alabama CC,!0000623,Abbco Service Corporation ,1/4/2021,13961.17,Unrestricted-Monroeville,Other Contractual Services - PS
Coastal Alabama CC,!0000624,Amazon ,1/4/2021,61.38,Unrestricted -Bay Minette,Materials and Supplies - MS
Coastal Alabama CC,!0000625,Carolina Biological Supply Co ,1/4/2021,502.7,Unrestricted-Monroeville,Materials and Supplies - MS
Coastal Alabama CC,!0000626,CDW LLC ,1/4/2021,536.17,Unrestricted-Monroeville,Technology - non capitalized - MS
Coastal Alabama CC,!0000627,Jerry Pate Turf & Irrigation Inc ,1/4/2021,3284.56,Unrestricted -Brewton,Maintenance & Repairs  - OOS
Coastal Alabama CC,!0000628,Cleckler Brittany,1/5/2021,93.84,Unrestricted -Bay Minette,Mileage - IS
Coastal Alabama CC,!0000629,Congiardo Michael,1/5/2021,83.38,Unrestricted -Bay Minette,Mileage - IS
Coastal Alabama CC,!0000630,Duplantis Joshua,1/5/2021,227.13,Unrestricted Shared Services,Mileage - IS
Coastal Alabama CC,!0000631,Fuqua James,1/5/2021,92,Unrestricted -Brewton,Mileage - IS
Coastal Alabama CC,!0000632,Godfrey Carman,1/5/2021,131.1,Unrestricted -Bay Minette,Mileage - IS
Coastal Alabama CC,!0000633,Graham Jean,1/5/2021,124.2,Unrestricted -Bay Minette,Mileage - IS
Coastal Alabama CC,!0000634,Grant Margaret,1/5/2021,182.85,Unrestricted -Bay Minette,Mileage - IS
Coastal Alabama CC,!0000635,Hinote Kimberly,1/5/2021,195.5,Unrestricted -Bay Minette,Mileage - IS
Coastal Alabama CC,!0000636,Killingsworth Jennifer,1/5/2021,133.4,Unrestricted -Bay Minette,Mileage - IS
Coastal Alabama CC,!0000637,Philyaw Jasmine,1/5/2021,119.03,Unrestricted -Bay Minette,Mileage - IS
Coastal Alabama CC,!0000638,Porter Jessica,1/5/2021,91.66,Unrestricted -Bay Minette,Mileage - IS
Coastal Alabama CC,!0000639,Abbco Service Corporation ,1/5/2021,6901,Unrestricted-Thomasville,Other Contractual Services - PS
Coastal Alabama CC,!0000639,Abbco Service Corporation ,1/5/2021,7060.17,Unrestricted-Monroeville,Other Contractual Services - PS
Coastal Alabama CC,!0000640,Amazon ,1/5/2021,28.96,Unrestricted - Brookley Field,Materials and Supplies - MS
Coastal Alabama CC,!0000640,Amazon ,1/5/2021,165,Housing- Bay Minette,Materials and Supplies - MS
Coastal Alabama CC,!0000640,Amazon ,1/5/2021,167,WIOA,Materials and Supplies - MS
Coastal Alabama CC,!0000640,Amazon ,1/5/2021,607.26,Unrestricted-Fairhope,Materials and Supplies - MS
Coastal Alabama CC,!0000640,Amazon ,1/5/2021,1882.65,Unrestricted -Bay Minette,Materials and Supplies - MS
Coastal Alabama CC,!0000641,Apogee Telecom Inc ,1/5/2021,1687.8,Unrestricted -Bay Minette,Technology - non capitalized - MS
Coastal Alabama CC,!0000641,Apogee Telecom Inc ,1/5/2021,2604.76,Housing - Brewton,Other Contractual Services - PS
Coastal Alabama CC,!0000641,Apogee Telecom Inc ,1/5/2021,16000.69,Housing- Bay Minette,Other Contractual Services - PS
Coastal Alabama CC,!0000642,Asset Panda LLC ,1/5/2021,5074,Unrestricted -Bay Minette,Technology - non capitalized - MS
Coastal Alabama CC,!0000643,Carolina Biological Supply Co ,1/5/2021,407.45,Unrestricted -Bay Minette,Materials and Supplies - MS
Coastal Alabama CC,!0000644,Club Colors Buyer LLC ,1/5/2021,110.39,Unrestricted-Monroeville,Materials and Supplies - MS
Coastal Alabama CC,!0000644,Club Colors Buyer LLC ,1/5/2021,331.17,Unrestricted-Gilbertown,Materials and Supplies - MS
Coastal Alabama CC,!0000644,Club Colors Buyer LLC ,1/5/2021,863.62,Unrestricted-Thomasville,Athletic Clothing-OOS
Coastal Alabama CC,!0000645,Ferguson Enterprises Inc ,1/5/2021,245,Unrestricted -Bay Minette,Materials and Supplies - MS
Coastal Alabama CC,!0000646,Global Furniture Group Inc ,1/5/2021,2329.04,Unrestricted -Gulf Shores,Materials and Supplies - MS
Coastal Alabama CC,!0000647,Pocket Nurse Enterprises Inc. ,1/5/2021,245,Unrestricted -Bay Minette,Materials and Supplies - MS
Coastal Alabama CC,!0000648,Pocket Nurse Enterprises Inc. ,1/5/2021,1523.06,Unrestricted -Brewton,Materials and Supplies - MS
Coastal Alabama CC,!0000649,Showbiz Theatrical Services Inc. ,1/5/2021,225,Unrestricted -Bay Minette,Computer Related M&S - MS
Coastal Alabama CC,!0000650,Southern View Media LLC ,1/5/2021,700,Unrestricted -Bay Minette,Other Professional Fees - PS
Coastal Alabama CC,!0000651,Staples Contract & Commercial Inc ,1/5/2021,348.54,Unrestricted -Bay Minette,Materials and Supplies - MS
Coastal Alabama CC,!0000652,Thomasville Lions Club ,1/5/2021,25,Unrestricted -Bay Minette,Other Professional Fees - PS
Coastal Alabama CC,!0000653,Verified Credentials Inc ,1/5/2021,191.4,Unrestricted -Bay Minette,Other Professional Fees - PS
Coastal Alabama CC,!0000654,Xerox Corporation ,1/5/2021,66.99,Student Support Service -BM,Short-Term Equipment Rentals - OOS
Coastal Alabama CC,!0000654,Xerox Corporation ,1/5/2021,11992.31,Unrestricted -Bay Minette,Technology - non capitalized - MS
Coastal Alabama CC,!0000655,Carey Cullen,1/7/2021,377.2,WIOA,Mileage - IS
Coastal Alabama CC,!0000656,Cooper Adrienne,1/7/2021,33.35,Unrestricted-Fairhope,Mileage - IS
Coastal Alabama CC,!0000657,McNeil Martha,1/7/2021,220.8,Unrestricted-Monroeville,Mileage - IS
Coastal Alabama CC,!0000658,Murphy Melinda,1/7/2021,307.05,Unrestricted -Bay Minette,Mileage - IS
Coastal Alabama CC,!0000659,Pitts Linda,1/7/2021,138,Unrestricted -Bay Minette,Mileage - IS
Coastal Alabama CC,!0000660,Scarborough Tiffany,1/7/2021,128.23,Unrestricted -Bay Minette,Mileage - IS
Coastal Alabama CC,!0000661,Amazon ,1/7/2021,-266.99,Unrestricted-Fairhope,Materials and Supplies - MS
Coastal Alabama CC,!0000661,Amazon ,1/7/2021,204.45,Housing- Bay Minette,Materials and Supplies - MS
Coastal Alabama CC,!0000661,Amazon ,1/7/2021,454.73,Unrestricted -Gulf Shores,Materials and Supplies - MS
Coastal Alabama CC,!0000661,Amazon ,1/7/2021,2464.02,Unrestricted -Bay Minette,Materials and Supplies - MS
Coastal Alabama CC,!0000661,Amazon ,1/7/2021,3223.7,Student Support Service -BM,Materials and Supplies - MS
Coastal Alabama CC,!0000662,Atalian US Midwest LL ,1/7/2021,500,Unrestricted -Gulf Shores,Other Contractual Services - PS
Coastal Alabama CC,!0000663,Carolina Biological Supply Co ,1/7/2021,290.06,Unrestricted -Brewton,Materials and Supplies - MS
Coastal Alabama CC,!0000664,Cintas Corporation ,1/7/2021,140,Unrestricted-Monroeville,Other Contractual Services - PS
Coastal Alabama CC,!0000664,Cintas Corporation ,1/7/2021,140,Unrestricted-Thomasville,Other Contractual Services - PS
Coastal Alabama CC,!0000665,Cintas Corporation ,1/7/2021,39.45,Unrestricted-Fairhope,Athletic Uniforms
Coastal Alabama CC,!0000665,Cintas Corporation ,1/7/2021,50.2,Unrestricted - Atmore,Other Contractual Services - PS
Coastal Alabama CC,!0000665,Cintas Corporation ,1/7/2021,147.95,Unrestricted -Brewton,Other Contractual Services - PS
Coastal Alabama CC,!0000665,Cintas Corporation ,1/7/2021,238.25,Unrestricted -Bay Minette,Athletic Uniforms
Coastal Alabama CC,!0000665,Cintas Corporation ,1/7/2021,483.47,Unrestricted -Bay Minette,Materials and Supplies - MS
Coastal Alabama CC,!0000666,HESI ,1/7/2021,704,Unrestricted Shared Services,Other Professional Fees - PS
Coastal Alabama CC,!0000667,Kelly's Turf Pro ,1/7/2021,450,Unrestricted -Bay Minette,Other Professional Fees - PS
Coastal Alabama CC,!0000668,Pocket Nurse Enterprises Inc. ,1/7/2021,581.1,Unrestricted Shared Services,Materials and Supplies - MS
Coastal Alabama CC,!0000669,Staples Contract & Commercial Inc ,1/7/2021,86.14,Unrestricted-Fairhope,Materials and Supplies - MS
Coastal Alabama CC,!0000670,W W Grainger Inc ,1/7/2021,96.9,Housing- Bay Minette,Materials and Supplies - MS
Coastal Alabama CC,!0000670,W W Grainger Inc ,1/7/2021,138.96,Unrestricted -Bay Minette,Materials and Supplies - MS
Coastal Alabama CC,!0000670,W W Grainger Inc ,1/7/2021,1678.49,Unrestricted - Atmore,Materials and Supplies - MS
Coastal Alabama CC,!0000671,Xerox Corporation ,1/7/2021,25.12,Unrestricted -Gulf Shores,Short-Term Equipment Rentals - OOS
Coastal Alabama CC,!0000672,Xerox Corporation ,1/7/2021,175.9,Unrestricted -Fairhope Academy,Short-Term Equipment Rentals - OOS
Coastal Alabama CC,!0000672,Xerox Corporation ,1/7/2021,175.9,Unrestricted-Fairhope,Short-Term Equipment Rentals - OOS
Coastal Alabama CC,!0000673,Lee Stuart,1/8/2021,100.05,AE - State Regular,Mileage - IS
Coastal Alabama CC,!0000674,Nims Misti,1/8/2021,12.35,Unrestricted -Brewton,Materials and Supplies - MS
Coastal Alabama CC,!0000675,Amazon ,1/8/2021,109.99,Unrestricted -Bay Minette,Materials and Supplies - MS
Coastal Alabama CC,!0000676,C & C Plumbing & Servc Co ,1/8/2021,3250,R&R  Fairhope,Maintenance & Repairs  - OOS
Coastal Alabama CC,!0000677,Ferguson Enterprises Inc ,1/8/2021,567.27,Unrestricted-Fairhope,Maintenance & Repairs  - OOS
Coastal Alabama CC,!0000678,Pocket Nurse Enterprises Inc. ,1/8/2021,446.92,Unrestricted -Brewton,Materials and Supplies - MS
Coastal Alabama CC,!0000679,Staples Contract & Commercial Inc ,1/8/2021,157.29,Unrestricted -Brewton,Materials and Supplies - MS
Coastal Alabama CC,!0000680,W W Grainger Inc ,1/8/2021,289.92,Unrestricted-Thomasville,Materials and Supplies - MS
Coastal Alabama CC,!0000681,Xerox Corporation ,1/8/2021,174.75,Unrestricted-Gilbertown,Short-Term Equipment Rentals - OOS
Coastal Alabama CC,!0000681,Xerox Corporation ,1/8/2021,175.9,Unrestricted -Brewton,Short-Term Equipment Rentals - OOS
Coastal Alabama CC,!0000681,Xerox Corporation ,1/8/2021,196.53,Unrestricted-Monroeville,Short-Term Equipment Rentals - OOS
Coastal Alabama CC,!0000682,Amazon ,1/14/2021,95.92,Talent Search MR,Materials and Supplies - MS
Coastal Alabama CC,!0000682,Amazon ,1/14/2021,179.41,Unrestricted-Fairhope,Materials and Supplies - MS
Coastal Alabama CC,!0000683,C Spire Business ,1/14/2021,859.31,Unrestricted Shared Services,Other Contractual Services - PS
Coastal Alabama CC,!0000683,C Spire Business ,1/14/2021,2950,Unrestricted -Bay Minette,Technology - non capitalized - MS
Coastal Alabama CC,!0000684,CDW LLC ,1/14/2021,-13.92,Unrestricted -Bay Minette,Materials and Supplies - MS
Coastal Alabama CC,!0000684,CDW LLC ,1/14/2021,292.2,Unrestricted-Monroeville,Technology - non capitalized - MS
Coastal Alabama CC,!0000685,Dell Marketing LP ,1/14/2021,3386.04,Unrestricted -Brewton,Technology - non capitalized - MS
Coastal Alabama CC,!0000686,EBSCO Industries Inc ,1/14/2021,14764.15,Unrestricted -Bay Minette,Subscriptions - OOS
Coastal Alabama CC,!0000687,EyeOn Digital Productions Inc ,1/14/2021,7500,Unrestricted -Bay Minette,Other Professional Fees - PS
Coastal Alabama CC,!0000688,Ferguson Enterprises Inc ,1/14/2021,245.45,Unrestricted -Bay Minette,Materials and Supplies - MS
Coastal Alabama CC,!0000689,Hand Arendall Harrison Sale LLC ,1/14/2021,22392.18,Unrestricted Shared Services,Legal Services - PS
Coastal Alabama CC,!0000690,KONE Inc. ,1/14/2021,441.7,Unrestricted-Fairhope,Maintenance & Repairs  - OOS
Coastal Alabama CC,!0000690,KONE Inc. ,1/14/2021,770.92,Unrestricted -Bay Minette,Maintenance & Repairs  - OOS
Coastal Alabama CC,!0000691,North Baldwin Printing LLC ,1/14/2021,45,Unrestricted -Bay Minette,Printing and Binding - OOS
Coastal Alabama CC,!0000692,Pocket Nurse Enterprises Inc. ,1/14/2021,147.4,Unrestricted -Bay Minette,Materials and Supplies - MS
Coastal Alabama CC,!0000692,Pocket Nurse Enterprises Inc. ,1/14/2021,266.05,Unrestricted Shared Services,Materials and Supplies - MS
Coastal Alabama CC,!0000693,Pr Media ,1/14/2021,318.75,Unrestricted -Bay Minette,Advertising & Promotions - OOS
Coastal Alabama CC,!0000694,Staples Contract & Commercial Inc ,1/14/2021,298.92,Unrestricted -Bay Minette,Materials and Supplies - MS
Coastal Alabama CC,!0000695,Stuart C. Irby Co. ,1/14/2021,98.64,Unrestricted-Monroeville,Maintenance & Repairs  - OOS
Coastal Alabama CC,!0000696,Synergetics DCS Inc. ,1/14/2021,92614.75,CARES Act - College Relief,Other Professional Fees - PS
Coastal Alabama CC,!0000697,W W Grainger Inc ,1/14/2021,62.52,Unrestricted -Bay Minette,Materials and Supplies - MS
Coastal Alabama CC,!0000698,Barnett James,1/20/2021,172.5,Unrestricted - Atmore,Mileage - IS
Coastal Alabama CC,!0000699,Bell Ginger,1/20/2021,109.2,Unrestricted-Thomasville,Mileage - IS
Coastal Alabama CC,!0000700,Brasell Mary,1/20/2021,341.55,Talent Search MR,Mileage - IS
Coastal Alabama CC,!0000701,Busby Candis,1/20/2021,89.7,Talent Search MR,Mileage - IS
Coastal Alabama CC,!0000702,Dean Katrina,1/20/2021,182.28,Talent Search MR,Mileage - IS
Coastal Alabama CC,!0000703,Harrison Joy,1/20/2021,331.2,Unrestricted-Monroeville,Mileage - IS
Coastal Alabama CC,!0000704,Jones Joann,1/20/2021,55.2,Talent Search MR,Mileage - IS
Coastal Alabama CC,!0000705,Skelton Sheila,1/20/2021,332.35,Upward Bound GT,Mileage - IS
Coastal Alabama CC,!0000706,Watters Augusta,1/20/2021,227,Upward Bound TV,Mileage - IS
Coastal Alabama CC,!0000707,Alabama Restaurant and Hospitality Alliance Inc ,1/20/2021,250,Unrestricted -Gulf Shores,Memberships - PS
Coastal Alabama CC,!0000708,Amazon ,1/20/2021,206.57,Unrestricted-Fairhope,Materials and Supplies - MS
Coastal Alabama CC,!0000708,Amazon ,1/20/2021,299.75,Unrestricted-Thomasville,Materials and Supplies - MS
Coastal Alabama CC,!0000708,Amazon ,1/20/2021,521.3,Unrestricted -Bay Minette,Materials and Supplies - MS
Coastal Alabama CC,!0000709,Atalian US Midwest LL ,1/20/2021,2079.31,Unrestricted-Gilbertown,Other Contractual Services - PS
Coastal Alabama CC,!0000709,Atalian US Midwest LL ,1/20/2021,2265.73,Unrestricted -Gulf Shores,Other Contractual Services - PS
Coastal Alabama CC,!0000709,Atalian US Midwest LL ,1/20/2021,2748.03,Unrestricted - Brookley Field,Other Contractual Services - PS
Coastal Alabama CC,!0000709,Atalian US Midwest LL ,1/20/2021,3393.2,Unrestricted - Atmore,Other Contractual Services - PS
Coastal Alabama CC,!0000709,Atalian US Midwest LL ,1/20/2021,5827.5,Unrestricted-Fairhope,Other Contractual Services - PS
Coastal Alabama CC,!0000709,Atalian US Midwest LL ,1/20/2021,24701.51,Unrestricted -Bay Minette,Other Contractual Services - PS
Coastal Alabama CC,!0000710,C Spire Business ,1/20/2021,18232.17,Unrestricted -Bay Minette,Other Contractual Services - PS
Coastal Alabama CC,!0000711,CDW LLC ,1/20/2021,973.8,AE-Federal Regular,Materials and Supplies - MS
Coastal Alabama CC,!0000712,Central Baldwin Chamber of Commerce ,1/20/2021,325,Unrestricted -Bay Minette,Memberships - PS
Coastal Alabama CC,!0000713,Central Baldwin Locksmiths LLC ,1/20/2021,344,Housing- Bay Minette,Maintenance & Repairs  - OOS
Coastal Alabama CC,!0000714,HESI ,1/20/2021,1050,Unrestricted -Bay Minette,Materials and Supplies - MS
Coastal Alabama CC,!0000715,Howard Technology Solutions ,1/20/2021,21080,Unrestricted-Monroeville,Technology - non capitalized - MS
Coastal Alabama CC,!0000715,Howard Technology Solutions ,1/20/2021,29085,Unrestricted -Bay Minette,Technology - non capitalized - MS
Coastal Alabama CC,!0000716,Kelly's Turf Pro ,1/20/2021,150,Unrestricted -Bay Minette,Other Professional Fees - PS
Coastal Alabama CC,!0000717,Lincoln Electric Company ,1/20/2021,500,Unrestricted-Monroeville,Materials and Supplies - MS
Coastal Alabama CC,!0000718,Office Depot ,1/20/2021,399.99,Dollar General Grant Revenue,Materials and Supplies - MS
Coastal Alabama CC,!0000718,Office Depot ,1/20/2021,399.99,Ready to Work ,Materials and Supplies - MS
Coastal Alabama CC,!0000720,Republic Services Inc. ,1/20/2021,500,Housing- Bay Minette,Service Contracts on Equipment -OOS
Coastal Alabama CC,!0000720,Republic Services Inc. ,1/20/2021,1031.33,Unrestricted -Bay Minette,Other Professional Fees - PS
Coastal Alabama CC,!0000721,Staples Contract & Commercial Inc ,1/20/2021,167.86,Unrestricted -Brewton,Materials and Supplies - MS
Coastal Alabama CC,!0000721,Staples Contract & Commercial Inc ,1/20/2021,216.27,Unrestricted -Bay Minette,Materials and Supplies - MS
Coastal Alabama CC,!0000722,Synergetics DCS Inc. ,1/20/2021,76850.34,CARES Act - College Relief,Computer Related M&S - MS
Coastal Alabama CC,!0000723,Verified Credentials Inc ,1/20/2021,348,Unrestricted Shared Services,Other Professional Fees - PS
Coastal Alabama CC,!0000724,Bradley Vinson,1/21/2021,15,Unrestricted -Bay Minette,Mileage - IS
Coastal Alabama CC,!0000725,Douglas Henry,1/21/2021,94.3,Unrestricted -Gulf Shores,Mileage - IS
Coastal Alabama CC,!0000726,Dunnam Angela,1/21/2021,33.35,Unrestricted -Bay Minette,Mileage - IS
Coastal Alabama CC,!0000727,Payne Pamela,1/21/2021,50.6,Unrestricted Shared Services,Mileage - IS
Coastal Alabama CC,!0000728,Pitts Linda,1/21/2021,134.4,Unrestricted -Bay Minette,Mileage - IS
Coastal Alabama CC,!0000729,Turner Melinda,1/21/2021,57.5,Unrestricted -Bay Minette,Mileage - IS
Coastal Alabama CC,!0000730,Watters Augusta,1/21/2021,4500,Upward Bound TV,Stipends-Meals
Coastal Alabama CC,!0000731,Amazon ,1/21/2021,1861.58,Unrestricted -Bay Minette,Materials and Supplies - MS
Coastal Alabama CC,!0000732,Assessment Technologies Institute LLC ,1/21/2021,15,Unrestricted Shared Services,Materials and Supplies - MS
Coastal Alabama CC,!0000733,Assurance Service Group Inc ,1/21/2021,947,Unrestricted-Thomasville,Other Contractual Services - PS
Coastal Alabama CC,!0000733,Assurance Service Group Inc ,1/21/2021,2597,R&R Thomasville,Maintenance & Repairs  - OOS
Coastal Alabama CC,!0000733,Assurance Service Group Inc ,1/21/2021,6316.4,Unrestricted-Monroeville,Maintenance & Repairs  - OOS
Coastal Alabama CC,!0000733,Assurance Service Group Inc ,1/21/2021,21052.2,R&R  Fairhope,Maintenance & Repairs  - OOS
Coastal Alabama CC,!0000733,Assurance Service Group Inc ,1/21/2021,30657,Housing- Bay Minette,Maintenance & Repairs  - OOS
Coastal Alabama CC,!0000733,Assurance Service Group Inc ,1/21/2021,64395.5,R&R Bay Minette,Maintenance & Repairs  - OOS
Coastal Alabama CC,!0000734,Carolina Biological Supply Co ,1/21/2021,1085.51,Unrestricted-Fairhope,Materials and Supplies - MS
Coastal Alabama CC,!0000734,Carolina Biological Supply Co ,1/21/2021,1213.06,Unrestricted -Brewton,Materials and Supplies - MS
Coastal Alabama CC,!0000735,CDW LLC ,1/21/2021,179.96,Unrestricted -Brewton,Materials and Supplies - MS
Coastal Alabama CC,!0000735,CDW LLC ,1/21/2021,501.93,Unrestricted -Brewton,Technology - non capitalized - MS
Coastal Alabama CC,!0000736,Deas Building Supply Inc ,1/21/2021,188.45,Unrestricted-Monroeville,Maintenance & Repairs  - OOS
Coastal Alabama CC,!0000736,Deas Building Supply Inc ,1/21/2021,188.48,Unrestricted-Monroeville,Materials and Supplies - MS
Coastal Alabama CC,!0000737,Ferguson Enterprises Inc ,1/21/2021,113,Unrestricted -Bay Minette,Materials and Supplies - MS
Coastal Alabama CC,!0000738,Go With the Flow Yoga ,1/21/2021,520,Upward Bound TV,Other Professional Fees - PS
Coastal Alabama CC,!0000739,Krueger International Inc ,1/21/2021,14342.88,Unrestricted-Fairhope,Materials and Supplies - MS
Coastal Alabama CC,!0000740,Lincoln Electric Company ,1/21/2021,3000,Unrestricted-Thomasville,Materials and Supplies - MS
Coastal Alabama CC,!0000741,Quill Corporation ,1/21/2021,472.34,Unrestricted -Bay Minette,Materials and Supplies - MS
Coastal Alabama CC,!0000742,Sports Innovations LLC ,1/21/2021,519.98,Unrestricted -Bay Minette,Materials and Supplies - MS
Coastal Alabama CC,!0000743,Staples Contract & Commercial Inc ,1/21/2021,69.9,Unrestricted -Brewton,Cash Shortages - OOS
Coastal Alabama CC,!0000743,Staples Contract & Commercial Inc ,1/21/2021,373.57,Upward Bound TV,Materials and Supplies - MS
Coastal Alabama CC,!0000744,Staples Contract & Commercial Inc ,1/21/2021,890.14,Upward Bound TV,Materials and Supplies - MS
Coastal Alabama CC,!0000745,W W Grainger Inc ,1/21/2021,956.04,Unrestricted-Fairhope,Materials and Supplies - MS
Coastal Alabama CC,!0000745,W W Grainger Inc ,1/21/2021,1354.9,R&R  Brewton,Maintenance & Repairs  - OOS
Coastal Alabama CC,!0000746,Xerox Corporation ,1/21/2021,174.75,Unrestricted-Jackson,Short-Term Equipment Rentals - OOS
Coastal Alabama CC,!0000746,Xerox Corporation ,1/21/2021,193.11,Unrestricted - Atmore,Short-Term Equipment Rentals - OOS
Coastal Alabama CC,!0000746,Xerox Corporation ,1/21/2021,264.95,Unrestricted-Gilbertown,Short-Term Equipment Rentals - OOS
Coastal Alabama CC,!0000746,Xerox Corporation ,1/21/2021,337.65,Unrestricted-Monroeville,Short-Term Equipment Rentals - OOS
Coastal Alabama CC,!0000746,Xerox Corporation ,1/21/2021,493.49,Unrestricted-Thomasville,Short-Term Equipment Rentals - OOS
Coastal Alabama CC,!0000746,Xerox Corporation ,1/21/2021,1883.8,Unrestricted -Bay Minette,Short-Term Equipment Rentals - OOS
Coastal Alabama CC,!0000747,Xerox Financial Services LLC ,1/21/2021,205,Unrestricted -Gulf Shores,Short-Term Equipment Rentals - OOS
Coastal Alabama CC,!0000748,Brown Collins,1/27/2021,126.75,Unrestricted-Monroeville,Materials and Supplies - MS
Coastal Alabama CC,!0000749,Merry Michael,1/27/2021,787.75,Unrestricted-Monroeville,Mileage - IS
Coastal Alabama CC,!0000750,Reyes Sandy,1/27/2021,37.3,Unrestricted -Bay Minette,Materials and Supplies - MS
Coastal Alabama CC,!0000751,Akd Inc. ,1/27/2021,485.16,TANF,Materials and Supplies - MS
Coastal Alabama CC,!0000752,Amazon ,1/27/2021,-43.99,Unrestricted -Brewton,Audiovisuals - CE
Coastal Alabama CC,!0000752,Amazon ,1/27/2021,137.98,Unrestricted Shared Services,Materials and Supplies - MS
Coastal Alabama CC,!0000752,Amazon ,1/27/2021,267.43,Unrestricted -Gulf Shores,Materials and Supplies - MS
Coastal Alabama CC,!0000752,Amazon ,1/27/2021,451.2,Unrestricted -Bay Minette,Materials and Supplies - MS
Coastal Alabama CC,!0000752,Amazon ,1/27/2021,703.99,Unrestricted-Thomasville,Materials and Supplies - MS
Coastal Alabama CC,!0000752,Amazon ,1/27/2021,2834,Unrestricted Shared Services,Technology - non capitalized - MS
Coastal Alabama CC,!0000753,Assurance Service Group Inc ,1/27/2021,4917.73,R&R  Brewton,Building Alterations - CE
Coastal Alabama CC,!0000754,Aztec Software LLC ,1/27/2021,6970,AE-Federal Regular,Materials and Supplies - MS
Coastal Alabama CC,!0000755,Carolina Biological Supply Co ,1/27/2021,774.23,Unrestricted-Monroeville,Materials and Supplies - MS
Coastal Alabama CC,!0000756,CDW LLC ,1/27/2021,234,Unrestricted -Brewton,Materials and Supplies - MS
Coastal Alabama CC,!0000757,Centurytel Inc. ,1/27/2021,2823.12,Unrestricted -Gulf Shores,Landline Phones - UC
Coastal Alabama CC,!0000758,City Electric Supply Co ,1/27/2021,334.29,Unrestricted-Fairhope,Materials and Supplies - MS
Coastal Alabama CC,!0000758,City Electric Supply Co ,1/27/2021,499.5,Unrestricted -Bay Minette,Materials and Supplies - MS
Coastal Alabama CC,!0000758,City Electric Supply Co ,1/27/2021,2995.98,R&R Bay Minette,Maintenance & Repairs  - OOS
Coastal Alabama CC,!0000759,Heartland Campus Solutions Ecsi ,1/27/2021,51.6,Unrestricted Shared Services,Other Contractual Services - PS
Coastal Alabama CC,!0000760,HESI ,1/27/2021,61,Unrestricted Shared Services,Materials and Supplies - MS
Coastal Alabama CC,!0000761,Kelly's Turf Pro ,1/27/2021,2500,Unrestricted -Brewton,Other Professional Fees - PS
Coastal Alabama CC,!0000762,Loftin Brett,1/27/2021,643.63,Unrestricted -Brewton,Materials and Supplies - MS
Coastal Alabama CC,!0000762,Loftin Brett,1/27/2021,643.63,Unrestricted-Monroeville,Materials and Supplies - MS
Coastal Alabama CC,!0000762,Loftin Brett,1/27/2021,1287.24,Unrestricted -Bay Minette,Materials and Supplies - MS
Coastal Alabama CC,!0000763,Office Depot ,1/27/2021,8.72,Career Pathway Donations,Deposits Held for Others - Agency
Coastal Alabama CC,!0000764,Office Depot ,1/27/2021,102.96,Career Pathway Donations,Deposits Held for Others - Agency
Coastal Alabama CC,!0000765,Quill Corporation ,1/27/2021,172.42,Unrestricted-Thomasville,Materials and Supplies - MS
Coastal Alabama CC,!0000765,Quill Corporation ,1/27/2021,182.74,Unrestricted -Bay Minette,Materials and Supplies - MS
Coastal Alabama CC,!0000765,Quill Corporation ,1/27/2021,557.81,Unrestricted - Brookley Field,Materials and Supplies - MS
Coastal Alabama CC,!0000766,Staples Contract & Commercial Inc ,1/27/2021,117.08,Unrestricted -Bay Minette,Materials and Supplies - MS
Coastal Alabama CC,!0000766,Staples Contract & Commercial Inc ,1/27/2021,372.95,Unrestricted -Bay Minette,Advertising & Promotions - OOS
Coastal Alabama CC,!0000767,Wilson Faye,1/27/2021,100,Unrestricted -Bay Minette,Other Professional Fees - PS
Coastal Alabama CC,!0000768,Xerox Corporation ,1/27/2021,20.75,Unrestricted -Gulf Shores,Other Contractual Services - PS
Coastal Alabama CC,!0000768,Xerox Corporation ,1/27/2021,55.85,Unrestricted -Bay Minette,Materials and Supplies - MS
Coastal Alabama CC,!0000768,Xerox Corporation ,1/27/2021,55.85,Unrestricted Shared Services,Materials and Supplies - MS
Coastal Alabama CC,!0000769,Xerox Corporation ,1/27/2021,175.9,Unrestricted -Brewton,Short-Term Equipment Rentals - OOS
Coastal Alabama CC,!0000769,Xerox Corporation ,1/27/2021,175.9,Unrestricted -Fairhope Academy,Short-Term Equipment Rentals - OOS
Coastal Alabama CC,!0000769,Xerox Corporation ,1/27/2021,175.9,Unrestricted-Fairhope,Short-Term Equipment Rentals - OOS
Coastal Alabama CC,!0000769,Xerox Corporation ,1/27/2021,196.53,Unrestricted-Monroeville,Short-Term Equipment Rentals - OOS
Coastal Alabama CC,!0000769,Xerox Corporation ,1/27/2021,471.82,Unrestricted -Bay Minette,Short-Term Equipment Rentals - OOS
Coastal Alabama CC,!0000770,Xerox Financial Services LLC ,1/27/2021,1508,Unrestricted -Bay Minette,Short-Term Equipment Rentals - OOS
Coastal Alabama CC,!0000772,Amazon ,1/29/2021,59.92,Upward Bound TV,Materials and Supplies - MS
Coastal Alabama CC,!0000772,Amazon ,1/29/2021,93.33,Unrestricted -Brewton,Books - CE
Coastal Alabama CC,!0000772,Amazon ,1/29/2021,258.27,Unrestricted -Brewton,Materials and Supplies - MS
Coastal Alabama CC,!0000773,Assurance Service Group Inc ,1/29/2021,96329.65,R&R Bay Minette,Maintenance & Repairs  - OOS
Coastal Alabama CC,!0000774,B & W Auto Parts ,1/29/2021,90.68,Unrestricted -Brewton,Materials and Supplies - MS
Coastal Alabama CC,!0000774,B & W Auto Parts ,1/29/2021,135.99,Unrestricted -Brewton,Maintenance & Repairs  - OOS
Coastal Alabama CC,!0000775,Carolina Biological Supply Co ,1/29/2021,397.05,Unrestricted -Bay Minette,Materials and Supplies - MS
Coastal Alabama CC,!0000776,Ferguson Enterprises Inc ,1/29/2021,1365.38,Unrestricted - Atmore,Materials and Supplies - MS
Coastal Alabama CC,!0000777,Microsoft Corporation ,1/29/2021,45500,NSF ,Computer Related M&S - MS
Coastal Alabama CC,!0000778,Pocket Nurse Enterprises Inc. ,1/29/2021,1235.7,Unrestricted-Monroeville,Materials and Supplies - MS
Coastal Alabama CC,!0000779,Southern Advantage Inc ,1/29/2021,2000,Unrestricted -Bay Minette,Advertising & Promotions - OOS
Coastal Alabama CC,!0000780,W W Grainger Inc ,1/29/2021,825.58,Unrestricted -Bay Minette,Materials and Supplies - MS
Coastal Alabama CC,!0000781,Xerox Financial Services LLC ,1/29/2021,149.64,Student Support Service -BM,Short-Term Equipment Rentals - OOS
Coastal Alabama CC,!0000781,Xerox Financial Services LLC ,1/29/2021,150.03,Unrestricted - Fountain,Short-Term Equipment Rentals - OOS
Coastal Alabama CC,!0000781,Xerox Financial Services LLC ,1/29/2021,162.36,Unrestricted - Atmore,Short-Term Equipment Rentals - OOS
Coastal Alabama CC,!0000781,Xerox Financial Services LLC ,1/29/2021,212.11,Unrestricted-Thomasville,Short-Term Equipment Rentals - OOS
Coastal Alabama CC,!0000781,Xerox Financial Services LLC ,1/29/2021,368.1,Unrestricted -Gulf Shores,Short-Term Equipment Rentals - OOS
Coastal Alabama CC,!0000781,Xerox Financial Services LLC ,1/29/2021,471.96,Unrestricted - Brookley Field,Short-Term Equipment Rentals - OOS
Coastal Alabama CC,!0000781,Xerox Financial Services LLC ,1/29/2021,518.52,Unrestricted-Fairhope,Short-Term Equipment Rentals - OOS
Coastal Alabama CC,!0000781,Xerox Financial Services LLC ,1/29/2021,1097.56,Unrestricted -Brewton,Short-Term Equipment Rentals - OOS
Coastal Alabama CC,!0000781,Xerox Financial Services LLC ,1/29/2021,1217.32,Unrestricted -Bay Minette,Short-Term Equipment Rentals - OOS
Coastal Alabama CC,!0000782,Bradley Vinson,2/2/2021,124.32,Unrestricted -Bay Minette,Mileage - IS
Coastal Alabama CC,!0000783,Chancery Jennifer,2/2/2021,201.32,Unrestricted -Brewton,Mileage - IS
Coastal Alabama CC,!0000784,Ethington Tracie,2/2/2021,161.28,Unrestricted-Fairhope,Mileage - IS
Coastal Alabama CC,!0000785,Fields Rebecca,2/2/2021,26.88,Ready to Work ,Mileage - IS
Coastal Alabama CC,!0000786,Fuqua James,2/2/2021,144.48,Unrestricted -Brewton,Mileage - IS
Coastal Alabama CC,!0000787,Godfrey Carman,2/2/2021,149.52,Unrestricted -Bay Minette,Mileage - IS
Coastal Alabama CC,!0000788,Grant Margaret,2/2/2021,332.64,Unrestricted -Bay Minette,Mileage - IS
Coastal Alabama CC,!0000789,Abbco Service Corporation ,2/2/2021,6901,Unrestricted-Thomasville,Other Contractual Services - PS
Coastal Alabama CC,!0000789,Abbco Service Corporation ,2/2/2021,7060.17,Unrestricted-Monroeville,Other Contractual Services - PS
Coastal Alabama CC,!0000790,Akd Inc. ,2/2/2021,1159.68,Unrestricted - Brookley Field,Athletic Uniforms
Coastal Alabama CC,!0000791,Amazon ,2/2/2021,29.98,Unrestricted - Brookley Field,Materials and Supplies - MS
Coastal Alabama CC,!0000791,Amazon ,2/2/2021,816.5,Unrestricted -Brewton,Books - CE
Coastal Alabama CC,!0000791,Amazon ,2/2/2021,1153.04,Unrestricted Shared Services,Technology - non capitalized - MS
Coastal Alabama CC,!0000791,Amazon ,2/2/2021,2780.44,Unrestricted -Bay Minette,Materials and Supplies - MS
Coastal Alabama CC,!0000792,Apogee Telecom Inc ,2/2/2021,1687.8,Unrestricted -Bay Minette,Technology - non capitalized - MS
Coastal Alabama CC,!0000792,Apogee Telecom Inc ,2/2/2021,2604.76,Housing - Brewton,Other Contractual Services - PS
Coastal Alabama CC,!0000792,Apogee Telecom Inc ,2/2/2021,16000.69,Housing- Bay Minette,Other Contractual Services - PS
Coastal Alabama CC,!0000793,Borden Dairy Company ,2/2/2021,518.2,Food Services- Bay Minette,Purchases for Resale (COGS) - MS
Coastal Alabama CC,!0000794,CDW LLC ,2/2/2021,290.26,Unrestricted -Brewton,Materials and Supplies - MS
Coastal Alabama CC,!0000795,Central Baldwin Chamber of Commerce ,2/2/2021,1000,Unrestricted -Bay Minette,Advertising & Promotions - OOS
Coastal Alabama CC,!0000796,City Of Bay Minette ,2/2/2021,5200,Unrestricted -Bay Minette,Other Professional Fees - PS
Coastal Alabama CC,!0000797,Evans Meats Inc ,2/2/2021,1187.18,Unrestricted -Gulf Shores,Culinary Consumables
Coastal Alabama CC,!0000798,Mott MacDonald Alabama LLC ,2/2/2021,25846.4,Unexpended Plant Bay Minette,Building Alterations - CE
Coastal Alabama CC,!0000799,North Baldwin Printing LLC ,2/2/2021,75,Unrestricted -Bay Minette,Materials and Supplies - MS
Coastal Alabama CC,!0000800,Pearson Vue ,2/2/2021,9000,AE - GED,Materials and Supplies - MS
Coastal Alabama CC,!0000801,ProQuest ,2/2/2021,2083.57,Unrestricted -Bay Minette,Subscriptions - OOS
Coastal Alabama CC,!0000802,Public Relations Council of Alabama ,2/2/2021,225,Unrestricted -Bay Minette,Memberships - PS
Coastal Alabama CC,!0000803,Republic Services Inc. ,2/2/2021,124.91,Unrestricted -Gulf Shores,Service Contracts on Equipment -OOS
Coastal Alabama CC,!0000803,Republic Services Inc. ,2/2/2021,173.71,Unrestricted - Brookley Field,Service Contracts on Equipment -OOS
Coastal Alabama CC,!0000803,Republic Services Inc. ,2/2/2021,415.3,Unrestricted - Atmore,Waste Disposal - UC
Coastal Alabama CC,!0000804,Staples Contract & Commercial Inc ,2/2/2021,1038.68,Upward Bound TV,Materials and Supplies - MS
Coastal Alabama CC,!0000805,Xerox Corporation ,2/2/2021,350.73,Unrestricted-Thomasville,Short-Term Equipment Rentals - OOS
Coastal Alabama CC,!0000806,Xerox Corporation ,2/2/2021,2.92,Unrestricted - Atmore,Short-Term Equipment Rentals - OOS
Coastal Alabama CC,!0000806,Xerox Corporation ,2/2/2021,9.75,Unrestricted-Thomasville,Short-Term Equipment Rentals - OOS
Coastal Alabama CC,!0000806,Xerox Corporation ,2/2/2021,19.03,Unrestricted -Brewton,Short-Term Equipment Rentals - OOS
Coastal Alabama CC,!0000806,Xerox Corporation ,2/2/2021,19.59,Unrestricted-Fairhope,Short-Term Equipment Rentals - OOS
Coastal Alabama CC,!0000806,Xerox Corporation ,2/2/2021,49.17,Student Support Service -BM,Short-Term Equipment Rentals - OOS
Coastal Alabama CC,!0000806,Xerox Corporation ,2/2/2021,91.47,Unrestricted - Fountain,Short-Term Equipment Rentals - OOS
Coastal Alabama CC,!0000806,Xerox Corporation ,2/2/2021,98.88,Unrestricted -Bay Minette,Short-Term Equipment Rentals - OOS
Coastal Alabama CC,!0000806,Xerox Corporation ,2/2/2021,103.39,Unrestricted - Brookley Field,Short-Term Equipment Rentals - OOS
Coastal Alabama CC,!0000807,Beaty Joe,2/5/2021,110,Unrestricted -Bay Minette,Materials and Supplies - MS
Coastal Alabama CC,!0000808,Brown Collins,2/5/2021,121.3,Unrestricted-Monroeville,Materials and Supplies - MS
Coastal Alabama CC,!0000809,Carey Cullen,2/5/2021,412.16,WIOA,Mileage - IS
Coastal Alabama CC,!0000810,Day Elizabeth,2/5/2021,163.52,Unrestricted -Bay Minette,Mileage - IS
Coastal Alabama CC,!0000811,Devillier Heather,2/5/2021,94.3,Unrestricted -Bay Minette,Mileage - IS
Coastal Alabama CC,!0000812,Dukes Natalie,2/5/2021,62.68,Unrestricted -Bay Minette,Mileage - IS
Coastal Alabama CC,!0000813,Dulaney Ritchie,2/5/2021,32.48,Unrestricted -Bay Minette,Mileage - IS
Coastal Alabama CC,!0000814,Duplantis Joshua,2/5/2021,546.56,Unrestricted Shared Services,Mileage - IS
Coastal Alabama CC,!0000815,Etheridge Rachel,2/5/2021,115,Unrestricted-Thomasville,Mileage - IS
Coastal Alabama CC,!0000816,Gattis Michael,2/5/2021,97.44,Unrestricted-Fairhope,Mileage - IS
Coastal Alabama CC,!0000817,Gilkerson Erica,2/5/2021,32.48,AE - State Regular,Mileage - IS
Coastal Alabama CC,!0000818,Horton Jana,2/5/2021,68.32,Unrestricted Shared Services,Mileage - IS
Coastal Alabama CC,!0000819,Hutcherson Lindsay,2/5/2021,722.2,Unrestricted Shared Services,Mileage - IS
Coastal Alabama CC,!0000820,Jacobs Amelia,2/5/2021,86.25,Unrestricted Shared Services,Mileage - IS
Coastal Alabama CC,!0000821,Johnson Regina,2/5/2021,447.52,Unrestricted-Monroeville,Mileage - IS
Coastal Alabama CC,!0000822,Kendall Kelly,2/5/2021,202.98,Unrestricted Shared Services,Mileage - IS
Coastal Alabama CC,!0000823,Lolley Dana,2/5/2021,29.68,Unrestricted -Bay Minette,Mileage - IS
Coastal Alabama CC,!0000824,Lolley Dana,2/5/2021,115,Unrestricted -Bay Minette,Mileage - IS
Coastal Alabama CC,!0000825,McLean Diane,2/5/2021,106.4,Unrestricted -Bay Minette,Mileage - IS
Coastal Alabama CC,!0000826,McNeil Martha,2/5/2021,215.04,Unrestricted-Monroeville,Mileage - IS
Coastal Alabama CC,!0000827,Millis Daniel,2/5/2021,124.78,Unrestricted -Bay Minette,Mileage - IS
Coastal Alabama CC,!0000828,Minard David,2/5/2021,162.4,Unrestricted -Bay Minette,Mileage - IS
Coastal Alabama CC,!0000829,Murphy Melinda,2/5/2021,236.32,Unrestricted -Bay Minette,Mileage - IS
Coastal Alabama CC,!0000830,Patel Vijay,2/5/2021,70.15,Unrestricted-Monroeville,Mileage - IS
Coastal Alabama CC,!0000831,Payne Pamela,2/5/2021,33.6,Unrestricted Shared Services,Mileage - IS
Coastal Alabama CC,!0000832,Philyaw Jasmine,2/5/2021,193.76,Unrestricted -Bay Minette,Mileage - IS
Coastal Alabama CC,!0000833,Porter Jessica,2/5/2021,19.15,Unrestricted -Bay Minette,Mileage - IS
Coastal Alabama CC,!0000834,Radwitch Mallory,2/5/2021,200,Unrestricted -Bay Minette,Other Professional Fees - PS
Coastal Alabama CC,!0000835,Sims James,2/5/2021,16.24,Unrestricted -Bay Minette,Mileage - IS
Coastal Alabama CC,!0000836,Sloan Mark,2/5/2021,99.68,Unrestricted - Brookley Field,Mileage - IS
Coastal Alabama CC,!0000837,Smith Susan,2/5/2021,56,AE-Federal Regular,Mileage - IS
Coastal Alabama CC,!0000838,Spivey Henry,2/5/2021,143.36,Unrestricted -Gulf Shores,Mileage - IS
Coastal Alabama CC,!0000839,Stokes Jacqueline,2/5/2021,215.04,Unrestricted -Bay Minette,Mileage - IS
Coastal Alabama CC,!0000840,Watters Augusta,2/5/2021,65,Thomas Jackson Holding,Deposits Held for Others - Agency
Coastal Alabama CC,!0000841,Williford Joseph,2/5/2021,185.36,Unrestricted -Bay Minette,Mileage - IS
Coastal Alabama CC,!0000842,Amazon ,2/5/2021,38.98,Unrestricted-Fairhope,Materials and Supplies - MS
Coastal Alabama CC,!0000842,Amazon ,2/5/2021,365.82,PC Local Grant,Materials and Supplies - MS
Coastal Alabama CC,!0000843,C Spire Business ,2/5/2021,859.31,Unrestricted Shared Services,Other Contractual Services - PS
Coastal Alabama CC,!0000843,C Spire Business ,2/5/2021,2950,Unrestricted -Bay Minette,Technology - non capitalized - MS
Coastal Alabama CC,!0000844,CDW LLC ,2/5/2021,484.96,Unrestricted Shared Services,Technology - non capitalized - MS
Coastal Alabama CC,!0000845,Center for Advancement of Food Service Education ,2/5/2021,200,Unrestricted -Gulf Shores,Memberships - PS
Coastal Alabama CC,!0000846,Cintas Corporation ,2/5/2021,31.56,Unrestricted-Fairhope,Athletic Uniforms
Coastal Alabama CC,!0000846,Cintas Corporation ,2/5/2021,134.6,Unrestricted -Bay Minette,Athletic Uniforms
Coastal Alabama CC,!0000847,Cintas Corporation ,2/5/2021,468.2,Unrestricted -Bay Minette,Other Contractual Services - PS
Coastal Alabama CC,!0000848,Eastern Shore Chamber of Commerce ,2/5/2021,2500,Unrestricted -Bay Minette,Memberships - PS
Coastal Alabama CC,!0000849,Ferguson Enterprises Inc ,2/5/2021,273.24,Unrestricted-Fairhope,Materials and Supplies - MS
Coastal Alabama CC,!0000850,Howard Technology Solutions ,2/5/2021,5544,Unrestricted-Monroeville,Technology - non capitalized - MS
Coastal Alabama CC,!0000851,Lewis Pest Control Inc. ,2/5/2021,100,Unrestricted-Gilbertown,Other Professional Fees - PS
Coastal Alabama CC,!0000852,North Baldwin Printing LLC ,2/5/2021,39,Unrestricted-Fairhope,Printing and Binding - OOS
Coastal Alabama CC,!0000853,Pocket Nurse Enterprises Inc. ,2/5/2021,54.68,Unrestricted -Brewton,Materials and Supplies - MS
Coastal Alabama CC,!0000853,Pocket Nurse Enterprises Inc. ,2/5/2021,1756.98,Unrestricted -Bay Minette,Materials and Supplies - MS
Coastal Alabama CC,!0000853,Pocket Nurse Enterprises Inc. ,2/5/2021,6500.52,Vocational Ed/CTE,Equipment - non capitalized - MS
Coastal Alabama CC,!0000854,Quill Corporation ,2/5/2021,70.18,Unrestricted -Fairhope Academy,Materials and Supplies - MS
Coastal Alabama CC,!0000854,Quill Corporation ,2/5/2021,175.72,Unrestricted-Thomasville,Materials and Supplies - MS
Coastal Alabama CC,!0000854,Quill Corporation ,2/5/2021,225.86,Student Support Service - MR,Materials and Supplies - MS
Coastal Alabama CC,!0000854,Quill Corporation ,2/5/2021,317.37,Talent Search MR,Materials and Supplies - MS
Coastal Alabama CC,!0000855,Republic Services Inc. ,2/5/2021,387.61,Unrestricted - Fountain,Waste Disposal - UC
Coastal Alabama CC,!0000855,Republic Services Inc. ,2/5/2021,402.6,Unrestricted -Brewton,Waste Disposal - UC
Coastal Alabama CC,!0000855,Republic Services Inc. ,2/5/2021,1085.77,Housing - Brewton,Waste Disposal - UC
Coastal Alabama CC,!0000856,Roto-rooter Service ,2/5/2021,600,Unrestricted -Gulf Shores,Other Professional Fees - PS
Coastal Alabama CC,!0000856,Roto-rooter Service ,2/5/2021,955,Unrestricted -Bay Minette,Maintenance & Repairs  - OOS
Coastal Alabama CC,!0000857,South Baldwin Chamber of Commerce ,2/5/2021,1000,Unrestricted -Bay Minette,Advertising & Promotions - OOS
Coastal Alabama CC,!0000858,Southern View Media LLC ,2/5/2021,700,Unrestricted -Bay Minette,Other Professional Fees - PS
Coastal Alabama CC,!0000859,Techwrite Inc ,2/5/2021,1250,NSF ,Other Professional Fees - PS
Coastal Alabama CC,!0000860,W W Grainger Inc ,2/5/2021,39.54,Unrestricted-Monroeville,Materials and Supplies - MS
Coastal Alabama CC,!0000860,W W Grainger Inc ,2/5/2021,377.6,Vocational Ed/CTE,Materials and Supplies - MS
Coastal Alabama CC,!0000860,W W Grainger Inc ,2/5/2021,1174.17,Unrestricted-Thomasville,Materials and Supplies - MS
Coastal Alabama CC,!0000861,Bjuro Anna,2/10/2021,540,Unrestricted -Bay Minette,Other Travel Expenses - IS
Coastal Alabama CC,!0000861,Bjuro Anna,2/10/2021,810,Unrestricted -Bay Minette,Other Professional Fees - PS
Coastal Alabama CC,!0000862,Brasell Mary,2/10/2021,461.44,Talent Search MR,Mileage - IS
Coastal Alabama CC,!0000863,Brown Collins,2/10/2021,250.7,Unrestricted-Monroeville,Mileage - IS
Coastal Alabama CC,!0000864,Burkett Kina,2/10/2021,33.6,Student Support Service -BR,Mileage - IS
Coastal Alabama CC,!0000865,Busby Candis,2/10/2021,390.88,Student Support Service - MR,Mileage - IS
Coastal Alabama CC,!0000866,Conerly Lee,2/10/2021,120.59,Unrestricted Shared Services,Mileage - IS
Coastal Alabama CC,!0000867,Dean Katrina,2/10/2021,180.32,Talent Search MR,Mileage - IS
Coastal Alabama CC,!0000868,Douglas Henry,2/10/2021,91.84,Unrestricted -Gulf Shores,Mileage - IS
Coastal Alabama CC,!0000869,Dulaney Ariel,2/10/2021,150,Unrestricted -Bay Minette,Other Professional Fees - PS
Coastal Alabama CC,!0000870,Dulaney Ritchie,2/10/2021,45,Unrestricted -Bay Minette,Mileage - OS
Coastal Alabama CC,!0000871,Dussouy John,2/10/2021,45,Unrestricted -Bay Minette,Mileage - OS
Coastal Alabama CC,!0000872,Hurst Pamela,2/10/2021,115.36,Unrestricted-Gilbertown,Mileage - IS
Coastal Alabama CC,!0000873,Jones Joann,2/10/2021,112,Talent Search MR,Mileage - IS
Coastal Alabama CC,!0000874,Merry Michael,2/10/2021,268.8,Unrestricted-Monroeville,Mileage - IS
Coastal Alabama CC,!0000875,Omtvedt Natalie,2/10/2021,150,Unrestricted -Bay Minette,Other Professional Fees - PS
Coastal Alabama CC,!0000876,Philon Andrew,2/10/2021,151.2,Talent Search MR,Mileage - IS
Coastal Alabama CC,!0000877,Pollite Jennifer,2/10/2021,33.6,Unrestricted -Brewton,Mileage - IS
Coastal Alabama CC,!0000878,Powell Rachel,2/10/2021,112,Talent Search MR,Mileage - IS
Coastal Alabama CC,!0000879,Theeuwes James,2/10/2021,245,Unrestricted -Bay Minette,Mileage - IS
Coastal Alabama CC,!0000880,Yelding Cedric,2/10/2021,100.8,Unrestricted -Bay Minette,Mileage - OS
Coastal Alabama CC,!0000881,Amazon ,2/10/2021,239.98,Unrestricted - Brookley Field,Materials and Supplies - MS
Coastal Alabama CC,!0000881,Amazon ,2/10/2021,309.9,Unrestricted -Bay Minette,Materials and Supplies - MS
Coastal Alabama CC,!0000882,Carolina Biological Supply Co ,2/10/2021,2038.66,Unrestricted-Fairhope,Materials and Supplies - MS
Coastal Alabama CC,!0000883,Cintas Corporation ,2/10/2021,50.2,Unrestricted - Atmore,Other Contractual Services - PS
Coastal Alabama CC,!0000883,Cintas Corporation ,2/10/2021,118.36,Unrestricted -Brewton,Other Contractual Services - PS
Coastal Alabama CC,!0000884,Cintas Corporation ,2/10/2021,140,Unrestricted-Monroeville,Other Contractual Services - PS
Coastal Alabama CC,!0000884,Cintas Corporation ,2/10/2021,140,Unrestricted-Thomasville,Other Contractual Services - PS
Coastal Alabama CC,!0000885,City Electric Supply Co ,2/10/2021,290.59,Unrestricted -Gulf Shores,Materials and Supplies - MS
Coastal Alabama CC,!0000885,City Electric Supply Co ,2/10/2021,840.07,Unrestricted-Fairhope,Materials and Supplies - MS
Coastal Alabama CC,!0000885,City Electric Supply Co ,2/10/2021,1253.94,Unrestricted -Bay Minette,Materials and Supplies - MS
Coastal Alabama CC,!0000886,Ferguson Enterprises Inc ,2/10/2021,7570.9,Unrestricted -Bay Minette,Materials and Supplies - MS
Coastal Alabama CC,!0000887,Global Furniture Group Inc ,2/10/2021,2738.4,Unrestricted Shared Services,Materials and Supplies - MS
Coastal Alabama CC,!0000888,Inceptia ,2/10/2021,2500,Unrestricted -Bay Minette,Other Contractual Services - PS
Coastal Alabama CC,!0000889,Instructure Inc. ,2/10/2021,1100,Special Populations,Materials and Supplies - MS
Coastal Alabama CC,!0000889,Instructure Inc. ,2/10/2021,2420,Ready to Work ,Materials and Supplies - MS
Coastal Alabama CC,!0000889,Instructure Inc. ,2/10/2021,3799.9,WIOA,Materials and Supplies - MS
Coastal Alabama CC,!0000889,Instructure Inc. ,2/10/2021,4180,AE-Federal Regular,Materials and Supplies - MS
Coastal Alabama CC,!0000890,Kelly's Turf Pro ,2/10/2021,1666,Unrestricted -Brewton,Other Professional Fees - PS
Coastal Alabama CC,!0000891,KONE Inc. ,2/10/2021,441.7,Unrestricted-Fairhope,Maintenance & Repairs  - OOS
Coastal Alabama CC,!0000891,KONE Inc. ,2/10/2021,770.92,Unrestricted -Bay Minette,Maintenance & Repairs  - OOS
Coastal Alabama CC,!0000892,Laerdal ,2/10/2021,36329,Special Populations,Furniture and Equip > $25K - CE
Coastal Alabama CC,!0000893,May Ian,2/10/2021,30,Unrestricted -Bay Minette,Other Professional Fees - PS
Coastal Alabama CC,!0000894,Office Depot ,2/10/2021,173.07,Career Pathway Donations,Deposits Held for Others - Agency
Coastal Alabama CC,!0000894,Office Depot ,2/10/2021,263.4,Unrestricted -Bay Minette,Materials and Supplies - MS
Coastal Alabama CC,!0000895,Quill Corporation ,2/10/2021,59.45,Unrestricted - Brookley Field,Materials and Supplies - MS
Coastal Alabama CC,!0000895,Quill Corporation ,2/10/2021,203.78,Student Support Service -BR,Materials and Supplies - MS
Coastal Alabama CC,!0000895,Quill Corporation ,2/10/2021,218.84,Unrestricted -Fairhope Academy,Materials and Supplies - MS
Coastal Alabama CC,!0000895,Quill Corporation ,2/10/2021,587.49,Unrestricted -Bay Minette,Materials and Supplies - MS
Coastal Alabama CC,!0000896,Staples Contract & Commercial Inc ,2/10/2021,291.91,Dual Enrollment,Materials and Supplies - MS
Coastal Alabama CC,!0000897,W W Grainger Inc ,2/10/2021,1963.76,Special Populations,Equipment - non capitalized - MS
Coastal Alabama CC,!0000899,Allen Kouri,2/16/2021,45,Unrestricted -Bay Minette,Mileage - OS
Coastal Alabama CC,!0000900,Benton Steve,2/16/2021,200,Unrestricted -Bay Minette,Other Professional Fees - PS
Coastal Alabama CC,!0000901,Childress Christa,2/16/2021,55.26,Unrestricted-Monroeville,Mileage - IS
Coastal Alabama CC,!0000901,Childress Christa,2/16/2021,90.34,Unrestricted-Monroeville,Mileage - OS
Coastal Alabama CC,!0000902,Davis Kelli,2/16/2021,81.65,Unrestricted -Bay Minette,Mileage - IS
Coastal Alabama CC,!0000903,Dupont Kenny,2/16/2021,96.32,Unrestricted-Monroeville,Mileage - IS
Coastal Alabama CC,!0000904,Ethington Tracie,2/16/2021,24.96,Unrestricted-Fairhope,Materials and Supplies - MS
Coastal Alabama CC,!0000905,Harrison Joy,2/16/2021,390.88,Unrestricted-Monroeville,Mileage - IS
Coastal Alabama CC,!0000906,Lehning John,2/16/2021,141.12,Unrestricted-Thomasville,Mileage - IS
Coastal Alabama CC,!0000907,Mauldin Gary,2/16/2021,280,Unrestricted -Bay Minette,Other Professional Fees - PS
Coastal Alabama CC,!0000908,Nims Misti,2/16/2021,4.86,Unrestricted -Brewton,Mileage - OS
Coastal Alabama CC,!0000908,Nims Misti,2/16/2021,165.14,Unrestricted -Brewton,Mileage - IS
Coastal Alabama CC,!0000909,Omtvedt Natalie,2/16/2021,75,Unrestricted -Bay Minette,Other Professional Fees - PS
Coastal Alabama CC,!0000910,Radwitch Mallory,2/16/2021,2000,Softball Booster Funds,Deposits Held for Others - Agency
Coastal Alabama CC,!0000911,Ruckman Lynette,2/16/2021,101.52,Unrestricted -Brewton,Mileage - IS
Coastal Alabama CC,!0000913,Soule Lewis,2/16/2021,200,Unrestricted -Bay Minette,Other Professional Fees - PS
Coastal Alabama CC,!0000914,Turner Kenneth,2/16/2021,81.65,Unrestricted -Bay Minette,Mileage - IS
Coastal Alabama CC,!0000915,Vineyard William,2/16/2021,200,Unrestricted -Bay Minette,Other Professional Fees - PS
Coastal Alabama CC,!0000916,Amazon ,2/16/2021,65.42,Unrestricted -Gulf Shores,Materials and Supplies - MS
Coastal Alabama CC,!0000916,Amazon ,2/16/2021,188.67,Unrestricted-Fairhope,Materials and Supplies - MS
Coastal Alabama CC,!0000916,Amazon ,2/16/2021,427.27,Unrestricted -Brewton,Books - CE
Coastal Alabama CC,!0000917,Assessment Technologies Institute LLC ,2/16/2021,232706.72,Unrestricted Shared Services,Other Professional Fees - PS
Coastal Alabama CC,!0000918,Atalian US Midwest LL ,2/16/2021,2079.31,Unrestricted-Gilbertown,Other Contractual Services - PS
Coastal Alabama CC,!0000918,Atalian US Midwest LL ,2/16/2021,2265.73,Unrestricted -Gulf Shores,Other Contractual Services - PS
Coastal Alabama CC,!0000918,Atalian US Midwest LL ,2/16/2021,2748.03,Unrestricted - Brookley Field,Other Contractual Services - PS
Coastal Alabama CC,!0000918,Atalian US Midwest LL ,2/16/2021,3393.2,Unrestricted - Atmore,Other Contractual Services - PS
Coastal Alabama CC,!0000918,Atalian US Midwest LL ,2/16/2021,5827.5,Unrestricted-Fairhope,Other Contractual Services - PS
Coastal Alabama CC,!0000918,Atalian US Midwest LL ,2/16/2021,24701.51,Unrestricted -Bay Minette,Other Contractual Services - PS
Coastal Alabama CC,!0000919,Carolina Biological Supply Co ,2/16/2021,503.1,Unrestricted - Atmore,Materials and Supplies - MS
Coastal Alabama CC,!0000919,Carolina Biological Supply Co ,2/16/2021,798.05,Unrestricted -Brewton,Materials and Supplies - MS
Coastal Alabama CC,!0000919,Carolina Biological Supply Co ,2/16/2021,1549.25,Unrestricted-Monroeville,Materials and Supplies - MS
Coastal Alabama CC,!0000920,CDW LLC ,2/16/2021,238,Upward Bound TV,Materials and Supplies - MS
Coastal Alabama CC,!0000920,CDW LLC ,2/16/2021,1696.97,Unrestricted Shared Services,Technology - non capitalized - MS
Coastal Alabama CC,!0000921,Central Baldwin Education Foundation Inc ,2/16/2021,420.8,Private Scholarships - Bm,Deposits Held for Others - Agency
Coastal Alabama CC,!0000922,Cintas Corporation ,2/16/2021,1669,PC Local Grant,Materials and Supplies - MS
Coastal Alabama CC,!0000923,Ferguson Enterprises Inc ,2/16/2021,3038.1,Unrestricted -Bay Minette,Materials and Supplies - MS
Coastal Alabama CC,!0000924,Magnolia Clipping & Broadcast Monitoring Service ,2/16/2021,144.21,Unrestricted -Bay Minette,Other Professional Fees - PS
Coastal Alabama CC,!0000925,North Baldwin Printing LLC ,2/16/2021,15,Unrestricted -Bay Minette,Materials and Supplies - MS
Coastal Alabama CC,!0000926,Pocket Nurse Enterprises Inc. ,2/16/2021,457.26,Unrestricted Shared Services,Materials and Supplies - MS
Coastal Alabama CC,!0000927,Republic Services Inc. ,2/16/2021,500,Housing- Bay Minette,Service Contracts on Equipment -OOS
Coastal Alabama CC,!0000927,Republic Services Inc. ,2/16/2021,1293.13,Unrestricted -Bay Minette,Other Professional Fees - PS
Coastal Alabama CC,!0000928,Staples Contract & Commercial Inc ,2/16/2021,16.6,Unrestricted-Monroeville,Materials and Supplies - MS
Coastal Alabama CC,!0000928,Staples Contract & Commercial Inc ,2/16/2021,58,Student Support Service -BM,Materials and Supplies - MS
Coastal Alabama CC,!0000928,Staples Contract & Commercial Inc ,2/16/2021,126.21,Unrestricted -Brewton,Materials and Supplies - MS
Coastal Alabama CC,!0000928,Staples Contract & Commercial Inc ,2/16/2021,296.27,Unrestricted -Gulf Shores,Materials and Supplies - MS
Coastal Alabama CC,!0000928,Staples Contract & Commercial Inc ,2/16/2021,591.35,Unrestricted -Bay Minette,Materials and Supplies - MS
Coastal Alabama CC,!0000929,Synergetics DCS Inc. ,2/16/2021,89382.59,CARES Act - College Relief,Other Professional Fees - PS
Coastal Alabama CC,!0000930,W W Grainger Inc ,2/16/2021,1161.65,Unrestricted -Bay Minette,Materials and Supplies - MS
Coastal Alabama CC,!0000930,W W Grainger Inc ,2/16/2021,9133.75,Vocational Ed/CTE,Equipment - non capitalized - MS
Coastal Alabama CC,!0000931,Xerox Corporation ,2/16/2021,174.76,Unrestricted-Jackson,Short-Term Equipment Rentals - OOS
Coastal Alabama CC,!0000931,Xerox Corporation ,2/16/2021,198.73,Unrestricted - Atmore,Short-Term Equipment Rentals - OOS
Coastal Alabama CC,!0000931,Xerox Corporation ,2/16/2021,219.89,Unrestricted-Thomasville,Short-Term Equipment Rentals - OOS
Coastal Alabama CC,!0000931,Xerox Corporation ,2/16/2021,335.43,Unrestricted-Monroeville,Short-Term Equipment Rentals - OOS
Coastal Alabama CC,!0000931,Xerox Corporation ,2/16/2021,619.95,Unrestricted-Fairhope,Short-Term Equipment Rentals - OOS
Coastal Alabama CC,!0000931,Xerox Corporation ,2/16/2021,1706.38,Unrestricted -Bay Minette,Short-Term Equipment Rentals - OOS
Coastal Alabama CC,!0000932,Bjuro Anna,2/18/2021,1000,Unrestricted -Bay Minette,Other Professional Fees - PS
Coastal Alabama CC,!0000933,Lapalme Andre,2/18/2021,33.35,Unrestricted -Bay Minette,Mileage - IS
Coastal Alabama CC,!0000934,Lucas Teresa,2/18/2021,33.35,Unrestricted -Bay Minette,Mileage - IS
Coastal Alabama CC,!0000935,Roura Reynaldo,2/18/2021,150,Unrestricted -Bay Minette,Other Professional Fees - PS
Coastal Alabama CC,!0000936,Tompkins David,2/18/2021,150,Unrestricted -Bay Minette,Other Professional Fees - PS
Coastal Alabama CC,!0000937,Amazon ,2/18/2021,5.49,Unrestricted Shared Services,Materials and Supplies - MS
Coastal Alabama CC,!0000937,Amazon ,2/18/2021,17.99,PC Local Grant,Materials and Supplies - MS
Coastal Alabama CC,!0000937,Amazon ,2/18/2021,36.88,Unrestricted - Brookley Field,Materials and Supplies - MS
Coastal Alabama CC,!0000937,Amazon ,2/18/2021,62.09,AE-Federal Regular,Materials and Supplies - MS
Coastal Alabama CC,!0000937,Amazon ,2/18/2021,102.33,Unrestricted-Fairhope,Materials and Supplies - MS
Coastal Alabama CC,!0000937,Amazon ,2/18/2021,152.34,Unrestricted-Monroeville,Materials and Supplies - MS
Coastal Alabama CC,!0000937,Amazon ,2/18/2021,1094.78,Student Support Service - MR,Materials and Supplies - MS
Coastal Alabama CC,!0000937,Amazon ,2/18/2021,3540.42,Unrestricted -Bay Minette,Materials and Supplies - MS
Coastal Alabama CC,!0000938,Bay Images ,2/18/2021,386.4,Golf Booster Funds,Deposits Held for Others - Agency
Coastal Alabama CC,!0000939,C & C Plumbing & Servc Co ,2/18/2021,4250,Unrestricted -Bay Minette,Maintenance & Repairs  - OOS
Coastal Alabama CC,!0000940,Cintas Corporation ,2/18/2021,105.7,Unrestricted -Bay Minette,Other Contractual Services - PS
Coastal Alabama CC,!0000941,Pocket Nurse Enterprises Inc. ,2/18/2021,648.39,Unrestricted -Bay Minette,Materials and Supplies - MS
Coastal Alabama CC,!0000942,Quill Corporation ,2/18/2021,111.02,AE - State Inst'l,Materials and Supplies - MS
Coastal Alabama CC,!0000943,Stuart C. Irby Co. ,2/18/2021,295.32,Unrestricted-Monroeville,Maintenance & Repairs  - OOS
Coastal Alabama CC,!0000943,Stuart C. Irby Co. ,2/18/2021,4436.4,Unrestricted-Thomasville,Materials and Supplies - MS
Coastal Alabama CC,!0000944,W W Grainger Inc ,2/18/2021,24.57,Unrestricted -Bay Minette,Materials and Supplies - MS
Coastal Alabama CC,!0000944,W W Grainger Inc ,2/18/2021,219.42,Unrestricted -Brewton,Materials and Supplies - MS
Coastal Alabama CC,!0000945,Wesco Gas & Welding Supply Inc. ,2/18/2021,129.37,Unrestricted-Thomasville,Materials and Supplies - MS
Coastal Alabama CC,!0000946,Xerox Corporation ,2/18/2021,224.2,Unrestricted -Bay Minette,Short-Term Equipment Rentals - OOS
Coastal Alabama CC,!0000948,Beall Jeffrey,2/24/2021,65.83,Unrestricted -Bay Minette,Mileage - IS
Coastal Alabama CC,!0000949,Bjuro Anna,2/24/2021,480,Unrestricted -Bay Minette,Other Professional Fees - PS
Coastal Alabama CC,!0000950,Carden Andrew,2/24/2021,125,Unrestricted -Bay Minette,Materials and Supplies - MS
Coastal Alabama CC,!0000951,Childress Christa,2/24/2021,31.96,Unrestricted-Monroeville,Materials and Supplies - MS
Coastal Alabama CC,!0000952,Dulaney Ariel,2/24/2021,375,Unrestricted -Bay Minette,Other Professional Fees - PS
Coastal Alabama CC,!0000953,Head Daniel,2/24/2021,245.28,Unrestricted -Bay Minette,Mileage - IS
Coastal Alabama CC,!0000954,Killingsworth Jennifer,2/24/2021,57.34,Unrestricted -Bay Minette,Mileage - IS
Coastal Alabama CC,!0000955,King Courtney,2/24/2021,66.7,Unrestricted -Bay Minette,Mileage - IS
Coastal Alabama CC,!0000956,Lumpkin Jeremy,2/24/2021,2450,Unrestricted -Bay Minette,Other Professional Fees - PS
Coastal Alabama CC,!0000957,Madaris Jeffery,2/24/2021,4860,Softball Booster Funds,Deposits Held for Others - Agency
Coastal Alabama CC,!0000958,Moquin Crystal,2/24/2021,138.88,Unrestricted -Bay Minette,Mileage - IS
Coastal Alabama CC,!0000959,Murphy Timothy,2/24/2021,353.92,Unrestricted -Bay Minette,Mileage - IS
Coastal Alabama CC,!0000960,Musacchia Emily,2/24/2021,75,Unrestricted -Bay Minette,Other Professional Fees - PS
Coastal Alabama CC,!0000961,Omtvedt Natalie,2/24/2021,75,Unrestricted -Bay Minette,Other Professional Fees - PS
Coastal Alabama CC,!0000962,Sims James,2/24/2021,48.72,Unrestricted -Bay Minette,Mileage - IS
Coastal Alabama CC,!0000963,Sturdivant Tyler,2/24/2021,525,Unrestricted -Bay Minette,Mileage - IS
Coastal Alabama CC,!0000964,Williams James,2/24/2021,81.76,Unrestricted -Bay Minette,Mileage - IS
Coastal Alabama CC,!0000965,Yelding Cedric,2/24/2021,53.76,Unrestricted -Bay Minette,Mileage - OS
Coastal Alabama CC,!0000966,Amazon ,2/24/2021,20,Unrestricted -Brewton,Books - CE
Coastal Alabama CC,!0000966,Amazon ,2/24/2021,86.77,Unrestricted -Brewton,Materials and Supplies - MS
Coastal Alabama CC,!0000966,Amazon ,2/24/2021,125.51,Housing- Bay Minette,Materials and Supplies - MS
Coastal Alabama CC,!0000966,Amazon ,2/24/2021,161.51,Unrestricted -Gulf Shores,Culinary Consumables
Coastal Alabama CC,!0000966,Amazon ,2/24/2021,256.13,Unrestricted-Monroeville,Materials and Supplies - MS
Coastal Alabama CC,!0000966,Amazon ,2/24/2021,311.58,Unrestricted -Brewton,Audiovisuals - CE
Coastal Alabama CC,!0000966,Amazon ,2/24/2021,315.43,Unrestricted -Gulf Shores,Materials and Supplies - MS
Coastal Alabama CC,!0000966,Amazon ,2/24/2021,3707.7,Unrestricted -Bay Minette,Materials and Supplies - MS
Coastal Alabama CC,!0000967,Atalian US Midwest LL ,2/24/2021,150,Unrestricted -Bay Minette,Other Contractual Services - PS
Coastal Alabama CC,!0000967,Atalian US Midwest LL ,2/24/2021,500,Unrestricted -Gulf Shores,Other Contractual Services - PS
Coastal Alabama CC,!0000968,C & C Plumbing & Servc Co ,2/24/2021,1950,R&R Bay Minette,Maintenance & Repairs  - OOS
Coastal Alabama CC,!0000969,Carolina Biological Supply Co ,2/24/2021,298,Unrestricted-Fairhope,Materials and Supplies - MS
Coastal Alabama CC,!0000970,Central Baldwin Locksmiths LLC ,2/24/2021,75,Unrestricted-Fairhope,Maintenance & Repairs  - OOS
Coastal Alabama CC,!0000970,Central Baldwin Locksmiths LLC ,2/24/2021,90,Unrestricted -Bay Minette,Maintenance & Repairs  - OOS
Coastal Alabama CC,!0000970,Central Baldwin Locksmiths LLC ,2/24/2021,100,Housing- Bay Minette,Maintenance & Repairs  - OOS
Coastal Alabama CC,!0000971,Harding Cassidy,2/24/2021,259.84,Unrestricted -Bay Minette,Mileage - IS
Coastal Alabama CC,!0000972,Heartland Campus Solutions Ecsi ,2/24/2021,500,Unrestricted Shared Services,Other Contractual Services - PS
Coastal Alabama CC,!0000973,I-tech Compulock ,2/24/2021,165,Unrestricted-Thomasville,Maintenance & Repairs  - OOS
Coastal Alabama CC,!0000974,Loftin Brett,2/24/2021,564.53,Unrestricted -Brewton,Materials and Supplies - MS
Coastal Alabama CC,!0000974,Loftin Brett,2/24/2021,564.53,Unrestricted-Monroeville,Materials and Supplies - MS
Coastal Alabama CC,!0000974,Loftin Brett,2/24/2021,1129.04,Unrestricted -Bay Minette,Materials and Supplies - MS
Coastal Alabama CC,!0000975,May Ian,2/24/2021,10,Unrestricted -Bay Minette,Other Professional Fees - PS
Coastal Alabama CC,!0000976,Mongoose Research Inc. ,2/24/2021,8840,Unrestricted -Bay Minette,Other Contractual Services - PS
Coastal Alabama CC,!0000977,North Baldwin Printing LLC ,2/24/2021,75,Unrestricted -Bay Minette,Printing and Binding - OOS
Coastal Alabama CC,!0000978,Office Depot ,2/24/2021,497.06,AE-Federal Regular,Materials and Supplies - MS
Coastal Alabama CC,!0000979,Office Depot ,2/24/2021,2919.83,AE-Federal Regular,Equipment - non capitalized - MS
Coastal Alabama CC,!0000979,Office Depot ,2/24/2021,2964.7,AE - State Regular,Equipment - non capitalized - MS
Coastal Alabama CC,!0000980,Parchment Inc. ,2/24/2021,11711,Unrestricted -Bay Minette,Other Contractual Services - PS
Coastal Alabama CC,!0000981,Pocket Nurse Enterprises Inc. ,2/24/2021,336.64,Unrestricted -Brewton,Materials and Supplies - MS
Coastal Alabama CC,!0000981,Pocket Nurse Enterprises Inc. ,2/24/2021,10500,Vocational Ed/CTE,Equipment - non capitalized - MS
Coastal Alabama CC,!0000982,Pocket Nurse Enterprises Inc. ,2/24/2021,26690,Special Populations,Furniture and Equip $5K - $25K - CE
Coastal Alabama CC,!0000983,Relyco Sales Inc ,2/24/2021,476.45,Unrestricted Shared Services,Materials and Supplies - MS
Coastal Alabama CC,!0000984,South Alabama Gas ,2/24/2021,523.89,Unrestricted-Monroeville,Gas & Heating Fuel - UC
Coastal Alabama CC,!0000985,Staples Contract & Commercial Inc ,2/24/2021,1944.17,Unrestricted-Fairhope,Materials and Supplies - MS
Coastal Alabama CC,!0000986,W W Grainger Inc ,2/24/2021,422.76,Unrestricted -Bay Minette,Materials and Supplies - MS
Coastal Alabama CC,!0000986,W W Grainger Inc ,2/24/2021,1394.96,Unrestricted-Monroeville,Maintenance & Repairs  - OOS
Coastal Alabama CC,!0000987,Wesco Gas & Welding Supply Inc. ,2/24/2021,3107.31,Dual Enrollment,Materials and Supplies - MS
Coastal Alabama CC,!0000988,Xerox Corporation ,2/24/2021,174.75,Unrestricted-Gilbertown,Short-Term Equipment Rentals - OOS
Coastal Alabama CC,!0000988,Xerox Corporation ,2/24/2021,175.9,Unrestricted -Brewton,Short-Term Equipment Rentals - OOS
Coastal Alabama CC,!0000988,Xerox Corporation ,2/24/2021,175.9,Unrestricted -Fairhope Academy,Short-Term Equipment Rentals - OOS
Coastal Alabama CC,!0000988,Xerox Corporation ,2/24/2021,342.27,Unrestricted-Monroeville,Short-Term Equipment Rentals - OOS
Coastal Alabama CC,!0000988,Xerox Corporation ,2/24/2021,633.4,Unrestricted-Thomasville,Short-Term Equipment Rentals - OOS
Coastal Alabama CC,!0000989,Xerox Corporation ,2/24/2021,11992.31,Unrestricted -Bay Minette,Technology - non capitalized - MS
Coastal Alabama CC,!0000990,Xerox Financial Services LLC ,2/24/2021,149.64,Student Support Service -BM,Short-Term Equipment Rentals - OOS
Coastal Alabama CC,!0000990,Xerox Financial Services LLC ,2/24/2021,150.03,Unrestricted - Fountain,Short-Term Equipment Rentals - OOS
Coastal Alabama CC,!0000990,Xerox Financial Services LLC ,2/24/2021,162.36,Unrestricted - Atmore,Short-Term Equipment Rentals - OOS
Coastal Alabama CC,!0000990,Xerox Financial Services LLC ,2/24/2021,212.11,Unrestricted-Thomasville,Short-Term Equipment Rentals - OOS
Coastal Alabama CC,!0000990,Xerox Financial Services LLC ,2/24/2021,368.1,Unrestricted -Gulf Shores,Short-Term Equipment Rentals - OOS
Coastal Alabama CC,!0000990,Xerox Financial Services LLC ,2/24/2021,471.96,Unrestricted - Brookley Field,Short-Term Equipment Rentals - OOS
Coastal Alabama CC,!0000990,Xerox Financial Services LLC ,2/24/2021,518.52,Unrestricted-Fairhope,Short-Term Equipment Rentals - OOS
Coastal Alabama CC,!0000990,Xerox Financial Services LLC ,2/24/2021,1097.56,Unrestricted -Brewton,Short-Term Equipment Rentals - OOS
Coastal Alabama CC,!0000990,Xerox Financial Services LLC ,2/24/2021,1971.32,Unrestricted -Bay Minette,Short-Term Equipment Rentals - OOS
Coastal Alabama CC,!0000991,Ayers David,2/25/2021,431.48,Unrestricted -Bay Minette,Mileage - IS
Coastal Alabama CC,!0000992,Charles John,2/25/2021,712,Unrestricted -Bay Minette,Mileage - IS
Coastal Alabama CC,!0000993,Charles Patsy,2/25/2021,395,Unrestricted -Bay Minette,Mileage - IS
Coastal Alabama CC,!0000994,Davidson Jonathan,2/25/2021,400,Unrestricted -Bay Minette,Mileage - IS
Coastal Alabama CC,!0000995,Dulaney Ariel,2/25/2021,300,Unrestricted -Bay Minette,Other Professional Fees - PS
Coastal Alabama CC,!0000996,Lehning John,2/25/2021,141.12,Unrestricted-Thomasville,Mileage - IS
Coastal Alabama CC,!0000997,Manning Zebbie,2/25/2021,591.36,Unrestricted-Thomasville,Mileage - IS
Coastal Alabama CC,!0000999,Centurytel Inc. ,2/25/2021,2809.51,Unrestricted -Gulf Shores,Landline Phones - UC
Coastal Alabama CC,!0001000,Dogwood Productions Inc ,2/25/2021,392,Unrestricted -Bay Minette,Other Contractual Services - PS
Coastal Alabama CC,!0001001,Encore Rehabilitationinc ,2/25/2021,4999.99,Unrestricted -Brewton,Other Contractual Services - PS
Coastal Alabama CC,!0001002,Maddrama ,2/25/2021,1500,Upward Bound TV,Other Professional Fees - PS
Coastal Alabama CC,!0001003,National Student Clearinghouse ,2/25/2021,425,Student Support Service -BR,Materials and Supplies - MS
Coastal Alabama CC,!0001004,Quill Corporation ,2/25/2021,236.36,Unrestricted -Bay Minette,Materials and Supplies - MS
Coastal Alabama CC,!0001005,Staples Contract & Commercial Inc ,2/25/2021,363.94,Unrestricted-Fairhope,Printing and Binding - OOS
Coastal Alabama CC,!0001005,Staples Contract & Commercial Inc ,2/25/2021,689.98,Unrestricted -Bay Minette,Materials and Supplies - MS
Coastal Alabama CC,!0001006,Wesco Gas & Welding Supply Inc. ,2/25/2021,408.25,Unrestricted -Fairhope Academy,Materials and Supplies - MS
Coastal Alabama CC,!0001007,Xerox Corporation ,2/25/2021,205.36,Unrestricted -Bay Minette,Short-Term Equipment Rentals - OOS
Coastal Alabama CC,!0001008,Boutwell Anita,3/4/2021,209.44,Unrestricted -Brewton,Mileage - IS
Coastal Alabama CC,!0001009,Busby Candis,3/4/2021,322.56,Student Support Service - MR,Mileage - IS
Coastal Alabama CC,!0001010,Carlisle Larry,3/4/2021,534.24,Unrestricted-Thomasville,Mileage - IS
Coastal Alabama CC,!0001011,Chancery Jennifer,3/4/2021,333.76,Unrestricted -Brewton,Mileage - IS
Coastal Alabama CC,!0001012,Clark Potricia,3/4/2021,161.28,Student Support Service - MR,Mileage - IS
Coastal Alabama CC,!0001013,Conerly Lee,3/4/2021,696.64,Unrestricted Shared Services,Mileage - IS
Coastal Alabama CC,!0001014,Day Elizabeth,3/4/2021,225.68,Unrestricted-Fairhope,Other Travel Expenses - IS
Coastal Alabama CC,!0001015,Dees Scott,3/4/2021,1503.16,Unrestricted-Thomasville,Mileage - IS
Coastal Alabama CC,!0001016,Diaz Courtney,3/4/2021,116.48,AE - State Regular,Mileage - IS
Coastal Alabama CC,!0001017,Dulaney Ariel,3/4/2021,75,Unrestricted -Bay Minette,Other Professional Fees - PS
Coastal Alabama CC,!0001018,Dulaney Ariel,3/4/2021,275,Unrestricted -Bay Minette,Other Professional Fees - PS
Coastal Alabama CC,!0001019,Duplantis Joshua,3/4/2021,469,Unrestricted Shared Services,Mileage - IS
Coastal Alabama CC,!0001020,Ethington Tracie,3/4/2021,310.8,Unrestricted-Fairhope,Mileage - IS
Coastal Alabama CC,!0001022,Faircloth Linda,3/4/2021,231.84,AE-Federal Regular,Mileage - IS
Coastal Alabama CC,!0001023,Forester Cathleen,3/4/2021,621.6,Unrestricted -Bay Minette,Mileage - IS
Coastal Alabama CC,!0001024,Fuqua James,3/4/2021,111.44,Unrestricted -Brewton,Mileage - IS
Coastal Alabama CC,!0001025,Gattis Michael,3/4/2021,97.44,Unrestricted-Fairhope,Mileage - IS
Coastal Alabama CC,!0001026,Gibson Katie,3/4/2021,48.16,Talent Search MR,Mileage - IS
Coastal Alabama CC,!0001027,Godfrey Carman,3/4/2021,357.28,Unrestricted -Bay Minette,Mileage - IS
Coastal Alabama CC,!0001028,Godsil Gregory,3/4/2021,200,Unrestricted -Bay Minette,Other Professional Fees - PS
Coastal Alabama CC,!0001029,Grant Margaret,3/4/2021,392.56,Unrestricted -Bay Minette,Mileage - IS
Coastal Alabama CC,!0001030,Hornady Leslie,3/4/2021,223.56,Unrestricted-Monroeville,Mileage - IS
Coastal Alabama CC,!0001031,Jackson Yvette,3/4/2021,181.44,Unrestricted -Bay Minette,Mileage - IS
Coastal Alabama CC,!0001032,Johnson Regina,3/4/2021,322.56,Unrestricted-Monroeville,Mileage - IS
Coastal Alabama CC,!0001033,Jordan Rachael,3/4/2021,292.21,Unrestricted -Bay Minette,Mileage - IS
Coastal Alabama CC,!0001034,Joyner Holley,3/4/2021,294.2,Unrestricted-Monroeville,Mileage - IS
Coastal Alabama CC,!0001035,Lee Stuart,3/4/2021,135.52,AE - State Regular,Mileage - IS
Coastal Alabama CC,!0001036,Lehning John,3/4/2021,298.8,Unrestricted -Bay Minette,Mileage - IS
Coastal Alabama CC,!0001037,Lolley Dana,3/4/2021,89.04,Unrestricted -Bay Minette,Mileage - IS
Coastal Alabama CC,!0001038,Long Vicky,3/4/2021,132.25,Unrestricted-Thomasville,Mileage - IS
Coastal Alabama CC,!0001039,Louallen Clark,3/4/2021,560,Unrestricted -Bay Minette,Other Professional Fees - PS
Coastal Alabama CC,!0001040,Lymon Jeannette,3/4/2021,56.35,Unrestricted - Atmore,Mileage - IS
Coastal Alabama CC,!0001041,Maness Jennifer,3/4/2021,734.85,Unrestricted -Bay Minette,Mileage - IS
Coastal Alabama CC,!0001042,Nims Misti,3/4/2021,8.58,Unrestricted -Brewton,Mileage - OS
Coastal Alabama CC,!0001042,Nims Misti,3/4/2021,291.42,Unrestricted -Brewton,Mileage - IS
Coastal Alabama CC,!0001043,Omtvedt Natalie,3/4/2021,150,Unrestricted -Bay Minette,Other Professional Fees - PS
Coastal Alabama CC,!0001044,Patel Vijay,3/4/2021,196,Unrestricted-Monroeville,Mileage - IS
Coastal Alabama CC,!0001045,Philyaw Jasmine,3/4/2021,208.88,Unrestricted -Bay Minette,Mileage - IS
Coastal Alabama CC,!0001046,Radwitch Mallory,3/4/2021,130.26,Unrestricted -Bay Minette,Mileage - OS
Coastal Alabama CC,!0001046,Radwitch Mallory,3/4/2021,153.38,Unrestricted -Bay Minette,Mileage - IS
Coastal Alabama CC,!0001047,Rey Jennifer,3/4/2021,243.04,AE-Federal Regular,Mileage - IS
Coastal Alabama CC,!0001048,Richardson Nikeya,3/4/2021,232.62,Unrestricted-Monroeville,Mileage - IS
Coastal Alabama CC,!0001049,Robinson Barbara,3/4/2021,204.4,Unrestricted -Bay Minette,Mileage - IS
Coastal Alabama CC,!0001050,Roura Reynaldo,3/4/2021,150,Unrestricted -Bay Minette,Other Professional Fees - PS
Coastal Alabama CC,!0001051,Scarborough Tiffany,3/4/2021,38.08,Unrestricted -Bay Minette,Mileage - IS
Coastal Alabama CC,!0001052,Scarborough Tiffany,3/4/2021,197.12,Unrestricted Shared Services,Mileage - IS
Coastal Alabama CC,!0001053,Skelton Sheila,3/4/2021,63.28,Upward Bound GT,Mileage - IS
Coastal Alabama CC,!0001054,Stokes Jacqueline,3/4/2021,216.05,Unrestricted -Bay Minette,Mileage - IS
Coastal Alabama CC,!0001055,Taylor Charles,3/4/2021,161.28,Student Support Service - MR,Mileage - IS
Coastal Alabama CC,!0001056,Watters Augusta,3/4/2021,99.95,Upward Bound TV,Materials and Supplies - MS
Coastal Alabama CC,!0001057,White Charity,3/4/2021,64.96,Unrestricted -Bay Minette,Mileage - IS
Coastal Alabama CC,!0001058,Abbco Service Corporation ,3/4/2021,6901,Unrestricted-Thomasville,Other Contractual Services - PS
Coastal Alabama CC,!0001058,Abbco Service Corporation ,3/4/2021,7060.17,Unrestricted-Monroeville,Other Contractual Services - PS
Coastal Alabama CC,!0001059,Accreditation Commission For Education In Nursing Inc ,3/4/2021,195,Unrestricted -Brewton,Mileage - IS
Coastal Alabama CC,!0001060,Akd Inc. ,3/4/2021,425.35,Unrestricted-Monroeville,Materials and Supplies - MS
Coastal Alabama CC,!0001060,Akd Inc. ,3/4/2021,425.35,Unrestricted-Thomasville,Materials and Supplies - MS
Coastal Alabama CC,!0001061,Amazon ,3/4/2021,14.99,Unrestricted -Bay Minette,Materials and Supplies - MS
Coastal Alabama CC,!0001061,Amazon ,3/4/2021,33.95,Student Support Service -BR,Materials and Supplies - MS
Coastal Alabama CC,!0001061,Amazon ,3/4/2021,45.98,Unrestricted Shared Services,Materials and Supplies - MS
Coastal Alabama CC,!0001061,Amazon ,3/4/2021,63.86,Unrestricted-Thomasville,Materials and Supplies - MS
Coastal Alabama CC,!0001061,Amazon ,3/4/2021,303.24,Council of the Arts ,Materials and Supplies - MS
Coastal Alabama CC,!0001061,Amazon ,3/4/2021,347.01,Unrestricted -Brewton,Audiovisuals - CE
Coastal Alabama CC,!0001061,Amazon ,3/4/2021,494.69,Unrestricted -Brewton,Books - CE
Coastal Alabama CC,!0001061,Amazon ,3/4/2021,883.31,Unrestricted -Brewton,Materials and Supplies - MS
Coastal Alabama CC,!0001062,Apogee Telecom Inc ,3/4/2021,1687.8,Unrestricted -Bay Minette,Technology - non capitalized - MS
Coastal Alabama CC,!0001062,Apogee Telecom Inc ,3/4/2021,2604.76,Housing - Brewton,Other Contractual Services - PS
Coastal Alabama CC,!0001062,Apogee Telecom Inc ,3/4/2021,16000.69,Housing- Bay Minette,Other Contractual Services - PS
Coastal Alabama CC,!0001063,Arrington Curb & Excavation Inc ,3/4/2021,12924.9,R&R Bay Minette,Maintenance & Repairs  - OOS
Coastal Alabama CC,!0001064,B & W Auto Parts ,3/4/2021,15,Unrestricted -Brewton,Materials and Supplies - MS
Coastal Alabama CC,!0001064,B & W Auto Parts ,3/4/2021,162.45,Unrestricted -Brewton,Maintenance & Repairs  - OOS
Coastal Alabama CC,!0001065,Borden Dairy Company ,3/4/2021,651.46,Food Services- Bay Minette,Purchases for Resale (COGS) - MS
Coastal Alabama CC,!0001066,C Spire Business ,3/4/2021,925.54,Unrestricted Shared Services,Other Contractual Services - PS
Coastal Alabama CC,!0001066,C Spire Business ,3/4/2021,2950,Unrestricted -Bay Minette,Technology - non capitalized - MS
Coastal Alabama CC,!0001067,Carolina Biological Supply Co ,3/4/2021,587.14,Unrestricted -Brewton,Materials and Supplies - MS
Coastal Alabama CC,!0001068,Cintas Corporation ,3/4/2021,30.42,Unrestricted-Fairhope,Athletic Uniforms
Coastal Alabama CC,!0001068,Cintas Corporation ,3/4/2021,130.45,Unrestricted -Bay Minette,Athletic Uniforms
Coastal Alabama CC,!0001069,Deas Building Supply Inc ,3/4/2021,144.64,Unrestricted-Monroeville,Maintenance & Repairs  - OOS
Coastal Alabama CC,!0001069,Deas Building Supply Inc ,3/4/2021,144.64,Unrestricted-Monroeville,Materials and Supplies - MS
Coastal Alabama CC,!0001070,Design Frenzy Inc ,3/4/2021,262,Unrestricted -Brewton,Materials and Supplies - MS
Coastal Alabama CC,!0001071,Design Frenzy Inc ,3/4/2021,488.8,Unrestricted-Fairhope,Advertising & Promotions - OOS
Coastal Alabama CC,!0001072,Encore Rehabilitationinc ,3/4/2021,833.33,Unrestricted -Bay Minette,Other Contractual Services - PS
Coastal Alabama CC,!0001072,Encore Rehabilitationinc ,3/4/2021,833.33,Unrestricted -Brewton,Other Contractual Services - PS
Coastal Alabama CC,!0001073,Energy Systems Air Conditioning Contractors Inc ,3/4/2021,6125,R&R  Brewton,Maintenance & Repairs  - OOS
Coastal Alabama CC,!0001074,Evans Meats Inc ,3/4/2021,1551.38,Unrestricted -Gulf Shores,Culinary Consumables
Coastal Alabama CC,!0001075,Hazelwood Jeremy,3/4/2021,280,Unrestricted -Bay Minette,Other Professional Fees - PS
Coastal Alabama CC,!0001076,Howard Technology Solutions ,3/4/2021,143000,Unrestricted Shared Services,Technology - non capitalized - MS
Coastal Alabama CC,!0001077,Kelly's Turf Pro ,3/4/2021,3516,Unrestricted -Bay Minette,Other Professional Fees - PS
Coastal Alabama CC,!0001078,Laerdal ,3/4/2021,175.79,Special Populations,Materials and Supplies - MS
Coastal Alabama CC,!0001078,Laerdal ,3/4/2021,4456.66,Special Populations,Professional Development - PS
Coastal Alabama CC,!0001078,Laerdal ,3/4/2021,11608.53,Special Populations,Computer Software(non capital) - MS
Coastal Alabama CC,!0001078,Laerdal ,3/4/2021,12824.62,Special Populations,Technology - non capitalized - MS
Coastal Alabama CC,!0001079,Maye Roy,3/4/2021,150,Unrestricted-Monroeville,Other Professional Fees - PS
Coastal Alabama CC,!0001080,May Ian,3/4/2021,15,Unrestricted -Bay Minette,Other Professional Fees - PS
Coastal Alabama CC,!0001081,Pocket Nurse Enterprises Inc. ,3/4/2021,464.6,Unrestricted-Monroeville,Materials and Supplies - MS
Coastal Alabama CC,!0001082,Quill Corporation ,3/4/2021,1188.59,Unrestricted-Monroeville,Materials and Supplies - MS
Coastal Alabama CC,!0001083,Quill Corporation ,3/4/2021,108.09,Student Support Service -BR,Materials and Supplies - MS
Coastal Alabama CC,!0001083,Quill Corporation ,3/4/2021,242.52,Unrestricted - Brookley Field,Materials and Supplies - MS
Coastal Alabama CC,!0001083,Quill Corporation ,3/4/2021,412.29,Student Support Service -BM,Materials and Supplies - MS
Coastal Alabama CC,!0001083,Quill Corporation ,3/4/2021,565.46,Unrestricted -Bay Minette,Materials and Supplies - MS
Coastal Alabama CC,!0001084,Republic Services Inc. ,3/4/2021,180.88,Unrestricted - Brookley Field,Service Contracts on Equipment -OOS
Coastal Alabama CC,!0001084,Republic Services Inc. ,3/4/2021,415.3,Unrestricted - Atmore,Waste Disposal - UC
Coastal Alabama CC,!0001084,Republic Services Inc. ,3/4/2021,560.89,Unrestricted -Gulf Shores,Service Contracts on Equipment -OOS
Coastal Alabama CC,!0001085,Scrip-Safe Security Products Inc. ,3/4/2021,1053,Unrestricted -Bay Minette,Materials and Supplies - MS
Coastal Alabama CC,!0001086,Southern View Media LLC ,3/4/2021,700,Unrestricted -Bay Minette,Other Professional Fees - PS
Coastal Alabama CC,!0001087,Staples Contract & Commercial Inc ,3/4/2021,323.48,Unrestricted -Gulf Shores,Materials and Supplies - MS
Coastal Alabama CC,!0001088,W W Grainger Inc ,3/4/2021,218.9,Vocational Ed/CTE,Materials and Supplies - MS
Coastal Alabama CC,!0001088,W W Grainger Inc ,3/4/2021,3256.55,Unrestricted-Thomasville,Materials and Supplies - MS
Coastal Alabama CC,!0001089,Walters Control Inc ,3/4/2021,11090,Housing- Bay Minette,Maintenance & Repairs  - OOS
Coastal Alabama CC,!0001090,Wesco Gas & Welding Supply Inc. ,3/4/2021,1072.39,Unrestricted-Thomasville,Materials and Supplies - MS
Coastal Alabama CC,!0001090,Wesco Gas & Welding Supply Inc. ,3/4/2021,2531.92,Unrestricted -Fairhope Academy,Materials and Supplies - MS
Coastal Alabama CC,!0001091,West Publishing Corporation ,3/4/2021,5256,Unrestricted -Bay Minette,Subscriptions - OOS
Coastal Alabama CC,!0001092,Xerox Corporation ,3/4/2021,175.9,Unrestricted-Fairhope,Short-Term Equipment Rentals - OOS
Coastal Alabama CC,!0001093,Xerox Corporation ,3/4/2021,9.1,Student Support Service -BM,Short-Term Equipment Rentals - OOS
Coastal Alabama CC,!0001093,Xerox Corporation ,3/4/2021,31.66,Unrestricted -Bay Minette,Short-Term Equipment Rentals - OOS
Coastal Alabama CC,!0001093,Xerox Corporation ,3/4/2021,11992.31,Unrestricted -Bay Minette,Technology - non capitalized - MS
Coastal Alabama CC,!0001094,Xerox Financial Services LLC ,3/4/2021,149.64,Student Support Service -BM,Short-Term Equipment Rentals - OOS
Coastal Alabama CC,!0001094,Xerox Financial Services LLC ,3/4/2021,150.03,Unrestricted - Fountain,Short-Term Equipment Rentals - OOS
Coastal Alabama CC,!0001094,Xerox Financial Services LLC ,3/4/2021,162.36,Unrestricted - Atmore,Short-Term Equipment Rentals - OOS
Coastal Alabama CC,!0001094,Xerox Financial Services LLC ,3/4/2021,212.11,Unrestricted-Thomasville,Short-Term Equipment Rentals - OOS
Coastal Alabama CC,!0001094,Xerox Financial Services LLC ,3/4/2021,368.1,Unrestricted -Gulf Shores,Short-Term Equipment Rentals - OOS
Coastal Alabama CC,!0001094,Xerox Financial Services LLC ,3/4/2021,471.96,Unrestricted - Brookley Field,Short-Term Equipment Rentals - OOS
Coastal Alabama CC,!0001094,Xerox Financial Services LLC ,3/4/2021,518.52,Unrestricted-Fairhope,Short-Term Equipment Rentals - OOS
Coastal Alabama CC,!0001094,Xerox Financial Services LLC ,3/4/2021,1097.56,Unrestricted -Brewton,Short-Term Equipment Rentals - OOS
Coastal Alabama CC,!0001094,Xerox Financial Services LLC ,3/4/2021,1217.32,Unrestricted -Bay Minette,Short-Term Equipment Rentals - OOS
Coastal Alabama CC,!0001095,Bjuro Anna,3/9/2021,400,Unrestricted -Bay Minette,Other Professional Fees - PS
Coastal Alabama CC,!0001096,Brasell Mary,3/9/2021,348.32,Talent Search MR,Mileage - IS
Coastal Alabama CC,!0001097,Carey Cullen,3/9/2021,359.52,WIOA,Mileage - IS
Coastal Alabama CC,!0001098,Childress Christa,3/9/2021,268.04,Unrestricted-Monroeville,Materials and Supplies - MS
Coastal Alabama CC,!0001099,Craig Chadijah,3/9/2021,1000,Upward Bound TV,Other Professional Fees - PS
Coastal Alabama CC,!0001099,Craig Chadijah,3/9/2021,1800,Upward Bound TV,Materials and Supplies - MS
Coastal Alabama CC,!0001100,Dupont Kenny,3/9/2021,39.99,Unrestricted-Monroeville,Materials and Supplies - MS
Coastal Alabama CC,!0001101,Ebert Tammy,3/9/2021,124.32,Unrestricted Shared Services,Mileage - IS
Coastal Alabama CC,!0001102,Ellison Kay,3/9/2021,92.29,Unrestricted -Bay Minette,Mileage - IS
Coastal Alabama CC,!0001103,Ellison Kay,3/9/2021,126,Unrestricted -Bay Minette,Mileage - IS
Coastal Alabama CC,!0001104,Frye Samantha,3/9/2021,70.15,Unrestricted-Monroeville,Mileage - IS
Coastal Alabama CC,!0001105,Gainer Lloyd,3/9/2021,90.85,Unrestricted -Brewton,Mileage - IS
Coastal Alabama CC,!0001106,Jackson Anthony,3/9/2021,159.04,Unrestricted-Thomasville,Mileage - IS
Coastal Alabama CC,!0001107,Louallen Clark,3/9/2021,280,Unrestricted-Monroeville,Other Professional Fees - PS
Coastal Alabama CC,!0001108,Mauldin Gary,3/9/2021,280,Unrestricted-Monroeville,Other Professional Fees - PS
Coastal Alabama CC,!0001109,Mitchell Yolundra,3/9/2021,77.28,Unrestricted -Brewton,Mileage - IS
Coastal Alabama CC,!0001110,Sawyer Mary,3/9/2021,33.35,Unrestricted-Fairhope,Mileage - IS
Coastal Alabama CC,!0001111,Spivey Henry,3/9/2021,129.92,Unrestricted -Gulf Shores,Mileage - IS
Coastal Alabama CC,!0001112,Alabama Flag & Banner Inc ,3/9/2021,655.77,R&R  Fairhope,Maintenance & Repairs  - OOS
Coastal Alabama CC,!0001112,Alabama Flag & Banner Inc ,3/9/2021,1311.73,R&R  Gulf Shores,Maintenance & Repairs  - OOS
Coastal Alabama CC,!0001113,Amazon ,3/9/2021,79.96,Unrestricted -Brewton,Materials and Supplies - MS
Coastal Alabama CC,!0001114,CDW LLC ,3/9/2021,58.4,Unrestricted - Brookley Field,Materials and Supplies - MS
Coastal Alabama CC,!0001115,CDW LLC ,3/9/2021,6280.91,AE-Federal Regular,Materials and Supplies - MS
Coastal Alabama CC,!0001116,Central Baldwin Locksmiths LLC ,3/9/2021,350,Housing- Bay Minette,Maintenance & Repairs  - OOS
Coastal Alabama CC,!0001117,Cintas Corporation ,3/9/2021,140,Unrestricted-Thomasville,Other Contractual Services - PS
Coastal Alabama CC,!0001118,Cintas Corporation ,3/9/2021,140,Unrestricted-Monroeville,Other Contractual Services - PS
Coastal Alabama CC,!0001119,Cintas Corporation ,3/9/2021,48.51,Unrestricted - Atmore,Other Contractual Services - PS
Coastal Alabama CC,!0001119,Cintas Corporation ,3/9/2021,115.88,Unrestricted -Brewton,Other Contractual Services - PS
Coastal Alabama CC,!0001120,Ferguson Enterprises Inc ,3/9/2021,90.24,Unrestricted -Bay Minette,Materials and Supplies - MS
Coastal Alabama CC,!0001121,I-tech Compulock ,3/9/2021,53,Unrestricted-Thomasville,Maintenance & Repairs  - OOS
Coastal Alabama CC,!0001121,I-tech Compulock ,3/9/2021,159,Unrestricted -Brewton,Maintenance & Repairs  - OOS
Coastal Alabama CC,!0001122,Pocket Nurse Enterprises Inc. ,3/9/2021,203.67,Unrestricted -Brewton,Materials and Supplies - MS
Coastal Alabama CC,!0001122,Pocket Nurse Enterprises Inc. ,3/9/2021,271.68,Unrestricted Shared Services,Materials and Supplies - MS
Coastal Alabama CC,!0001122,Pocket Nurse Enterprises Inc. ,3/9/2021,5250,Vocational Ed/CTE,Equipment - non capitalized - MS
Coastal Alabama CC,!0001123,Pocket Nurse Enterprises Inc. ,3/9/2021,5250,Special Populations,Computer Software(non capital) - MS
Coastal Alabama CC,!0001123,Pocket Nurse Enterprises Inc. ,3/9/2021,27039,Special Populations,Furniture and Equip $5K - $25K - CE
Coastal Alabama CC,!0001124,Quill Corporation ,3/9/2021,362.46,Unrestricted Shared Services,Materials and Supplies - MS
Coastal Alabama CC,!0001124,Quill Corporation ,3/9/2021,450.82,Unrestricted - Brookley Field,Materials and Supplies - MS
Coastal Alabama CC,!0001125,Republic Services Inc. ,3/9/2021,387.61,Unrestricted - Fountain,Waste Disposal - UC
Coastal Alabama CC,!0001125,Republic Services Inc. ,3/9/2021,402.6,Unrestricted -Brewton,Waste Disposal - UC
Coastal Alabama CC,!0001125,Republic Services Inc. ,3/9/2021,1085.77,Housing - Brewton,Waste Disposal - UC
Coastal Alabama CC,!0001126,South Baldwin Chamber of Commerce ,3/9/2021,750,Special Populations,Advertising & Promotions - OOS
Coastal Alabama CC,!0001127,Staples Contract & Commercial Inc ,3/9/2021,32,Student Support Service - MR,Materials and Supplies - MS
Coastal Alabama CC,!0001127,Staples Contract & Commercial Inc ,3/9/2021,966.88,Unrestricted -Bay Minette,Materials and Supplies - MS
Coastal Alabama CC,!0001129,W W Grainger Inc ,3/9/2021,412.75,Unrestricted -Bay Minette,Materials and Supplies - MS
Coastal Alabama CC,!0001129,W W Grainger Inc ,3/9/2021,1437.6,Unrestricted-Thomasville,Materials and Supplies - MS
Coastal Alabama CC,!0001130,Wesco Gas & Welding Supply Inc. ,3/9/2021,561.3,Unrestricted-Thomasville,Materials and Supplies - MS
Coastal Alabama CC,!0001131,Xerox Corporation ,3/9/2021,182.08,Unrestricted-Thomasville,Short-Term Equipment Rentals - OOS
Coastal Alabama CC,!0001132,Averitt Jennifer,3/12/2021,81.76,Unrestricted -Bay Minette,Mileage - IS
Coastal Alabama CC,!0001133,Childress Christa,3/12/2021,163.52,Unrestricted-Monroeville,Mileage - IS
Coastal Alabama CC,!0001134,Davis Sara,3/12/2021,50.36,Unrestricted Shared Services,Materials and Supplies - MS
Coastal Alabama CC,!0001135,Dulaney Ariel,3/12/2021,75,Unrestricted -Bay Minette,Other Professional Fees - PS
Coastal Alabama CC,!0001136,Dunnam Angela,3/12/2021,756,Unrestricted -Bay Minette,Mileage - IS
Coastal Alabama CC,!0001137,Etheridge Rachel,3/12/2021,591.36,Unrestricted-Thomasville,Mileage - IS
Coastal Alabama CC,!0001138,Evans John,3/12/2021,150,Unrestricted -Bay Minette,Other Professional Fees - PS
Coastal Alabama CC,!0001139,Fields Khori,3/12/2021,142.46,Unrestricted -Bay Minette,Mileage - IS
Coastal Alabama CC,!0001140,Graham Jean,3/12/2021,32.48,Unrestricted Shared Services,Mileage - IS
Coastal Alabama CC,!0001140,Graham Jean,3/12/2021,88.48,Unrestricted -Bay Minette,Mileage - IS
Coastal Alabama CC,!0001141,Hutcherson Lindsay,3/12/2021,755.44,Unrestricted Shared Services,Mileage - IS
Coastal Alabama CC,!0001142,Jackson Yvette,3/12/2021,599.2,Unrestricted -Bay Minette,Mileage - IS
Coastal Alabama CC,!0001143,Linam Alisha,3/12/2021,82.88,Unrestricted-Monroeville,Mileage - IS
Coastal Alabama CC,!0001144,Lovoy Thomas,3/12/2021,47.15,Unrestricted -Gulf Shores,Mileage - IS
Coastal Alabama CC,!0001145,Moquin Crystal,3/12/2021,427.84,Unrestricted -Bay Minette,Mileage - IS
Coastal Alabama CC,!0001146,Murphy Melinda,3/12/2021,136.64,Unrestricted Shared Services,Mileage - IS
Coastal Alabama CC,!0001147,Omtvedt Natalie,3/12/2021,75,Unrestricted -Bay Minette,Other Professional Fees - PS
Coastal Alabama CC,!0001148,Phillips Jr John,3/12/2021,200,Unrestricted -Bay Minette,Other Professional Fees - PS
Coastal Alabama CC,!0001149,Stone Heather,3/12/2021,33.6,Unrestricted -Brewton,Mileage - IS
Coastal Alabama CC,!0001150,Tomlinson Ronald,3/12/2021,125,Unrestricted -Bay Minette,Other Professional Fees - PS
Coastal Alabama CC,!0001151,Williford Joseph,3/12/2021,305.2,Unrestricted -Bay Minette,Mileage - IS
Coastal Alabama CC,!0001152,Amazon ,3/12/2021,12.91,Housing- Bay Minette,Materials and Supplies - MS
Coastal Alabama CC,!0001152,Amazon ,3/12/2021,54.85,Unrestricted-Monroeville,Materials and Supplies - MS
Coastal Alabama CC,!0001152,Amazon ,3/12/2021,107.07,Unrestricted Shared Services,Materials and Supplies - MS
Coastal Alabama CC,!0001152,Amazon ,3/12/2021,117.77,Student Support Service -BM,Materials and Supplies - MS
Coastal Alabama CC,!0001152,Amazon ,3/12/2021,1537.08,Unrestricted -Bay Minette,Materials and Supplies - MS
Coastal Alabama CC,!0001153,Assurance Service Group Inc ,3/12/2021,9817,Unrestricted -Gulf Shores,Maintenance & Repairs  - OOS
Coastal Alabama CC,!0001154,Atalian US Midwest LL ,3/12/2021,2079.31,Unrestricted-Gilbertown,Other Contractual Services - PS
Coastal Alabama CC,!0001154,Atalian US Midwest LL ,3/12/2021,2265.73,Unrestricted -Gulf Shores,Other Contractual Services - PS
Coastal Alabama CC,!0001154,Atalian US Midwest LL ,3/12/2021,2748.03,Unrestricted - Brookley Field,Other Contractual Services - PS
Coastal Alabama CC,!0001154,Atalian US Midwest LL ,3/12/2021,3393.2,Unrestricted - Atmore,Other Contractual Services - PS
Coastal Alabama CC,!0001154,Atalian US Midwest LL ,3/12/2021,5827.5,Unrestricted-Fairhope,Other Contractual Services - PS
Coastal Alabama CC,!0001154,Atalian US Midwest LL ,3/12/2021,24701.51,Unrestricted -Bay Minette,Other Contractual Services - PS
Coastal Alabama CC,!0001155,Camfil USA Inc ,3/12/2021,605.15,Unrestricted - Atmore,Materials and Supplies - MS
Coastal Alabama CC,!0001156,CDW LLC ,3/12/2021,597.98,Unrestricted Shared Services,Technology - non capitalized - MS
Coastal Alabama CC,!0001157,Dozier Hardware Co Inc ,3/12/2021,285.58,Unrestricted-Thomasville,Materials and Supplies - MS
Coastal Alabama CC,!0001157,Dozier Hardware Co Inc ,3/12/2021,378.55,Unrestricted-Thomasville,Maintenance & Repairs  - OOS
Coastal Alabama CC,!0001158,Eastern Shore Chamber of Commerce ,3/12/2021,830,Unrestricted -Bay Minette,Advertising & Promotions - OOS
Coastal Alabama CC,!0001159,Ferguson Enterprises Inc ,3/12/2021,723.36,Housing- Bay Minette,Materials and Supplies - MS
Coastal Alabama CC,!0001159,Ferguson Enterprises Inc ,3/12/2021,749,Unrestricted -Bay Minette,Materials and Supplies - MS
Coastal Alabama CC,!0001160,Golf Coaches Association of America ,3/12/2021,145,Unrestricted -Bay Minette,Memberships - PS
Coastal Alabama CC,!0001161,Information Transport Solutions Inc ,3/12/2021,480547.2,CARES Act - College Relief,Other Professional Fees - PS
Coastal Alabama CC,!0001162,Kelly's Turf Pro ,3/12/2021,700,Unrestricted -Bay Minette,Materials and Supplies - MS
Coastal Alabama CC,!0001163,North Baldwin Printing LLC ,3/12/2021,450,Unrestricted -Bay Minette,Printing and Binding - OOS
Coastal Alabama CC,!0001164,nSide Inc ,3/12/2021,2500,Unrestricted -Brewton,Other Professional Fees - PS
Coastal Alabama CC,!0001164,nSide Inc ,3/12/2021,3500,Unrestricted-Monroeville,Other Professional Fees - PS
Coastal Alabama CC,!0001164,nSide Inc ,3/12/2021,5000,Unrestricted -Bay Minette,Other Professional Fees - PS
Coastal Alabama CC,!0001165,Pocket Nurse Enterprises Inc. ,3/12/2021,1495,Vocational Ed/CTE,Equipment - non capitalized - MS
Coastal Alabama CC,!0001165,Pocket Nurse Enterprises Inc. ,3/12/2021,2411.01,Unrestricted Shared Services,Materials and Supplies - MS
Coastal Alabama CC,!0001166,Quill Corporation ,3/12/2021,71.38,Unrestricted - Brookley Field,Materials and Supplies - MS
Coastal Alabama CC,!0001166,Quill Corporation ,3/12/2021,312.28,Unrestricted -Bay Minette,Materials and Supplies - MS
Coastal Alabama CC,!0001166,Quill Corporation ,3/12/2021,689.68,Unrestricted-Monroeville,Materials and Supplies - MS
Coastal Alabama CC,!0001167,Republic Services Inc. ,3/12/2021,500,Housing- Bay Minette,Service Contracts on Equipment -OOS
Coastal Alabama CC,!0001167,Republic Services Inc. ,3/12/2021,962.9,Unrestricted -Bay Minette,Other Professional Fees - PS
Coastal Alabama CC,!0001168,Southwest Al Newspapers ,3/12/2021,27.52,Unrestricted-Monroeville,Subscriptions - OOS
Coastal Alabama CC,!0001169,Staples Contract & Commercial Inc ,3/12/2021,42.55,Unrestricted-Fairhope,Materials and Supplies - MS
Coastal Alabama CC,!0001169,Staples Contract & Commercial Inc ,3/12/2021,282.02,Upward Bound TV,Materials and Supplies - MS
Coastal Alabama CC,!0001169,Staples Contract & Commercial Inc ,3/12/2021,844,Unrestricted Shared Services,Materials and Supplies - MS
Coastal Alabama CC,!0001170,Stuart C. Irby Co. ,3/12/2021,78,Unrestricted-Monroeville,Maintenance & Repairs  - OOS
Coastal Alabama CC,!0001171,Tappi ,3/12/2021,1000,NSF ,Other Contractual Services - PS
Coastal Alabama CC,!0001172,W W Grainger Inc ,3/12/2021,990.92,Unrestricted -Bay Minette,Materials and Supplies - MS
Coastal Alabama CC,!0001172,W W Grainger Inc ,3/12/2021,3665.29,Vocational Ed/CTE,Materials and Supplies - MS
Coastal Alabama CC,!0001172,W W Grainger Inc ,3/12/2021,5353.36,Unrestricted - Atmore,Maintenance & Repairs  - OOS
Coastal Alabama CC,!0001173,Wesco Gas & Welding Supply Inc. ,3/12/2021,40.12,Unrestricted-Thomasville,Materials and Supplies - MS
Coastal Alabama CC,!0001174,Xerox Corporation ,3/12/2021,176,Unrestricted-Jackson,Short-Term Equipment Rentals - OOS
Coastal Alabama CC,!0001174,Xerox Corporation ,3/12/2021,197.37,Unrestricted - Atmore,Short-Term Equipment Rentals - OOS
Coastal Alabama CC,!0001174,Xerox Corporation ,3/12/2021,229.7,Unrestricted-Monroeville,Short-Term Equipment Rentals - OOS
Coastal Alabama CC,!0001174,Xerox Corporation ,3/12/2021,508.74,Unrestricted-Thomasville,Short-Term Equipment Rentals - OOS
Coastal Alabama CC,!0001174,Xerox Corporation ,3/12/2021,923.23,Unrestricted -Bay Minette,Short-Term Equipment Rentals - OOS
Coastal Alabama CC,!0001175,Assmann Kevin,3/16/2021,250,Unrestricted -Brewton,Other Professional Fees - PS
Coastal Alabama CC,!0001175,Assmann Kevin,3/16/2021,250,Unrestricted-Monroeville,Other Professional Fees - PS
Coastal Alabama CC,!0001176,Dean Katrina,3/16/2021,139.44,Talent Search MR,Mileage - IS
Coastal Alabama CC,!0001177,Evans John,3/16/2021,125,Unrestricted -Brewton,Other Professional Fees - PS
Coastal Alabama CC,!0001178,Gamble Jasmine,3/16/2021,78.85,Talent Search MR,Mileage - IS
Coastal Alabama CC,!0001179,Gilkerson Erica,3/16/2021,522.38,AE - State Regular,Mileage - IS
Coastal Alabama CC,!0001180,Godsil Gregory,3/16/2021,200,Unrestricted -Brewton,Other Professional Fees - PS
Coastal Alabama CC,!0001181,Louallen Clark,3/16/2021,280,Unrestricted -Brewton,Other Professional Fees - PS
Coastal Alabama CC,!0001182,Roura Reynaldo,3/16/2021,125,Unrestricted -Brewton,Other Professional Fees - PS
Coastal Alabama CC,!0001183,Walker II William,3/16/2021,500,Unrestricted -Brewton,Other Professional Fees - PS
Coastal Alabama CC,!0001184,Amazon ,3/16/2021,397.67,Unrestricted -Bay Minette,Materials and Supplies - MS
Coastal Alabama CC,!0001185,Carolina Biological Supply Co ,3/16/2021,4111.41,Unrestricted -Bay Minette,Materials and Supplies - MS
Coastal Alabama CC,!0001186,Central Gulf Industrial Alliance Inc ,3/16/2021,3000,Unrestricted-Thomasville,Memberships - PS
Coastal Alabama CC,!0001187,Electro-Mech Scoreboard Co ,3/16/2021,422,Unrestricted -Bay Minette,Materials and Supplies - MS
Coastal Alabama CC,!0001188,Information Transport Solutions Inc ,3/16/2021,3500,Unrestricted Shared Services,Other Contractual Services - PS
Coastal Alabama CC,!0001188,Information Transport Solutions Inc ,3/16/2021,197208,CARES Act - College Relief,Other Professional Fees - PS
Coastal Alabama CC,!0001189,KONE Inc. ,3/16/2021,441.7,Unrestricted-Fairhope,Maintenance & Repairs  - OOS
Coastal Alabama CC,!0001189,KONE Inc. ,3/16/2021,770.92,Unrestricted -Bay Minette,Maintenance & Repairs  - OOS
Coastal Alabama CC,!0001190,Magnolia Clipping & Broadcast Monitoring Service ,3/16/2021,118.68,Unrestricted -Bay Minette,Other Professional Fees - PS
Coastal Alabama CC,!0001191,Parchment Inc. ,3/16/2021,2409.65,Unrestricted Shared Services,Other Contractual Services - PS
Coastal Alabama CC,!0001192,Pocket Nurse Enterprises Inc. ,3/16/2021,573.43,Unrestricted Shared Services,Materials and Supplies - MS
Coastal Alabama CC,!0001193,Quill Corporation ,3/16/2021,151.24,Unrestricted - Brookley Field,Materials and Supplies - MS
Coastal Alabama CC,!0001194,South Alabama Gas ,3/16/2021,5507.56,Unrestricted-Monroeville,Gas & Heating Fuel - UC
Coastal Alabama CC,!0001195,Staples Contract & Commercial Inc ,3/16/2021,153.31,Dual Enrollment,Materials and Supplies - MS
Coastal Alabama CC,!0001195,Staples Contract & Commercial Inc ,3/16/2021,202.73,Unrestricted-Fairhope,Materials and Supplies - MS
Coastal Alabama CC,!0001195,Staples Contract & Commercial Inc ,3/16/2021,211.43,Unrestricted -Bay Minette,Materials and Supplies - MS
Coastal Alabama CC,!0001196,Tutor.com Inc ,3/16/2021,12811.76,CARES Act - College Relief,Computer Software(non capital) - MS
Coastal Alabama CC,!0001197,W W Grainger Inc ,3/16/2021,341.38,Unrestricted - Brookley Field,Materials and Supplies - MS
Coastal Alabama CC,!0001198,Wesco Gas & Welding Supply Inc. ,3/16/2021,337.45,Unrestricted-Thomasville,Materials and Supplies - MS
Coastal Alabama CC,!0001199,Wilson Faye,3/16/2021,100,Unrestricted -Brewton,Other Professional Fees - PS
Coastal Alabama CC,!0001200,Xerox Corporation ,3/16/2021,327.66,Unrestricted-Fairhope,Short-Term Equipment Rentals - OOS
Coastal Alabama CC,!0001200,Xerox Corporation ,3/16/2021,1009.45,Unrestricted -Bay Minette,Short-Term Equipment Rentals - OOS
Coastal Alabama CC,!0001201,Xerox Financial Services LLC ,3/16/2021,410,Unrestricted -Gulf Shores,Short-Term Equipment Rentals - OOS
Coastal Alabama CC,!0001202,Allen Kouri,3/18/2021,55,Unrestricted -Bay Minette,Mileage - OS
Coastal Alabama CC,!0001203,Assmann Kevin,3/18/2021,250,Unrestricted -Bay Minette,Other Professional Fees - PS
Coastal Alabama CC,!0001204,Dunnam Angela,3/18/2021,1183.84,Unrestricted -Bay Minette,Mileage - IS
Coastal Alabama CC,!0001205,Ellison Kay,3/18/2021,282.02,Unrestricted -Bay Minette,Mileage - IS
Coastal Alabama CC,!0001206,Hooks Sherry,3/18/2021,53.42,Unrestricted -Brewton,Mileage - IS
Coastal Alabama CC,!0001207,Kohen Mattie,3/18/2021,191.52,Unrestricted-Monroeville,Mileage - IS
Coastal Alabama CC,!0001208,Minard David,3/18/2021,227.36,Unrestricted -Bay Minette,Mileage - IS
Coastal Alabama CC,!0001209,Pitts Linda,3/18/2021,107.52,Unrestricted -Bay Minette,Mileage - OS
Coastal Alabama CC,!0001210,Smith Merrilyn,3/18/2021,67.2,Unrestricted-Thomasville,Mileage - IS
Coastal Alabama CC,!0001211,4Imprint Inc ,3/18/2021,538.66,Unrestricted-Fairhope,Advertising & Promotions - OOS
Coastal Alabama CC,!0001211,4Imprint Inc ,3/18/2021,1536.62,Unrestricted-Thomasville,Materials and Supplies - MS
Coastal Alabama CC,!0001212,Al Hill's Boiler Sales & Repair Inc ,3/18/2021,1053,Unrestricted -Bay Minette,Other Professional Fees - PS
Coastal Alabama CC,!0001212,Al Hill's Boiler Sales & Repair Inc ,3/18/2021,2372,R&R Bay Minette,Maintenance & Repairs  - OOS
Coastal Alabama CC,!0001213,Amazon ,3/18/2021,33.94,Unrestricted -Brewton,Audiovisuals - CE
Coastal Alabama CC,!0001213,Amazon ,3/18/2021,75.65,Unrestricted -Brewton,Materials and Supplies - MS
Coastal Alabama CC,!0001213,Amazon ,3/18/2021,114.08,Unrestricted-Monroeville,Materials and Supplies - MS
Coastal Alabama CC,!0001213,Amazon ,3/18/2021,178.57,Unrestricted-Fairhope,Materials and Supplies - MS
Coastal Alabama CC,!0001213,Amazon ,3/18/2021,392,Unrestricted-Thomasville,Materials and Supplies - MS
Coastal Alabama CC,!0001213,Amazon ,3/18/2021,448.78,Unrestricted -Bay Minette,Materials and Supplies - MS
Coastal Alabama CC,!0001213,Amazon ,3/18/2021,773.66,Unrestricted -Brewton,Books - CE
Coastal Alabama CC,!0001214,Assurance Service Group Inc ,3/18/2021,4917.73,R&R  Brewton,Building Alterations - CE
Coastal Alabama CC,!0001215,Brown & Co Sports Portrai ,3/18/2021,660,Baseball Booster Account,Deposits Held for Others - Agency
Coastal Alabama CC,!0001216,Cintas Corporation ,3/18/2021,84.33,Unrestricted - Brookley Field,Materials and Supplies - MS
Coastal Alabama CC,!0001217,City Electric Supply Co ,3/18/2021,160.9,Unrestricted -Gulf Shores,Materials and Supplies - MS
Coastal Alabama CC,!0001217,City Electric Supply Co ,3/18/2021,423.67,Unrestricted-Fairhope,Materials and Supplies - MS
Coastal Alabama CC,!0001217,City Electric Supply Co ,3/18/2021,503.04,Unrestricted -Bay Minette,Materials and Supplies - MS
Coastal Alabama CC,!0001218,Loftin Brett,3/18/2021,360,Unrestricted-Monroeville,Materials and Supplies - MS
Coastal Alabama CC,!0001218,Loftin Brett,3/18/2021,540,Unrestricted-Thomasville,Materials and Supplies - MS
Coastal Alabama CC,!0001219,Parchment Inc. ,3/18/2021,755.15,Unrestricted Shared Services,Other Contractual Services - PS
Coastal Alabama CC,!0001220,Tutor.com Inc ,3/18/2021,1503.06,CARES Act - College Relief,Other Contractual Services - PS
Coastal Alabama CC,!0001221,W W Grainger Inc ,3/18/2021,360.37,Unrestricted -Bay Minette,Materials and Supplies - MS
Coastal Alabama CC,!0001222,Wesco Gas & Welding Supply Inc. ,3/18/2021,9.99,Unrestricted -Fairhope Academy,Materials and Supplies - MS
Coastal Alabama CC,!0001223,Wilcox Progressive Era ,3/18/2021,220,Council of the Arts ,Advertising & Promotions - OOS
Coastal Alabama CC,!0001224,Xerox Corporation ,3/18/2021,42.67,Unrestricted -Gulf Shores,Short-Term Equipment Rentals - OOS
Coastal Alabama CC,!0001225,Xerox Corporation ,3/18/2021,-63.17,Unrestricted-Thomasville,Short-Term Equipment Rentals - OOS
Coastal Alabama CC,!0001225,Xerox Corporation ,3/18/2021,108.31,Unrestricted-Monroeville,Short-Term Equipment Rentals - OOS
Coastal Alabama CC,!0001225,Xerox Corporation ,3/18/2021,189.93,Unrestricted-Gilbertown,Short-Term Equipment Rentals - OOS
Coastal Alabama CC,!0001225,Xerox Corporation ,3/18/2021,250.38,Unrestricted -Bay Minette,Short-Term Equipment Rentals - OOS
Coastal Alabama CC,!0001226,Bunn James,3/24/2021,500,Council of the Arts ,Other Professional Fees - PS
Coastal Alabama CC,!0001227,Ellison Kay,3/24/2021,367.41,Unrestricted -Bay Minette,Mileage - IS
Coastal Alabama CC,!0001228,Hines Lasha,3/24/2021,68.32,Unrestricted-Monroeville,Mileage - IS
Coastal Alabama CC,!0001229,Jackson Yvette,3/24/2021,80,Unrestricted -Bay Minette,Memberships - PS
Coastal Alabama CC,!0001229,Jackson Yvette,3/24/2021,357,Unrestricted -Bay Minette,Mileage - IS
Coastal Alabama CC,!0001230,Joyner Holley,3/24/2021,376.32,Unrestricted-Monroeville,Mileage - IS
Coastal Alabama CC,!0001231,Kendall Kelly,3/24/2021,220.64,Unrestricted Shared Services,Mileage - IS
Coastal Alabama CC,!0001232,Louallen Clark,3/24/2021,280,Unrestricted -Bay Minette,Other Professional Fees - PS
Coastal Alabama CC,!0001233,Mauldin Gary,3/24/2021,280,Unrestricted -Bay Minette,Other Professional Fees - PS
Coastal Alabama CC,!0001234,Moquin Crystal,3/24/2021,150,Unrestricted -Bay Minette,Mileage - IS
Coastal Alabama CC,!0001235,Muniz Angela,3/24/2021,880,NSF ,Other Contractual Services - PS
Coastal Alabama CC,!0001236,Shue Wendy,3/24/2021,56,AE - State Regular,Mileage - IS
Coastal Alabama CC,!0001237,Soule Lewis,3/24/2021,200,Unrestricted -Bay Minette,Other Professional Fees - PS
Coastal Alabama CC,!0001238,Winn Joshilyn,3/24/2021,500,Council of the Arts ,Other Professional Fees - PS
Coastal Alabama CC,!0001239,Akd Inc. ,3/24/2021,2604.82,Unrestricted -Bay Minette,Materials and Supplies - MS
Coastal Alabama CC,!0001240,Amazon ,3/24/2021,22.99,Unrestricted -Brewton,Materials and Supplies - MS
Coastal Alabama CC,!0001240,Amazon ,3/24/2021,36,Unrestricted-Thomasville,Materials and Supplies - MS
Coastal Alabama CC,!0001241,Assurance Service Group Inc ,3/24/2021,39227.64,R&R  Brewton,Building Alterations - CE
Coastal Alabama CC,!0001242,Atalian US Midwest LL ,3/24/2021,400,Unrestricted -Gulf Shores,Other Contractual Services - PS
Coastal Alabama CC,!0001243,CDW LLC ,3/24/2021,219.18,Unrestricted -Brewton,Materials and Supplies - MS
Coastal Alabama CC,!0001243,CDW LLC ,3/24/2021,228.74,Unrestricted -Bay Minette,Materials and Supplies - MS
Coastal Alabama CC,!0001244,Global Furniture Group Inc ,3/24/2021,1222.03,Unrestricted-Fairhope,Materials and Supplies - MS
Coastal Alabama CC,!0001245,North Baldwin Printing LLC ,3/24/2021,169,Student Support Service -BM,Materials and Supplies - MS
Coastal Alabama CC,!0001246,Pocket Nurse Enterprises Inc. ,3/24/2021,1086.08,Unrestricted -Bay Minette,Materials and Supplies - MS
Coastal Alabama CC,!0001246,Pocket Nurse Enterprises Inc. ,3/24/2021,4125.8,Unrestricted Shared Services,Materials and Supplies - MS
Coastal Alabama CC,!0001247,Quill Corporation ,3/24/2021,451.77,Unrestricted -Bay Minette,Materials and Supplies - MS
Coastal Alabama CC,!0001248,Roto-rooter Service ,3/24/2021,560,Unrestricted -Gulf Shores,Maintenance & Repairs  - OOS
Coastal Alabama CC,!0001249,South Alabama Gas ,3/24/2021,747.23,Unrestricted-Monroeville,Gas & Heating Fuel - UC
Coastal Alabama CC,!0001250,Staples Contract & Commercial Inc ,3/24/2021,28.03,Unrestricted -Brewton,Materials and Supplies - MS
Coastal Alabama CC,!0001251,Staples Contract & Commercial Inc ,3/24/2021,96,AE-Federal Regular,Materials and Supplies - MS
Coastal Alabama CC,!0001251,Staples Contract & Commercial Inc ,3/24/2021,514.85,Unrestricted -Gulf Shores,Materials and Supplies - MS
Coastal Alabama CC,!0001252,Storage Sense Saraland ,3/24/2021,1086,Unexpended Plant Bay Minette,Other Professional Fees - PS
Coastal Alabama CC,!0001253,Vsc Fire & Securityinc. ,3/24/2021,4053,R&R  Brewton,Maintenance & Repairs  - OOS
Coastal Alabama CC,!0001254,W W Grainger Inc ,3/24/2021,101.04,Unrestricted -Fairhope Academy,Materials and Supplies - MS
Coastal Alabama CC,!0001254,W W Grainger Inc ,3/24/2021,484.7,Unrestricted -Bay Minette,Materials and Supplies - MS
Coastal Alabama CC,!0001254,W W Grainger Inc ,3/24/2021,1956.76,Unrestricted - Atmore,Materials and Supplies - MS
Coastal Alabama CC,!0001254,W W Grainger Inc ,3/24/2021,6639.71,Vocational Ed/CTE,Furniture and Equip $5K - $25K - CE
Coastal Alabama CC,!0001255,Wesco Gas & Welding Supply Inc. ,3/24/2021,625.29,Unrestricted-Thomasville,Materials and Supplies - MS
Coastal Alabama CC,!0001255,Wesco Gas & Welding Supply Inc. ,3/24/2021,5000,Dual Enrollment,Materials and Supplies - MS
Coastal Alabama CC,!0001256,Witherington Construction Corporation ,3/24/2021,37778.65,Unexpended Plant Bay Minette,Building Alterations - CE
Coastal Alabama CC,!0001257,World Design Marketing ,3/24/2021,438,Unrestricted -Bay Minette,Other Professional Fees - PS
Coastal Alabama CC,!0001258,Xerox Financial Services LLC ,3/24/2021,149.64,Student Support Service -BM,Short-Term Equipment Rentals - OOS
Coastal Alabama CC,!0001258,Xerox Financial Services LLC ,3/24/2021,150.03,Unrestricted - Fountain,Short-Term Equipment Rentals - OOS
Coastal Alabama CC,!0001258,Xerox Financial Services LLC ,3/24/2021,162.36,Unrestricted - Atmore,Short-Term Equipment Rentals - OOS
Coastal Alabama CC,!0001258,Xerox Financial Services LLC ,3/24/2021,212.11,Unrestricted-Thomasville,Short-Term Equipment Rentals - OOS
Coastal Alabama CC,!0001258,Xerox Financial Services LLC ,3/24/2021,368.1,Unrestricted -Gulf Shores,Short-Term Equipment Rentals - OOS
Coastal Alabama CC,!0001258,Xerox Financial Services LLC ,3/24/2021,471.96,Unrestricted - Brookley Field,Short-Term Equipment Rentals - OOS
Coastal Alabama CC,!0001258,Xerox Financial Services LLC ,3/24/2021,518.52,Unrestricted-Fairhope,Short-Term Equipment Rentals - OOS
Coastal Alabama CC,!0001258,Xerox Financial Services LLC ,3/24/2021,1097.56,Unrestricted -Brewton,Short-Term Equipment Rentals - OOS
Coastal Alabama CC,!0001258,Xerox Financial Services LLC ,3/24/2021,1217.32,Unrestricted -Bay Minette,Short-Term Equipment Rentals - OOS
Coastal Alabama CC,!0001259,Davis Sara,3/26/2021,36.16,CARES Act - College Relief,Materials and Supplies - MS
Coastal Alabama CC,!0001260,Louallen Clark,3/26/2021,280,Unrestricted -Bay Minette,Other Professional Fees - PS
Coastal Alabama CC,!0001261,ACT Inc ,3/26/2021,240,Work Keys Testing,Deposits Held for Others – Testing
Coastal Alabama CC,!0001262,Akd Inc. ,3/26/2021,776.21,Unrestricted-Gilbertown,Materials and Supplies - MS
Coastal Alabama CC,!0001262,Akd Inc. ,3/26/2021,905.59,Unrestricted-Thomasville,Materials and Supplies - MS
Coastal Alabama CC,!0001262,Akd Inc. ,3/26/2021,905.6,Unrestricted-Monroeville,Materials and Supplies - MS
Coastal Alabama CC,!0001262,Akd Inc. ,3/26/2021,964.94,Unrestricted -Brewton,Materials and Supplies - MS
Coastal Alabama CC,!0001263,Amazon ,3/26/2021,1895,Unrestricted -Bay Minette,Materials and Supplies - MS
Coastal Alabama CC,!0001264,Global Furniture Group Inc ,3/26/2021,793.52,Upward Bound GT,Materials and Supplies - MS
Coastal Alabama CC,!0001265,Quill Corporation ,3/26/2021,8.48,Unrestricted -Brewton,Materials and Supplies - MS
Coastal Alabama CC,!0001266,United Way of Baldwin Co. Inc ,3/26/2021,1000,Unrestricted -Bay Minette,Advertising & Promotions - OOS
Coastal Alabama CC,!0001267,Vsc Fire & Securityinc. ,3/26/2021,240,Unrestricted -Bay Minette,Other Contractual Services - PS
Coastal Alabama CC,!0001268,W W Grainger Inc ,3/26/2021,16.74,Unrestricted -Bay Minette,Materials and Supplies - MS
Coastal Alabama CC,!0001268,W W Grainger Inc ,3/26/2021,158.95,Unrestricted-Monroeville,Materials and Supplies - MS
Coastal Alabama CC,!0001269,Walters Control Inc ,3/26/2021,595,Unrestricted -Bay Minette,Maintenance & Repairs  - OOS
Coastal Alabama CC,!0001270,Wesco Gas & Welding Supply Inc. ,3/26/2021,333.36,Unrestricted - Atmore,Materials and Supplies - MS
Coastal Alabama CC,!0001271,Xerox Corporation ,3/26/2021,175.9,Unrestricted -Brewton,Short-Term Equipment Rentals - OOS
Coastal Alabama CC,!0001271,Xerox Corporation ,3/26/2021,175.9,Unrestricted -Fairhope Academy,Short-Term Equipment Rentals - OOS
Coastal Alabama CC,!0001271,Xerox Corporation ,3/26/2021,178.39,Unrestricted-Fairhope,Short-Term Equipment Rentals - OOS
Coastal Alabama CC,!0001271,Xerox Corporation ,3/26/2021,196.53,Unrestricted-Monroeville,Short-Term Equipment Rentals - OOS
Coastal Alabama CC,!0001272,Xerox Financial Services LLC ,3/26/2021,754,Unrestricted -Bay Minette,Short-Term Equipment Rentals - OOS
Coastal Alabama CC,3685,Mobile Area Education Foundation ,10/1/2020,5000,ACHE,Other Professional Fees - PS
Coastal Alabama CC,3850,A & A Refrigeration ,10/8/2020,260,Unrestricted -Gulf Shores,Other Contractual Services - PS
Coastal Alabama CC,3852,ABM Industry Groups LLC ,10/8/2020,210.94,Unrestricted - Brookley Field,Other Contractual Services - PS
Coastal Alabama CC,3852,ABM Industry Groups LLC ,10/8/2020,625,Unrestricted -Fairhope Academy,Other Contractual Services - PS
Coastal Alabama CC,3852,ABM Industry Groups LLC ,10/8/2020,632.81,Unrestricted-Gilbertown,Other Contractual Services - PS
Coastal Alabama CC,3852,ABM Industry Groups LLC ,10/8/2020,810,Unrestricted-LifeTech,Other Contractual Services - PS
Coastal Alabama CC,3852,ABM Industry Groups LLC ,10/8/2020,1476.55,Unrestricted -Gulf Shores,Other Contractual Services - PS
Coastal Alabama CC,3852,ABM Industry Groups LLC ,10/8/2020,1792.96,Unrestricted-Fairhope,Other Contractual Services - PS
Coastal Alabama CC,3852,ABM Industry Groups LLC ,10/8/2020,2109.35,Unrestricted-Thomasville,Other Contractual Services - PS
Coastal Alabama CC,3852,ABM Industry Groups LLC ,10/8/2020,3804.34,Unrestricted -Brewton,Other Contractual Services - PS
Coastal Alabama CC,3852,ABM Industry Groups LLC ,10/8/2020,6389.86,Unrestricted -Bay Minette,Other Contractual Services - PS
Coastal Alabama CC,3852,ABM Industry Groups LLC ,10/8/2020,8015.55,Unrestricted-Monroeville,Other Contractual Services - PS
Coastal Alabama CC,3853,ABM Industry Groups LLC ,10/8/2020,25057.36,Unrestricted -Brewton,Other Contractual Services - PS
Coastal Alabama CC,3854,Ace Home Center of Fairhope ,10/8/2020,310.82,Unrestricted-Fairhope,Materials and Supplies - MS
Coastal Alabama CC,3856,Air Specialty Inc ,10/8/2020,160.3,Housing- Bay Minette,Maintenance & Repairs  - OOS
Coastal Alabama CC,3856,Air Specialty Inc ,10/8/2020,249.9,Unrestricted-Fairhope,Maintenance & Repairs  - OOS
Coastal Alabama CC,3856,Air Specialty Inc ,10/8/2020,256.49,Other Auxiliary- Bay Minette,Maintenance & Repairs  - OOS
Coastal Alabama CC,3856,Air Specialty Inc ,10/8/2020,422.2,Unrestricted -Bay Minette,Maintenance & Repairs  - OOS
Coastal Alabama CC,3856,Air Specialty Inc ,10/8/2020,3013.5,Unrestricted - Brookley Field,Maintenance & Repairs  - OOS
Coastal Alabama CC,3857,Akd Inc. ,10/8/2020,357.88,Unrestricted -Gulf Shores,Athletic Uniforms
Coastal Alabama CC,3858,Alabama Community College Conference Inc ,10/8/2020,9224,Unrestricted-Monroeville,Memberships - PS
Coastal Alabama CC,3859,Alabama Power Company ,10/8/2020,3715.03,Unrestricted -Bay Minette,Electricity - UC
Coastal Alabama CC,3860,Alibris Inc ,10/8/2020,408.8,Unrestricted -Bay Minette,Books - CE
Coastal Alabama CC,3861,All Over Jantrl Srvcs Inc ,10/8/2020,13457,Unrestricted -Bay Minette,Other Contractual Services - PS
Coastal Alabama CC,3862,Alliance Publishing Group ,10/8/2020,1200,Unrestricted -Bay Minette,Advertising & Promotions - OOS
Coastal Alabama CC,3863,Alsco Inc ,10/8/2020,707.5,Unrestricted -Gulf Shores,Other Contractual Services - PS
Coastal Alabama CC,3864,Alston Electric Supply Co Inc ,10/8/2020,1269.88,Unrestricted -Brewton,Maintenance & Repairs  - OOS
Coastal Alabama CC,3865,Amsterdam Company ,10/8/2020,556.11,Student Support Service -BM,Materials and Supplies - MS
Coastal Alabama CC,3866,Arrant Rodney,10/8/2020,180,Unrestricted -Brewton,Other Professional Fees - PS
Coastal Alabama CC,3867,AT&T ,10/8/2020,128.4,Unrestricted-Jackson,Internet - UC
Coastal Alabama CC,3868,AT&T ,10/8/2020,11238.65,Unrestricted -Bay Minette,Internet - UC
Coastal Alabama CC,3869,AT&T ,10/8/2020,45.75,Unrestricted -Brewton,Landline Phones - UC
Coastal Alabama CC,3870,AT&T ,10/8/2020,319.96,Unrestricted -Bay Minette,Internet - UC
Coastal Alabama CC,3870,AT&T ,10/8/2020,7998.27,Unrestricted -Bay Minette,Landline Phones - UC
Coastal Alabama CC,3871,Atmore Auto Parts ,10/8/2020,33.49,Unrestricted - Atmore,Materials and Supplies - MS
Coastal Alabama CC,3872,Atmore Electrical Supply ,10/8/2020,34.68,Unrestricted - Atmore,Materials and Supplies - MS
Coastal Alabama CC,3873,Baldwin EMC ,10/8/2020,5016.45,Unrestricted -Gulf Shores,Electricity - UC
Coastal Alabama CC,3874,Bondurant Lumber and Hardware Inc ,10/8/2020,275.48,Unrestricted -Brewton,Maintenance & Repairs  - OOS
Coastal Alabama CC,3875,Brodart Company ,10/8/2020,919.12,Unrestricted -Bay Minette,Books - CE
Coastal Alabama CC,3876,BSN ,10/8/2020,2329.44,Unrestricted -Brewton,Materials and Supplies - MS
Coastal Alabama CC,3877,BSN Sports LLC ,10/8/2020,854.05,Unrestricted -Bay Minette,Athletic Uniforms
Coastal Alabama CC,3878,Carden Patrick,10/8/2020,14800,Unrestricted -Brewton,Maintenance & Repairs  - OOS
Coastal Alabama CC,3879,Chuck Stevens Chevrolet ,10/8/2020,62.54,Unrestricted -Bay Minette,Maintenance & Repairs  - OOS
Coastal Alabama CC,3880,City of Brewton Utility Dept ,10/8/2020,52.1,Unrestricted -Brewton,Gas & Heating Fuel - UC
Coastal Alabama CC,3880,City of Brewton Utility Dept ,10/8/2020,63.67,Unrestricted -Brewton,Water & Sewer - UC
Coastal Alabama CC,3881,City of Gulf Shores ,10/8/2020,344.1,Unrestricted -Gulf Shores,Water & Sewer - UC
Coastal Alabama CC,3882,City of Thomasville ,10/8/2020,1177.94,Unrestricted-Thomasville,Water & Sewer - UC
Coastal Alabama CC,3883,Cma Technology Solutions ,10/8/2020,3269.5,Unrestricted -Bay Minette,Other Contractual Services - PS
Coastal Alabama CC,3884,Condensed Curriculum International Inc ,10/8/2020,2275,Unrestricted-Fairhope,Other Contractual Services - PS
Coastal Alabama CC,3885,Cummins Sales and Service ,10/8/2020,847.96,Unrestricted -Bay Minette,Maintenance & Repairs  - OOS
Coastal Alabama CC,3886,Dade Paper & Bag Co ,10/8/2020,581.85,Food Services- Bay Minette,Materials and Supplies - MS
Coastal Alabama CC,3887,Davids Catfish House ,10/8/2020,306.92,Unrestricted -Brewton,Other Travel Expenses - IS
Coastal Alabama CC,3887,Davids Catfish House ,10/8/2020,464.07,Unrestricted -Bay Minette,Materials and Supplies - MS
Coastal Alabama CC,3888,Davis Fireman Pest Contro ,10/8/2020,1350,Unrestricted-Monroeville,Other Professional Fees - PS
Coastal Alabama CC,3889,Dozier Hardware Co Inc ,10/8/2020,129.99,Unrestricted-Thomasville,Maintenance & Repairs  - OOS
Coastal Alabama CC,3890,Ellington Radio Inc ,10/8/2020,133.33,Ready to Work ,Advertising & Promotions - OOS
Coastal Alabama CC,3891,Freemanville Water System ,10/8/2020,35,Unrestricted - Atmore,Water & Sewer - UC
Coastal Alabama CC,3892,Herb & Pepper Farm ,10/8/2020,160.75,Unrestricted -Gulf Shores,Culinary Consumables
Coastal Alabama CC,3893,Herff Jones Inc ,10/8/2020,260,Unrestricted -Bay Minette,Materials and Supplies - MS
Coastal Alabama CC,3894,Ideal Truck Service ,10/8/2020,1602.4,Unrestricted -Bay Minette,Other Professional Fees - PS
Coastal Alabama CC,3895,Jus Do ,10/8/2020,150,Local Grants And Contracts,Materials and Supplies - MS
Coastal Alabama CC,3896,King Glass Inc. ,10/8/2020,329.43,Unrestricted-Monroeville,Maintenance & Repairs  - OOS
Coastal Alabama CC,3897,Lagniappe ,10/8/2020,2460,Unrestricted -Bay Minette,Advertising & Promotions - OOS
Coastal Alabama CC,3898,Lowe's Home Centers Inc ,10/8/2020,440.71,Unrestricted -Bay Minette,Materials and Supplies - MS
Coastal Alabama CC,3900,Marvins ,10/8/2020,17.09,Unrestricted-Monroeville,Materials and Supplies - MS
Coastal Alabama CC,3900,Marvins ,10/8/2020,17.1,Unrestricted-Monroeville,Maintenance & Repairs  - OOS
Coastal Alabama CC,3901,Medline Industries Inc ,10/8/2020,381.55,Unrestricted -Bay Minette,Materials and Supplies - MS
Coastal Alabama CC,3902,Mobile Glass Llc ,10/8/2020,900,Unrestricted-Fairhope,Maintenance & Repairs  - OOS
Coastal Alabama CC,3903,Mobile Glass Llc ,10/8/2020,230,Unrestricted-Fairhope,Maintenance & Repairs  - OOS
Coastal Alabama CC,3904,Norm's Auto Repair ,10/8/2020,322.57,Unrestricted -Bay Minette,Maintenance & Repairs  - OOS
Coastal Alabama CC,3905,O'Reilly Automotive Stores Inc ,10/8/2020,200.72,Unrestricted -Bay Minette,Materials and Supplies - MS
Coastal Alabama CC,3906,Peacock Builders LLC ,10/8/2020,1150,Housing - Brewton,Materials and Supplies - MS
Coastal Alabama CC,3907,Pretnar Michael,10/8/2020,250,Unrestricted -Bay Minette,Other Professional Fees - PS
Coastal Alabama CC,3908,Publix Super Markets Inc ,10/8/2020,613.61,Unrestricted -Gulf Shores,Culinary Consumables
Coastal Alabama CC,3909,Richardson Athletics LLC ,10/8/2020,797.99,Unrestricted-Monroeville,Materials and Supplies - MS
Coastal Alabama CC,3910,Ringor ,10/8/2020,1320,Unrestricted -Brewton,Athletic Clothing-OOS
Coastal Alabama CC,3911,Siemens Industry Inc. ,10/8/2020,824,Unrestricted -Brewton,Other Professional Fees - PS
Coastal Alabama CC,3912,Southeastern Assoc Of Education Opportunity Prog Personnel ,10/8/2020,148.35,Upward Bound MR,Memberships - PS
Coastal Alabama CC,3912,Southeastern Assoc Of Education Opportunity Prog Personnel ,10/8/2020,496.65,Upward Bound MR,Registration Fees- IS
Coastal Alabama CC,3913,Southern Linc Wireless ,10/8/2020,1604.68,Unrestricted -Bay Minette,Landline Phones - UC
Coastal Alabama CC,3914,Southern Pine Electric Co ,10/8/2020,43.83,Unrestricted -Brewton,Electricity - UC
Coastal Alabama CC,3915,Sports Attack Llc ,10/8/2020,3628,Unrestricted -Brewton,Materials and Supplies - MS
Coastal Alabama CC,3916,Staples Contract & Commercial Inc ,10/8/2020,805.09,Housing- Bay Minette,Materials and Supplies - MS
Coastal Alabama CC,3917,Staples Contract & Commercial Inc ,10/8/2020,45.48,Unrestricted -Bay Minette,Materials and Supplies - MS
Coastal Alabama CC,3918,Strategy Inc ,10/8/2020,6000,Unrestricted -Bay Minette,Other Professional Fees - PS
Coastal Alabama CC,3919,Strickland Paper Company Inc ,10/8/2020,418.65,Unrestricted -Bay Minette,Materials and Supplies - MS
Coastal Alabama CC,3920,Sunrise Fresh Producellc ,10/8/2020,1013.28,Unrestricted -Gulf Shores,Culinary Consumables
Coastal Alabama CC,3921,Tappi ,10/8/2020,2083.33,NSF ,Other Contractual Services - PS
Coastal Alabama CC,3922,Taylor Hunter,10/8/2020,540,Unrestricted-Jackson,Other Professional Fees - PS
Coastal Alabama CC,3923,Tdfaithllc ,10/8/2020,325,Unrestricted -Bay Minette,Maintenance & Repairs  - OOS
Coastal Alabama CC,3924,The Field Llc ,10/8/2020,5934.62,Unrestricted-Monroeville,Materials and Supplies - MS
Coastal Alabama CC,3925,Uniforms And More Llc ,10/8/2020,718.98,Unrestricted -Bay Minette,Athletic Uniforms
Coastal Alabama CC,3926,United Parcel Service Inc ,10/8/2020,3,Unrestricted -Bay Minette,Postage - OOS
Coastal Alabama CC,3927,United Rentals (North America) Inc. ,10/8/2020,1764.41,Unrestricted - Atmore,Short-Term Equipment Rentals - OOS
Coastal Alabama CC,3928,US Food Service ,10/8/2020,91.95,Unrestricted -Gulf Shores,Short-Term Equipment Rentals - OOS
Coastal Alabama CC,3928,US Food Service ,10/8/2020,637.16,Unrestricted -Gulf Shores,Materials and Supplies - MS
Coastal Alabama CC,3928,US Food Service ,10/8/2020,2133.1,Unrestricted -Gulf Shores,Culinary Consumables
Coastal Alabama CC,3928,US Food Service ,10/8/2020,8414.49,Food Services- Bay Minette,Purchases for Resale (COGS) - MS
Coastal Alabama CC,3929,Utilities Board of Gilbertown ,10/8/2020,142.58,Unrestricted-Gilbertown,Water & Sewer - UC
Coastal Alabama CC,3930,Verizon Wireless ,10/8/2020,52.86,Unrestricted -Bay Minette,Wireless Phones - UC
Coastal Alabama CC,3931,Volheim Darren,10/8/2020,90,Unrestricted -Brewton,Other Professional Fees - PS
Coastal Alabama CC,3932,Vsc Fire & Securityinc. ,10/8/2020,1216,Unrestricted -Bay Minette,Other Contractual Services - PS
Coastal Alabama CC,3933,W W Grainger Inc ,10/8/2020,91.08,Unrestricted -Brewton,Materials and Supplies - MS
Coastal Alabama CC,3933,W W Grainger Inc ,10/8/2020,208.98,Housing - Brewton,Maintenance & Repairs  - OOS
Coastal Alabama CC,3933,W W Grainger Inc ,10/8/2020,736.88,Housing - Brewton,Materials and Supplies - MS
Coastal Alabama CC,3934,W W Grainger Inc ,10/8/2020,56.5,Housing - Brewton,Maintenance & Repairs  - OOS
Coastal Alabama CC,3934,W W Grainger Inc ,10/8/2020,1686.51,Unrestricted -Brewton,Materials and Supplies - MS
Coastal Alabama CC,3934,W W Grainger Inc ,10/8/2020,3527.53,Housing - Brewton,Materials and Supplies - MS
Coastal Alabama CC,3935,Wal-Mart Community ,10/8/2020,58.99,Unrestricted -Brewton,Materials and Supplies - MS
Coastal Alabama CC,3935,Wal-Mart Community ,10/8/2020,188.16,Unrestricted -Bay Minette,Materials and Supplies - MS
Coastal Alabama CC,3935,Wal-Mart Community ,10/8/2020,224.21,Housing- Bay Minette,Materials and Supplies - MS
Coastal Alabama CC,3936,Wal-Mart Community ,10/8/2020,147.86,Student Support Service -BR,Materials and Supplies - MS
Coastal Alabama CC,3936,Wal-Mart Community ,10/8/2020,837.48,Housing - Brewton,Materials and Supplies - MS
Coastal Alabama CC,3937,Waste Management ,10/8/2020,310.7,Unrestricted-Gilbertown,Other Contractual Services - PS
Coastal Alabama CC,3938,Waterworks and Sewer Board City of Jackson ,10/8/2020,37.32,Unrestricted-Jackson,Water & Sewer - UC
Coastal Alabama CC,3939,Weiser ,10/8/2020,166.4,Unrestricted -Gulf Shores,Other Contractual Services - PS
Coastal Alabama CC,3939,Weiser ,10/8/2020,209.28,Housing - Brewton,Other Contractual Services - PS
Coastal Alabama CC,3939,Weiser ,10/8/2020,313.6,Unrestricted -Fairhope Academy,Other Contractual Services - PS
Coastal Alabama CC,3939,Weiser ,10/8/2020,328.5,Housing- Bay Minette,Other Contractual Services - PS
Coastal Alabama CC,3939,Weiser ,10/8/2020,819.2,Unrestricted - Brookley Field,Other Contractual Services - PS
Coastal Alabama CC,3940,Wesco Gas & Welding Supply Inc. ,10/8/2020,1551.61,Unrestricted -Fairhope Academy,Materials and Supplies - MS
Coastal Alabama CC,4082,Acro Service Corporation ,10/12/2020,826.24,Food Services- Bay Minette,Other Contractual Services - PS
Coastal Alabama CC,4083,Air Specialty Inc ,10/12/2020,105,Unrestricted -Gulf Shores,Maintenance & Repairs  - OOS
Coastal Alabama CC,4083,Air Specialty Inc ,10/12/2020,210,Unrestricted-Fairhope,Maintenance & Repairs  - OOS
Coastal Alabama CC,4083,Air Specialty Inc ,10/12/2020,1050,Unrestricted -Bay Minette,Maintenance & Repairs  - OOS
Coastal Alabama CC,4084,Amsterdam Company ,10/12/2020,449.02,Student Support Service -BM,Materials and Supplies - MS
Coastal Alabama CC,4085,Apple Computer Inc. ,10/12/2020,597,Unrestricted-Monroeville,Technology - non capitalized - MS
Coastal Alabama CC,4085,Apple Computer Inc. ,10/12/2020,2527,Unrestricted -Bay Minette,Materials and Supplies - MS
Coastal Alabama CC,4085,Apple Computer Inc. ,10/12/2020,7453,Unrestricted -Brewton,Technology - non capitalized - MS
Coastal Alabama CC,4086,Atmore Auto Parts ,10/12/2020,285.88,Unrestricted - Atmore,Materials and Supplies - MS
Coastal Alabama CC,4087,Bondurant Lumber & Hardwa ,10/12/2020,42.02,Unrestricted - Atmore,Materials and Supplies - MS
Coastal Alabama CC,4088,Bondurant Lumber and Hardware Inc ,10/12/2020,17.66,Unrestricted -Brewton,Maintenance & Repairs  - OOS
Coastal Alabama CC,4089,BSN ,10/12/2020,183,Unrestricted -Bay Minette,Materials and Supplies - MS
Coastal Alabama CC,4089,BSN ,10/12/2020,1800,Unrestricted -Brewton,Athletic Clothing-OOS
Coastal Alabama CC,4089,BSN ,10/12/2020,1999.9,Unrestricted -Brewton,Materials and Supplies - MS
Coastal Alabama CC,4089,BSN ,10/12/2020,2100,Unrestricted-Monroeville,Athletic Uniforms
Coastal Alabama CC,4089,BSN ,10/12/2020,2586.54,Unrestricted -Bay Minette,Athletic Uniforms
Coastal Alabama CC,4089,BSN ,10/12/2020,3609,Unrestricted -Bay Minette,Athletic Clothing-OOS
Coastal Alabama CC,4089,BSN ,10/12/2020,18948.72,Unrestricted-Monroeville,Materials and Supplies - MS
Coastal Alabama CC,4090,BSN Sports LLC ,10/12/2020,1455.5,Unrestricted-Monroeville,Materials and Supplies - MS
Coastal Alabama CC,4091,Builders Hardware and Supply ,10/12/2020,23.17,Unrestricted -Bay Minette,Materials and Supplies - MS
Coastal Alabama CC,4092,City Electric Supply Co ,10/12/2020,32,Unrestricted -Bay Minette,Materials and Supplies - MS
Coastal Alabama CC,4093,Coca-Cola Bottling Company United Inc. ,10/12/2020,745.61,Food Services- Bay Minette,Purchases for Resale (COGS) - MS
Coastal Alabama CC,4094,Cummins Sales and Service ,10/12/2020,1729.53,Unrestricted -Bay Minette,Maintenance & Repairs  - OOS
Coastal Alabama CC,4095,Dade Paper & Bag Co ,10/12/2020,585.49,Food Services- Bay Minette,Materials and Supplies - MS
Coastal Alabama CC,4096,Directv Inc ,10/12/2020,194.99,Unrestricted-Monroeville,Other Professional Fees - PS
Coastal Alabama CC,4097,Encore Rehabilitationinc ,10/12/2020,833.33,Unrestricted -Bay Minette,Other Contractual Services - PS
Coastal Alabama CC,4098,Fairhope Public Utilities ,10/12/2020,11.63,Unrestricted-Fairhope,Gas & Heating Fuel - UC
Coastal Alabama CC,4098,Fairhope Public Utilities ,10/12/2020,555.09,Unrestricted-Fairhope,Water & Sewer - UC
Coastal Alabama CC,4098,Fairhope Public Utilities ,10/12/2020,19531.56,Unrestricted-Fairhope,Electricity - UC
Coastal Alabama CC,4099,Goodwyn Mills & Cawood Inc ,10/12/2020,7342.2,Unrestricted -Brewton,Construction in Progress - CE
Coastal Alabama CC,4100,Mobile Glass Llc ,10/12/2020,251.88,Unrestricted - Brookley Field,Maintenance & Repairs  - OOS
Coastal Alabama CC,4100,Mobile Glass Llc ,10/12/2020,997.53,Housing- Bay Minette,Maintenance & Repairs  - OOS
Coastal Alabama CC,4101,Muniz Angela,10/12/2020,570,NSF ,Other Contractual Services - PS
Coastal Alabama CC,4102,North Baldwin Utilities ,10/12/2020,541.68,Food Services- Bay Minette,Gas & Heating Fuel - UC
Coastal Alabama CC,4102,North Baldwin Utilities ,10/12/2020,1682.31,Housing- Bay Minette,Gas & Heating Fuel - UC
Coastal Alabama CC,4102,North Baldwin Utilities ,10/12/2020,3277.76,Unrestricted -Bay Minette,Gas & Heating Fuel - UC
Coastal Alabama CC,4102,North Baldwin Utilities ,10/12/2020,3399.32,Housing- Bay Minette,Water & Sewer - UC
Coastal Alabama CC,4102,North Baldwin Utilities ,10/12/2020,7258.54,Unrestricted -Bay Minette,Water & Sewer - UC
Coastal Alabama CC,4103,O'Reilly Automotive Stores Inc ,10/12/2020,151.29,Unrestricted-Monroeville,Maintenance & Repairs  - OOS
Coastal Alabama CC,4104,PPM Consultants Inc. ,10/12/2020,5075,Unexpended Plant Bay Minette,Land - CE
Coastal Alabama CC,4105,Republic Services Inc. ,10/12/2020,343.7,Unrestricted -Brewton,Waste Disposal - UC
Coastal Alabama CC,4105,Republic Services Inc. ,10/12/2020,389.51,Unrestricted - Fountain,Waste Disposal - UC
Coastal Alabama CC,4105,Republic Services Inc. ,10/12/2020,435.35,Unrestricted - Atmore,Waste Disposal - UC
Coastal Alabama CC,4105,Republic Services Inc. ,10/12/2020,1122.72,Housing - Brewton,Waste Disposal - UC
Coastal Alabama CC,4106,Sign-A-Rama ,10/12/2020,220,Unrestricted -Bay Minette,Materials and Supplies - MS
Coastal Alabama CC,4107,Sodexo Inc ,10/12/2020,21879.33,Unrestricted -Bay Minette,Other Contractual Services - PS
Coastal Alabama CC,4108,Staples Contract & Commercial Inc ,10/12/2020,113.4,Unrestricted -Bay Minette,Materials and Supplies - MS
Coastal Alabama CC,4109,Stuart C. Irby Co. ,10/12/2020,2920,Unrestricted-Monroeville,Materials and Supplies - MS
Coastal Alabama CC,4110,W W Grainger Inc ,10/12/2020,1426.3,Unrestricted -Brewton,Maintenance & Repairs  - OOS
Coastal Alabama CC,4111,W W Grainger Inc ,10/12/2020,36.12,Unrestricted-Fairhope,Materials and Supplies - MS
Coastal Alabama CC,4111,W W Grainger Inc ,10/12/2020,364.98,Unrestricted -Gulf Shores,Materials and Supplies - MS
Coastal Alabama CC,4112,Wesco Gas & Welding Supply Inc. ,10/12/2020,364.23,Unrestricted-Thomasville,Materials and Supplies - MS
Coastal Alabama CC,4113,West Escambia Utilities Inc ,10/12/2020,10.9,Unrestricted - Fountain,Gas & Heating Fuel - UC
Coastal Alabama CC,4114,Wrights Auto Parts Inc ,10/12/2020,30.41,Unrestricted -Bay Minette,Materials and Supplies - MS
Coastal Alabama CC,4114,Wrights Auto Parts Inc ,10/12/2020,440.23,Unrestricted -Bay Minette,Maintenance & Repairs  - OOS
Coastal Alabama CC,4115,HD Spectrum LLC ,10/12/2020,562.5,Unrestricted-Thomasville,Materials and Supplies - MS
Coastal Alabama CC,4116,Kocurek Michael,10/12/2020,1500,Unrestricted-Monroeville,Other Contractual Services - PS
Coastal Alabama CC,4117,Sunbelt Rental Inc ,10/12/2020,754.86,Unrestricted-Fairhope,Short-Term Equipment Rentals - OOS
Coastal Alabama CC,4118,Air Specialty Inc ,10/14/2020,381.15,Unrestricted -Bay Minette,Maintenance & Repairs  - OOS
Coastal Alabama CC,4119,Airgas Gulf States ,10/14/2020,17.37,Unrestricted-Fairhope,Short-Term Equipment Rentals - OOS
Coastal Alabama CC,4119,Airgas Gulf States ,10/14/2020,20.67,Unrestricted - Brookley Field,Materials and Supplies - MS
Coastal Alabama CC,4119,Airgas Gulf States ,10/14/2020,20.67,Unrestricted -Bay Minette,Short-Term Equipment Rentals - OOS
Coastal Alabama CC,4119,Airgas Gulf States ,10/14/2020,932.49,Unrestricted - Atmore,Short-Term Equipment Rentals - OOS
Coastal Alabama CC,4120,AT&T ,10/14/2020,16666.75,Unrestricted -Bay Minette,Landline Phones - UC
Coastal Alabama CC,4121,Baldwin Rural Area Transportation ,10/14/2020,1350,Unrestricted -Bay Minette,Other Contractual Services - PS
Coastal Alabama CC,4122,Bondurant Lumber & Hardwa ,10/14/2020,42.02,Unrestricted - Atmore,Materials and Supplies - MS
Coastal Alabama CC,4123,City of Brewton Utility Dept ,10/14/2020,12.48,Housing - Brewton,Freight - OOS
Coastal Alabama CC,4123,City of Brewton Utility Dept ,10/14/2020,71.83,Unrestricted -Brewton,Gas & Heating Fuel - UC
Coastal Alabama CC,4123,City of Brewton Utility Dept ,10/14/2020,87.77,Unrestricted -Brewton,Water & Sewer - UC
Coastal Alabama CC,4123,City of Brewton Utility Dept ,10/14/2020,457.08,Housing - Brewton,Water & Sewer - UC
Coastal Alabama CC,4124,Goodrow Inc. ,10/14/2020,65,Unrestricted - Brookley Field,Other Professional Fees - PS
